Workbook

Sheet 1. INFORMACION ACUMULADA
A2: VEEDURIA DISTRITAL - INFORMACIÓN GESTION CONTRACTUAL
A3: DEL 1 DE ENERO AL 31 DE DICIEMBRE DE 2021
A5: 1. Entidad | H5: 2. Sector
A6: 3. Presupuesto Disponible Inversión Directa PREDIS (BOGDATA) | H6: 5. Presupuesto Disponible Funcionamiento PREDIS (BOGDATA) | AJ6: 9. Nombre de quien diligencia el formato | AL6: GERMAN HUMBERTO MEDEELIN MORA
A7: 4. Presupuesto Comprometido de Inversión Directa según PREDIS (BOGDATA) | E7: 31374359229 | H7: 6. Presupuesto Comprometido Funcionamiento según PREDIS (BOGDATA) | I7: 1041550575 | AJ7: Cargo | AL7: ALCALDE LOCAL (E)
AJ8: Dependencia | AL8: FONDO DE DE DESARROLLO RURAL DE SUMAPAZ
A9: 7. Presupuesto Disponible Operación (Régimen Privado) | AJ9: Teléfono | AL9: 3387000
A10: 8. Presupuesto Comprometido Operación mediante contratos | E10: 513643181 | AJ10: Correo Electrónico | AL10: german.medellin@gobiernobogota.gov.co
A11: 1- INFORMACION GENERAL | X11: 2- INFORMACION FINANCIERA | AD11: 3 - PLAZOS | AJ11: 4. CESION | AN11: 5. ESTADO | AR11: 6. % Avance y/o cumplimiento
A12: 1 | B12: 2 | C12: 3 | E12: 4 | F12: 5 | G12: 6 | H12: 7 | I12: 8 | N12: 9 | O12: 10 | P12: 11 | X12: 12 | Y12: 13 | Z12: 14 | AA12: 15 | AB12: 16 | AC12: 17 | AD12: 18 | AE12: 19 | AF12: 20 | AG12: 21 | AH12: 22 | AI12: 23 | AJ12: 24 | AK12: 25 | AL12: 26 | AM12: 27 | AN12: 28 | AR12: 29
A13: Número Contrato | B13: Año | C13: Número de proceso contractual SECOP | D13: Link proceso SECOP | E13: Tipo de contrato | F13: Modalidad de Selección | G13: Procedimiento o causal | H13: Objeto | I13: Afectación | J13: Plan de Desarrollo Distrital | K13: Número Programa | L13: Equivalencia número de programa | M13: Propósito | N13: Número Proyecto | O13: Número de proponentes | P13: Número de Identificación del contratista (Cédula o NIT sin puntos, comas ni caracteres especiales y sin digito de verificación) | Q13: Nombre del contratista (según el caso: nombres y apellidos o Razón social y Tipo societario) | R13: CONTRATACIÓN 2021 | S13: LUCIA BASTIDAS | T13: Naturaleza Jurídica | U13: Número de Identificación del integrante del Consorcio o U.T. (Cédula o NIT sin puntos, comas ni caracteres especiales y sin digito de verificación) | V13: Nombre del Integrante del Consorcio o U.T. y Tipo societario (Según el caso: nombres y apellidos o razón social y tipo societario) | W13: % Participación (indicar solo el numero del porcentaje, sin caracteres especiales) | X13: Valor Inicial del contrato | Y13: Valor total reducciones (En valor negativo) | Z13: Número de adiciones | AA13: Valor total de adiciones | AB13: Valor Final | AC13: Giros (Valor en pesos) | AD13: Fecha de suscripción (DD/MM/AAAA) | AE13: Fecha de inicio (DD/MM/AAAA) | AF13: Fecha de terminación (DD/MM/AAAA) | AG13: Plazo en días | AH13: Número de prórrogas | AI13: Prorroga en días | AJ13: Número de Identificación del cesionario (NIT sin digito de verificación) | AK13: Nombre cesionario | AL13: Fecha cesión (DD/MM/AAAA) | AM13: Valor cesión | AN13: Celebrado o por iniciar | AO13: En Ejecución | AP13: Terminado | AQ13: Liquidado | AR13: % Avance y/o Cumplimiento
A14: CPS-001-2021 | B14: 2021 | C14: FDLS-CD-001-2021 | D14: https://community.secop.gov.co/Public/Tendering/OpportunityDetail/Index?noticeUID=CO1.NTC.1731548&isFromPublicArea=True&isModal=False | E14: Contratos de prestación de servicios profesionales y de apoyo a la gestión | F14: Contratación directa | G14: Prestación de servicios profesionales y de apoyo a la gestión, o para la ejecución de trabajos artísticos que sólo puedan encomendarse a determinadas personas naturales; | H14: PRESTAR LOS SERVICIOS PROFESIONALES PARA EL DESPACHO DE LA ALCALDÍA LOCAL DE SUMAPAZ EN LAS DIFERENTES ETAPAS DE LOS PROCESOS JURÍDICO- ADMINISTRATIVOS Y OPERATIVOS A FIN DAR CUMPLIMIENTO AL PLAN DE DESARROLLO LOCAL | I14: Inversión | J14: Un Nuevo Contrato Social y Ambiental para la Bogotá del Siglo XXI | K14: 57 | L14: =IF(ISERROR(VLOOKUP(K14,Proposito_programa!$C$2:$E$59,2,FALSE))," ",VLOOKUP(K14,Proposito_programa!$C$2:$E$59,2,FALSE)) -> Gestión pública local | M14: =IF(ISERROR(VLOOKUP(K14,Proposito_programa!$C$2:$E$59,3,FALSE))," ",VLOOKUP(K14,Proposito_programa!$C$2:$E$59,3,FALSE)) -> Propósito 5: Construir Bogotá - Región con gobierno abierto, transparente y ciudadanía consciente | N14: 1696 | P14: 1030610164 | Q14: BRAHAN EDUARDO GARCIA LOPEZ | R14: BRAHAN EDUARDO GARCIA LOPEZ | S14: BRAHAN EDUARDO GARCIA LOPEZ | T14: Persona Natural | X14: 68000000 | Z14: 1 | AA14: 6800000 | AB14: =+X14+Y14+AA14 -> 74800000 | AC14: 73213333 | AD14: 2021-02-03 | AE14: 2021-02-08 | AF14: 2022-01-07 | AG14: 333 | AH14: 1 | AI14: 30 | AO14: X | AR14: =IF(ISERROR(AC14/AB14),"-",(AC14/AB14)) -> 0.9787878743
A15: CPS-002-2021 | B15: 2021 | C15: FDLS-CD-002-2021 | D15: https://community.secop.gov.co/Public/Tendering/OpportunityDetail/Index?noticeUID=CO1.NTC.1731569&isFromPublicArea=True&isModal=False | E15: Contratos de prestación de servicios profesionales y de apoyo a la gestión | F15: Contratación directa | G15: Prestación de servicios profesionales y de apoyo a la gestión, o para la ejecución de trabajos artísticos que sólo puedan encomendarse a determinadas personas naturales; | H15: PRESTAR LOS SERVICIOS PROFESIONALES ESPECIALIZADOS PARA EL DESPACHO DE LA ALCALDÍA LOCAL DE SUMAPAZ, EN LOS PROCESOS JURÍDICOS, ADMINISTRATIVOS Y OPERATIVOS PARA DAR CUMPLIMIENTO AL PLAN DE DESARROLLO LOCAL | I15: Inversión | J15: Un Nuevo Contrato Social y Ambiental para la Bogotá del Siglo XXI | K15: 57 | L15: =IF(ISERROR(VLOOKUP(K15,Proposito_programa!$C$2:$E$59,2,FALSE))," ",VLOOKUP(K15,Proposito_programa!$C$2:$E$59,2,FALSE)) -> Gestión pública local | M15: =IF(ISERROR(VLOOKUP(K15,Proposito_programa!$C$2:$E$59,3,FALSE))," ",VLOOKUP(K15,Proposito_programa!$C$2:$E$59,3,FALSE)) -> Propósito 5: Construir Bogotá - Región con gobierno abierto, transparente y ciudadanía consciente | N15: 1696 | P15: 52967366 | Q15: DIANA CAROLINA RODRIGUEZ PEÑA | R15: DIANA CAROLINA RODRIGUEZ PEÑA | S15: DIANA CAROLINA RODRIGUEZ PEÑA | T15: Persona Natural | X15: 75000000 | Z15: 1 | AA15: 7500000 | AB15: =+X15+Y15+AA15 -> 82500000 | AC15: 73250000 | AD15: 2021-02-03 | AE15: 2021-02-08 | AF15: 2022-01-07 | AG15: 333 | AH15: 1 | AI15: 30 | AO15: X | AR15: =IF(ISERROR(AC15/AB15),"-",(AC15/AB15)) -> 0.8878787879
A16: CPS-003-2021 | B16: 2021 | C16: FDLS-CD-003-2021 | D16: https://community.secop.gov.co/Public/Tendering/OpportunityDetail/Index?noticeUID=CO1.NTC.1731931&isFromPublicArea=True&isModal=False | E16: Contratos de prestación de servicios profesionales y de apoyo a la gestión | F16: Contratación directa | G16: Prestación de servicios profesionales y de apoyo a la gestión, o para la ejecución de trabajos artísticos que sólo puedan encomendarse a determinadas personas naturales; | H16: PRESTAR LOS SERVICIOS DE APOYO ADMINISTRATIVO AL DESPACHO DE LA ALCALDÍA LOCAL DE SUMAPAZ | I16: Inversión | J16: Un Nuevo Contrato Social y Ambiental para la Bogotá del Siglo XXI | K16: 57 | L16: =IF(ISERROR(VLOOKUP(K16,Proposito_programa!$C$2:$E$59,2,FALSE))," ",VLOOKUP(K16,Proposito_programa!$C$2:$E$59,2,FALSE)) -> Gestión pública local | M16: =IF(ISERROR(VLOOKUP(K16,Proposito_programa!$C$2:$E$59,3,FALSE))," ",VLOOKUP(K16,Proposito_programa!$C$2:$E$59,3,FALSE)) -> Propósito 5: Construir Bogotá - Región con gobierno abierto, transparente y ciudadanía consciente | N16: 1696 | P16: 1075237430 | Q16: KAREN SOFIA SILVA PRADA | R16: KAREN SOFÍA SILVA PRADA | S16: KAREN SOFÍA SILVA PRADA | T16: Persona Natural | X16: 39000000 | Z16: 1 | AA16: 3900000 | AB16: =+X16+Y16+AA16 -> 42900000 | AC16: 41600000 | AD16: 2021-02-03 | AE16: 2021-02-11 | AF16: 2022-01-10 | AG16: 333 | AH16: 1 | AI16: 30 | AO16: X | AR16: =IF(ISERROR(AC16/AB16),"-",(AC16/AB16)) -> 0.9696969697
A17: CPS-004-2021 | B17: 2021 | C17: FDLS-CD-004-2021 | D17: https://community.secop.gov.co/Public/Tendering/OpportunityDetail/Index?noticeUID=CO1.NTC.1732037&isFromPublicArea=True&isModal=False | E17: Contratos de prestación de servicios profesionales y de apoyo a la gestión | F17: Contratación directa | G17: Prestación de servicios profesionales y de apoyo a la gestión, o para la ejecución de trabajos artísticos que sólo puedan encomendarse a determinadas personas naturales; | H17: PRESTAR LOS SERVICIOS PROFESIONALES AL DESPACHO DE LA ALCALDÍA LOCAL DE SUMAPAZ EN LAS DIFERENTES ETAPAS DE LOS PROCESOS ADMINISTRATIVOS, FINANCIEROS Y PRESUPUESTALES PARA DAR CUMPLIMIENTO AL PLAN DE DESARROLLO LOCAL | I17: Inversión | J17: Un Nuevo Contrato Social y Ambiental para la Bogotá del Siglo XXI | K17: 57 | L17: =IF(ISERROR(VLOOKUP(K17,Proposito_programa!$C$2:$E$59,2,FALSE))," ",VLOOKUP(K17,Proposito_programa!$C$2:$E$59,2,FALSE)) -> Gestión pública local | M17: =IF(ISERROR(VLOOKUP(K17,Proposito_programa!$C$2:$E$59,3,FALSE))," ",VLOOKUP(K17,Proposito_programa!$C$2:$E$59,3,FALSE)) -> Propósito 5: Construir Bogotá - Región con gobierno abierto, transparente y ciudadanía consciente | N17: 1696 | P17: 39682218 | Q17: GEMA ORTEGA TRUJILLO | R17: GEMA ORTEGA TRUJILLO | S17: GEMA ORTEGA TRUJILLO | T17: Persona Natural | X17: 80000000 | Z17: 1 | AA17: 8000000 | AB17: 88000000 | AC17: 86133333 | AD17: 2021-02-04 | AE17: 2021-02-08 | AF17: 2022-01-07 | AG17: 333 | AH17: 1 | AI17: 30 | AO17: X | AR17: 0.978787875
A18: CPS-005-2021 | B18: 2021 | C18: FDLS-CD-005-2021 | D18: https://community.secop.gov.co/Public/Tendering/OpportunityDetail/Index?noticeUID=CO1.NTC.1732224&isFromPublicArea=True&isModal=False | E18: Contratos de prestación de servicios profesionales y de apoyo a la gestión | F18: Contratación directa | G18: Prestación de servicios profesionales y de apoyo a la gestión, o para la ejecución de trabajos artísticos que sólo puedan encomendarse a determinadas personas naturales; | H18: PRESTAR LOS SERVICIOS DE APOYO ADMINISTRATIVO AL ÁREA DE GESTIÓN DE DESARROLLO LOCAL DE LA ALCALDÍA LOCAL DE SUMAPAZ | I18: Inversión | J18: Un Nuevo Contrato Social y Ambiental para la Bogotá del Siglo XXI | K18: 57 | L18: =IF(ISERROR(VLOOKUP(K18,Proposito_programa!$C$2:$E$59,2,FALSE))," ",VLOOKUP(K18,Proposito_programa!$C$2:$E$59,2,FALSE)) -> Gestión pública local | M18: =IF(ISERROR(VLOOKUP(K18,Proposito_programa!$C$2:$E$59,3,FALSE))," ",VLOOKUP(K18,Proposito_programa!$C$2:$E$59,3,FALSE)) -> Propósito 5: Construir Bogotá - Región con gobierno abierto, transparente y ciudadanía consciente | N18: 1696 | P18: 1026253687 | Q18: KARINA OLAYA ANDRADE | R18: KARINA OLAYA ANDRADE | S18: KARINA OLAYA ANDRADE | T18: Persona Natural | X18: 39000000 | Z18: 1 | AA18: 3900000 | AB18: 42900000 | AC18: 37700000 | AD18: 2021-02-04 | AE18: 2021-02-11 | AF18: 2022-01-10 | AG18: 333 | AH18: 1 | AI18: 30 | AO18: X | AR18: 0.8787878788
A19: CPS-006-2021 | B19: 2021 | C19: FDLS-CD-006-2021 | D19: https://community.secop.gov.co/Public/Tendering/OpportunityDetail/Index?noticeUID=CO1.NTC.1732035&isFromPublicArea=True&isModal=False | E19: Contratos de prestación de servicios profesionales y de apoyo a la gestión | F19: Contratación directa | G19: Prestación de servicios profesionales y de apoyo a la gestión, o para la ejecución de trabajos artísticos que sólo puedan encomendarse a determinadas personas naturales; | H19: PRESTAR LOS SERVICIOS PROFESIONALES AL ÁREA DE GESTIÓN DE DESARROLLO LOCAL, PARA REALIZAR LA PLANEACIÓN Y SEGUIMIENTO A LOS PROYECTOS DE INVERSIÓN Y GASTOS DE FUNCIONAMIENTO RELACIONADOS CON EL PARQUE AUTOMOTOR DEL FONDO DE DESARROLLO LOCAL DE SUMAPAZ | I19: Inversión | J19: Un Nuevo Contrato Social y Ambiental para la Bogotá del Siglo XXI | K19: 57 | L19: =IF(ISERROR(VLOOKUP(K19,Proposito_programa!$C$2:$E$59,2,FALSE))," ",VLOOKUP(K19,Proposito_programa!$C$2:$E$59,2,FALSE)) -> Gestión pública local | M19: =IF(ISERROR(VLOOKUP(K19,Proposito_programa!$C$2:$E$59,3,FALSE))," ",VLOOKUP(K19,Proposito_programa!$C$2:$E$59,3,FALSE)) -> Propósito 5: Construir Bogotá - Región con gobierno abierto, transparente y ciudadanía consciente | N19: 1696 | P19: 1019076465 | Q19: EDILSON ARGEMIRO PORRAS CABALLERO | R19: EDILSON ARGEMIRO PORRAS CABALLERO | S19: EDILSON ARGEMIRO PORRAS CABALLERO | T19: Persona Natural | X19: 68000000 | Z19: 1 | AA19: 6800000 | AB19: 74800000 | AC19: 73213333 | AD19: 2021-02-03 | AE19: 2021-02-08 | AF19: 2022-01-07 | AG19: 333 | AH19: 1 | AI19: 30 | AO19: X | AR19: 0.9787878743
A20: CPS-007-2021 | B20: 2021 | C20: FDLS-CD-07-2021 | D20: https://community.secop.gov.co/Public/Tendering/OpportunityDetail/Index?noticeUID=CO1.NTC.1733004&isFromPublicArea=True&isModal=False | E20: Contratos de prestación de servicios profesionales y de apoyo a la gestión | F20: Contratación directa | G20: Prestación de servicios profesionales y de apoyo a la gestión, o para la ejecución de trabajos artísticos que sólo puedan encomendarse a determinadas personas naturales; | H20: PRESTAR LOS SERVICIOS PROFESIONALES PARA APOYAR LA PLANEACIÓN, EJECUCIÓN Y SEGUIMIENTO DE LOS PROYECTOS DE INVERSIÓN Y RUBROS DE FUNCIONAMIENTO QUE LE SEAN DESIGNADOS, DEL FONDO DE DESARROLLO LOCAL DE SUMAPAZ | I20: Inversión | J20: Un Nuevo Contrato Social y Ambiental para la Bogotá del Siglo XXI | K20: 57 | L20: =IF(ISERROR(VLOOKUP(K20,Proposito_programa!$C$2:$E$59,2,FALSE))," ",VLOOKUP(K20,Proposito_programa!$C$2:$E$59,2,FALSE)) -> Gestión pública local | M20: =IF(ISERROR(VLOOKUP(K20,Proposito_programa!$C$2:$E$59,3,FALSE))," ",VLOOKUP(K20,Proposito_programa!$C$2:$E$59,3,FALSE)) -> Propósito 5: Construir Bogotá - Región con gobierno abierto, transparente y ciudadanía consciente | N20: 1696 | P20: 1048205442 | Q20: ROSA MARIA MENDOZA DE LOS REYES | R20: ROSA MARIA MENDOZA DE LOS REYES | S20: ROSA MARIA MENDOZA DE LOS REYES | T20: Persona Natural | X20: 57000000 | Z20: 1 | AA20: 5700000 | AB20: 62700000 | AC20: 61370000 | AD20: 2021-02-04 | AE20: 2021-02-08 | AF20: 2022-01-07 | AG20: 333 | AH20: 1 | AI20: 30 | AO20: X | AR20: 0.9787878788
A21: CPS-008-2021 | B21: 2021 | C21: FDLS-CD-008-2021 | D21: https://community.secop.gov.co/Public/Tendering/OpportunityDetail/Index?noticeUID=CO1.NTC.1732528&isFromPublicArea=True&isModal=False | E21: Contratos de prestación de servicios profesionales y de apoyo a la gestión | F21: Contratación directa | G21: Prestación de servicios profesionales y de apoyo a la gestión, o para la ejecución de trabajos artísticos que sólo puedan encomendarse a determinadas personas naturales; | H21: PRESTAR LOS SERVICIOS PROFESIONALES ESPECIALIZADOS AL ÁREA DE GESTIÓN DE DESARROLLO LOCAL, PARA REALIZAR LA PLANEACIÓN Y SEGUIMIENTO A LOS PROYECTOS DE INVERSIÓN DE INFRAESTRUCTURA Y MALLA VIAL DE LA LOCALIDAD | I21: Inversión | J21: Un Nuevo Contrato Social y Ambiental para la Bogotá del Siglo XXI | K21: 57 | L21: =IF(ISERROR(VLOOKUP(K21,Proposito_programa!$C$2:$E$59,2,FALSE))," ",VLOOKUP(K21,Proposito_programa!$C$2:$E$59,2,FALSE)) -> Gestión pública local | M21: =IF(ISERROR(VLOOKUP(K21,Proposito_programa!$C$2:$E$59,3,FALSE))," ",VLOOKUP(K21,Proposito_programa!$C$2:$E$59,3,FALSE)) -> Propósito 5: Construir Bogotá - Región con gobierno abierto, transparente y ciudadanía consciente | N21: 1696 | P21: 1019006008 | Q21: JUAN PABLO SANABRIA MORENO | R21: JUAN PABLO SANABRIA MORENO | S21: JUAN PABLO SANABRIA MORENO | T21: Persona Natural | X21: 76000000 | Z21: 1 | AA21: 7600000 | AB21: 83600000 | AC21: 81826666 | AD21: 2021-02-04 | AE21: 2021-02-08 | AF21: 2022-01-07 | AG21: 333 | AH21: 1 | AI21: 30 | AO21: X | AR21: 0.9787878708
A22: CPS-009-2021 | B22: 2021 | C22: FDLS-CD-009-2021 | D22: https://community.secop.gov.co/Public/Tendering/OpportunityDetail/Index?noticeUID=CO1.NTC.1731689&isFromPublicArea=True&isModal=False | E22: Contratos de prestación de servicios profesionales y de apoyo a la gestión | F22: Contratación directa | G22: Prestación de servicios profesionales y de apoyo a la gestión, o para la ejecución de trabajos artísticos que sólo puedan encomendarse a determinadas personas naturales; | H22: PRESTAR LOS SERVICIOS PROFESIONALES JURÍDICOS PARA APOYAR LOS ASUNTOS PRECONTRACTUALES, CONTRACTUALES Y POST-CONTRACTUALES DEL ÁREA DE GESTIÓN DE DESARROLLO LOCAL DE LA ALCALDÍA LOCAL DE SUMAPAZ | I22: Inversión | J22: Un Nuevo Contrato Social y Ambiental para la Bogotá del Siglo XXI | K22: 57 | L22: =IF(ISERROR(VLOOKUP(K22,Proposito_programa!$C$2:$E$59,2,FALSE))," ",VLOOKUP(K22,Proposito_programa!$C$2:$E$59,2,FALSE)) -> Gestión pública local | M22: =IF(ISERROR(VLOOKUP(K22,Proposito_programa!$C$2:$E$59,3,FALSE))," ",VLOOKUP(K22,Proposito_programa!$C$2:$E$59,3,FALSE)) -> Propósito 5: Construir Bogotá - Región con gobierno abierto, transparente y ciudadanía consciente | N22: 1696 | P22: 1020796899 | Q22: MARIA CAMILA DIAZ | R22: MARÍA CAMILA DÍAZ MENCO | S22: MARÍA CAMILA DÍAZ MENCO | T22: Persona Natural | X22: 57000000 | Z22: 1 | AA22: 5700000 | AB22: 62700000 | AC22: 61940000 | AD22: 2021-02-03 | AE22: 2021-02-05 | AF22: 2022-01-04 | AG22: 333 | AH22: 1 | AI22: 30 | AO22: X | AR22: 0.9878787879
A23: CPS-010-2021 | B23: 2021 | C23: FDLS-CD-009-2021 | D23: https://community.secop.gov.co/Public/Tendering/OpportunityDetail/Index?noticeUID=CO1.NTC.1731689&isFromPublicArea=True&isModal=False | E23: Contratos de prestación de servicios profesionales y de apoyo a la gestión | F23: Contratación directa | G23: Prestación de servicios profesionales y de apoyo a la gestión, o para la ejecución de trabajos artísticos que sólo puedan encomendarse a determinadas personas naturales; | H23: PRESTAR LOS SERVICIOS PROFESIONALES JURÍDICOS PARA APOYAR LOS ASUNTOS PRECONTRACTUALES, CONTRACTUALES Y POST-CONTRACTUALES DEL ÁREA DE GESTIÓN DE DESARROLLO LOCAL DE LA ALCALDÍA LOCAL DE SUMAPAZ | I23: Inversión | J23: Un Nuevo Contrato Social y Ambiental para la Bogotá del Siglo XXI | K23: 57 | L23: =IF(ISERROR(VLOOKUP(K23,Proposito_programa!$C$2:$E$59,2,FALSE))," ",VLOOKUP(K23,Proposito_programa!$C$2:$E$59,2,FALSE)) -> Gestión pública local | M23: =IF(ISERROR(VLOOKUP(K23,Proposito_programa!$C$2:$E$59,3,FALSE))," ",VLOOKUP(K23,Proposito_programa!$C$2:$E$59,3,FALSE)) -> Propósito 5: Construir Bogotá - Región con gobierno abierto, transparente y ciudadanía consciente | N23: 1696 | P23: 51657917 | Q23: MARTHA LUCIA SUAREZ MORALES | R23: MARTHA LUCIA SUAREZ MORALES | S23: MARTHA LUCIA SUAREZ MORALES | T23: Persona Natural | X23: 57000000 | AB23: 57000000 | AC23: 50540000 | AD23: 2021-02-03 | AE23: 2021-02-05 | AF23: 2021-12-04 | AG23: 302 | AP23: X | AR23: 0.8866666667
A24: CPS-011-2021 | B24: 2021 | C24: FDLS-CD-009-2021 | D24: https://community.secop.gov.co/Public/Tendering/OpportunityDetail/Index?noticeUID=CO1.NTC.1731689&isFromPublicArea=True&isModal=False | E24: Contratos de prestación de servicios profesionales y de apoyo a la gestión | F24: Contratación directa | G24: Prestación de servicios profesionales y de apoyo a la gestión, o para la ejecución de trabajos artísticos que sólo puedan encomendarse a determinadas personas naturales; | H24: PRESTAR LOS SERVICIOS PROFESIONALES JURÍDICOS PARA APOYAR LOS ASUNTOS PRECONTRACTUALES, CONTRACTUALES Y POST-CONTRACTUALES DEL ÁREA DE GESTIÓN DE DESARROLLO LOCAL DE LA ALCALDÍA LOCAL DE SUMAPAZ | I24: Inversión | J24: Un Nuevo Contrato Social y Ambiental para la Bogotá del Siglo XXI | K24: 57 | L24: =IF(ISERROR(VLOOKUP(K24,Proposito_programa!$C$2:$E$59,2,FALSE))," ",VLOOKUP(K24,Proposito_programa!$C$2:$E$59,2,FALSE)) -> Gestión pública local | M24: =IF(ISERROR(VLOOKUP(K24,Proposito_programa!$C$2:$E$59,3,FALSE))," ",VLOOKUP(K24,Proposito_programa!$C$2:$E$59,3,FALSE)) -> Propósito 5: Construir Bogotá - Región con gobierno abierto, transparente y ciudadanía consciente | N24: 1696 | P24: 1023888264 | Q24: MONICA DEL PILAR PARRA RANGEL | R24: MONICA DEL PILAR PARRA RANGEL | S24: MONICA DEL PILAR PARRA RANGEL | T24: Persona Natural | X24: 57000000 | AB24: 57000000 | AC24: 50540000 | AD24: 2021-02-03 | AE24: 2021-02-05 | AF24: 2021-12-04 | AG24: 302 | AP24: X | AR24: 0.8866666667
A25: CPS-012-2021 | B25: 2021 | C25: FDLS-CD-010-2021 | D25: https://community.secop.gov.co/Public/Tendering/OpportunityDetail/Index?noticeUID=CO1.NTC.1735039&isFromPublicArea=True&isModal=False | E25: Contratos de prestación de servicios profesionales y de apoyo a la gestión | F25: Contratación directa | G25: Prestación de servicios profesionales y de apoyo a la gestión, o para la ejecución de trabajos artísticos que sólo puedan encomendarse a determinadas personas naturales; | H25: PRESTAR LOS SERVICIOS PROFESIONALES ESPECIALIZADOS PARA APOYAR LA PLANEACIÓN, SEGUIMIENTO, EJECUCIÓN Y CONTROL DE LOS PROYECTOS AMBIENTALES Y DE DESARROLLO RURAL SOSTENIBLE, DE LA ALCALDÍA LOCAL DE SUMAPAZ | I25: Inversión | J25: Un Nuevo Contrato Social y Ambiental para la Bogotá del Siglo XXI | K25: 23 | L25: =IF(ISERROR(VLOOKUP(K25,Proposito_programa!$C$2:$E$59,2,FALSE))," ",VLOOKUP(K25,Proposito_programa!$C$2:$E$59,2,FALSE)) -> Bogotá rural | M25: =IF(ISERROR(VLOOKUP(K25,Proposito_programa!$C$2:$E$59,3,FALSE))," ",VLOOKUP(K25,Proposito_programa!$C$2:$E$59,3,FALSE)) -> Propósito 1: Hacer un nuevo contrato social para incrementar la inclusión social, productiva y política | N25: 1634 | P25: 52155157 | Q25: DALGY DANIT LEAL OJEDA | R25: DALGY DANIT LEAL OJEDA | S25: DALGY DANIT LEAL OJEDA | T25: Persona Natural | X25: 76000000 | Z25: 1 | AA25: 7600000 | AB25: 83600000 | AC25: 66626667 | AD25: 2021-02-04 | AE25: 2021-02-08 | AF25: 2022-01-07 | AG25: 333 | AH25: 1 | AI25: 30 | AO25: X | AR25: 0.796969701
A26: CPS-13-2021 | B26: 2021 | C26: FDLS-CD-11-2021 | D26: https://community.secop.gov.co/Public/Tendering/OpportunityDetail/Index?noticeUID=CO1.NTC.1734259&isFromPublicArea=True&isModal=False | E26: Contratos de prestación de servicios profesionales y de apoyo a la gestión | F26: Contratación directa | G26: Prestación de servicios profesionales y de apoyo a la gestión, o para la ejecución de trabajos artísticos que sólo puedan encomendarse a determinadas personas naturales; | H26: PRESTAR LOS SERVICIOS PROFESIONALES ESPECIALIZADOS PARA APOYAR LOS ASUNTOS LEGALES, CONTRACTUALES Y POST-CONTRACTUALES DE LA ALCALDÍA LOCAL DE SUMAPAZ | I26: Inversión | J26: Un Nuevo Contrato Social y Ambiental para la Bogotá del Siglo XXI | K26: 57 | L26: =IF(ISERROR(VLOOKUP(K26,Proposito_programa!$C$2:$E$59,2,FALSE))," ",VLOOKUP(K26,Proposito_programa!$C$2:$E$59,2,FALSE)) -> Gestión pública local | M26: =IF(ISERROR(VLOOKUP(K26,Proposito_programa!$C$2:$E$59,3,FALSE))," ",VLOOKUP(K26,Proposito_programa!$C$2:$E$59,3,FALSE)) -> Propósito 5: Construir Bogotá - Región con gobierno abierto, transparente y ciudadanía consciente | N26: 1696 | P26: 52380146 | Q26: PATRICIA ABRIL OSPITIA | R26: PATRICIA ABRIL OSPITIA | S26: PATRICIA ABRIL OSPITIA | T26: Persona Natural | X26: 70000000 | Z26: 1 | AA26: 7000000 | AB26: 77000000 | AC26: 75366667 | AD26: 2021-02-04 | AE26: 2021-02-08 | AF26: 2022-01-07 | AG26: 333 | AH26: 1 | AI26: 30 | AO26: X | AR26: 0.9787878831
A27: CPS-014-2021 | B27: 2021 | C27: FDLS-CD-012-2021 | D27: https://community.secop.gov.co/Public/Tendering/OpportunityDetail/Index?noticeUID=CO1.NTC.1736032&isFromPublicArea=True&isModal=False | E27: Contratos de prestación de servicios profesionales y de apoyo a la gestión | F27: Contratación directa | G27: Prestación de servicios profesionales y de apoyo a la gestión, o para la ejecución de trabajos artísticos que sólo puedan encomendarse a determinadas personas naturales; | H27: PRESTAR SUS SERVICIOS PROFESIONALES COMO ADMINISTRADOR DE LA RED DE LA ALCALDÍA LOCAL DE SUMAPAZ Y REALIZAR LA ACTUALIZACIÓN DE LOS DATOS EN LOS DIFERENTES SISTEMAS DE INFORMACIÓN | I27: Inversión | J27: Un Nuevo Contrato Social y Ambiental para la Bogotá del Siglo XXI | K27: 57 | L27: =IF(ISERROR(VLOOKUP(K27,Proposito_programa!$C$2:$E$59,2,FALSE))," ",VLOOKUP(K27,Proposito_programa!$C$2:$E$59,2,FALSE)) -> Gestión pública local | M27: =IF(ISERROR(VLOOKUP(K27,Proposito_programa!$C$2:$E$59,3,FALSE))," ",VLOOKUP(K27,Proposito_programa!$C$2:$E$59,3,FALSE)) -> Propósito 5: Construir Bogotá - Región con gobierno abierto, transparente y ciudadanía consciente | N27: 1696 | P27: 77183787 | Q27: YESID AMARIS OSPINO | R27: YESID AMARIS OSPINO | S27: YESID AMARIS OSPINO | T27: Persona Natural | X27: 68000000 | AB27: 68000000 | AC27: 68000000 | AD27: 2021-02-05 | AE27: 2021-02-08 | AF27: 2021-12-07 | AG27: 302 | AP27: X | AR27: 1
A28: CPS-015-2021 | B28: 2021 | C28: FDLS-CD-013-2021 | D28: https://community.secop.gov.co/Public/Tendering/OpportunityDetail/Index?noticeUID=CO1.NTC.1739939&isFromPublicArea=True&isModal=False | E28: Contratos de prestación de servicios profesionales y de apoyo a la gestión | F28: Contratación directa | G28: Prestación de servicios profesionales y de apoyo a la gestión, o para la ejecución de trabajos artísticos que sólo puedan encomendarse a determinadas personas naturales; | H28: PRESTAR LOS SERVICIOS PROFESIONALES PARA APOYAR LA PLANEACIÓN, EJECUCIÓN Y SEGUIMIENTO DE LOS PROYECTOS DE INVERSIÓN EN TEMAS DE EDUCACIÓN QUE EJECUTE EL FONDO DE DESARROLLO LOCAL DE SUMAPAZ | I28: Inversión | J28: Un Nuevo Contrato Social y Ambiental para la Bogotá del Siglo XXI | K28: 18 | L28: =IF(ISERROR(VLOOKUP(K28,Proposito_programa!$C$2:$E$59,2,FALSE))," ",VLOOKUP(K28,Proposito_programa!$C$2:$E$59,2,FALSE)) -> Cierre de brechas para la inclusión productiva urbano rural | M28: =IF(ISERROR(VLOOKUP(K28,Proposito_programa!$C$2:$E$59,3,FALSE))," ",VLOOKUP(K28,Proposito_programa!$C$2:$E$59,3,FALSE)) -> Propósito 1: Hacer un nuevo contrato social para incrementar la inclusión social, productiva y política | N28: 1587 | P28: 9770381 | Q28: JULIAN ANDRES CARVAJAL ZAMORA | R28: JULIÁN ANDRES CARVAJAL ZAMORA | S28: JULIÁN ANDRES CARVAJAL ZAMORA | T28: Persona Natural | X28: 60000000 | Z28: 1 | AA28: 6000000 | AB28: 66000000 | AC28: 64200000 | AD28: 2021-02-05 | AE28: 2021-02-10 | AF28: 2022-01-09 | AG28: 333 | AH28: 1 | AI28: 30 | AO28: X | AR28: 0.9727272727
A29: CPS-016-2021 | B29: 2021 | C29: FDLS-CD-014-2021 | D29: https://community.secop.gov.co/Public/Tendering/OpportunityDetail/Index?noticeUID=CO1.NTC.1740019&isFromPublicArea=True&isModal=False | E29: Contratos de prestación de servicios profesionales y de apoyo a la gestión | F29: Contratación directa | G29: Prestación de servicios profesionales y de apoyo a la gestión, o para la ejecución de trabajos artísticos que sólo puedan encomendarse a determinadas personas naturales; | H29: PRESTAR LOS SERVICIOS PROFESIONALES PARA APOYAR LOS ASUNTOS JURÍDICOS EN LOS PROCESOS CONTRACTUALES Y POST-CONTRACTUALES DE LA ALCALDÍA LOCAL DE SUMAPAZ | I29: Inversión | J29: Un Nuevo Contrato Social y Ambiental para la Bogotá del Siglo XXI | K29: 57 | L29: =IF(ISERROR(VLOOKUP(K29,Proposito_programa!$C$2:$E$59,2,FALSE))," ",VLOOKUP(K29,Proposito_programa!$C$2:$E$59,2,FALSE)) -> Gestión pública local | M29: =IF(ISERROR(VLOOKUP(K29,Proposito_programa!$C$2:$E$59,3,FALSE))," ",VLOOKUP(K29,Proposito_programa!$C$2:$E$59,3,FALSE)) -> Propósito 5: Construir Bogotá - Región con gobierno abierto, transparente y ciudadanía consciente | N29: 1696 | P29: 1019088970 | Q29: KAREN VIVIANA GONZALEZ | R29: KAREN VIVIANA GONZÁLEZ | S29: KAREN VIVIANA GONZÁLEZ | T29: Persona Natural | X29: 60000000 | Z29: 1 | AA29: 6000000 | AB29: 66000000 | AC29: 58400000 | AD29: 2021-02-05 | AE29: 2021-02-09 | AF29: 2022-01-08 | AG29: 333 | AH29: 1 | AI29: 30 | AO29: X | AR29: 0.8848484848
A30: CPS-017-2021 | B30: 2021 | C30: FDLS-CD-015-2021 | D30: https://community.secop.gov.co/Public/Tendering/OpportunityDetail/Index?noticeUID=CO1.NTC.1748637&isFromPublicArea=True&isModal=False | E30: Contratos de prestación de servicios profesionales y de apoyo a la gestión | F30: Contratación directa | G30: Prestación de servicios profesionales y de apoyo a la gestión, o para la ejecución de trabajos artísticos que sólo puedan encomendarse a determinadas personas naturales; | H30: PRESTAR LOS SERVICIOS DE APOYO ADMINISTRATIVO AL ÁREA DE GESTIÓN DE DESARROLLO LOCAL EN LOS PROCESOS CONTRACTUALES DE LA ALCALDÍA LOCAL DE SUMAPAZ | I30: Inversión | J30: Un Nuevo Contrato Social y Ambiental para la Bogotá del Siglo XXI | K30: 57 | L30: =IF(ISERROR(VLOOKUP(K30,Proposito_programa!$C$2:$E$59,2,FALSE))," ",VLOOKUP(K30,Proposito_programa!$C$2:$E$59,2,FALSE)) -> Gestión pública local | M30: =IF(ISERROR(VLOOKUP(K30,Proposito_programa!$C$2:$E$59,3,FALSE))," ",VLOOKUP(K30,Proposito_programa!$C$2:$E$59,3,FALSE)) -> Propósito 5: Construir Bogotá - Región con gobierno abierto, transparente y ciudadanía consciente | N30: 1696 | P30: 1020839818 | Q30: PAULA NATALIA FARFAN PAEZ | R30: PAULA NATALIA FARFAN PAEZ | S30: PAULA NATALIA FARFAN PAEZ | T30: Persona Natural | X30: 7800000 | AB30: 7800000 | AC30: 7800000 | AD30: 2021-02-09 | AE30: 2021-02-10 | AF30: 2021-05-09 | AG30: 88 | AP30: X | AR30: 1
A31: CPS-018-2021 | B31: 2021 | C31: FDLS-CD-016-2021 | D31: https://community.secop.gov.co/Public/Tendering/OpportunityDetail/Index?noticeUID=CO1.NTC.1751650&isFromPublicArea=True&isModal=False | E31: Contratos de prestación de servicios profesionales y de apoyo a la gestión | F31: Contratación directa | G31: Prestación de servicios profesionales y de apoyo a la gestión, o para la ejecución de trabajos artísticos que sólo puedan encomendarse a determinadas personas naturales; | H31: PRESTAR LOS SERVICIOS COMO CONDUCTOR DE VEHÍCULOS LIVIANOS DE PROPIEDAD O TENENCIA DEL FONDO DE DESARROLLO LOCAL DE SUMAPAZ | I31: Inversión | J31: Un Nuevo Contrato Social y Ambiental para la Bogotá del Siglo XXI | K31: 57 | L31: =IF(ISERROR(VLOOKUP(K31,Proposito_programa!$C$2:$E$59,2,FALSE))," ",VLOOKUP(K31,Proposito_programa!$C$2:$E$59,2,FALSE)) -> Gestión pública local | M31: =IF(ISERROR(VLOOKUP(K31,Proposito_programa!$C$2:$E$59,3,FALSE))," ",VLOOKUP(K31,Proposito_programa!$C$2:$E$59,3,FALSE)) -> Propósito 5: Construir Bogotá - Región con gobierno abierto, transparente y ciudadanía consciente | N31: 1696 | P31: 1032656249 | Q31: ANGEL RODRIGO MUÑOZ | R31: ANGEL RODRIGO MUÑOZ | S31: ANGEL RODRIGO MUÑOZ | T31: Persona Natural | X31: 25500000 | Z31: 1 | AA31: 2550000 | AB31: 28050000 | AC31: 27200000 | AD31: 2021-02-10 | AE31: 2021-02-11 | AF31: 2022-01-10 | AG31: 333 | AH31: 1 | AI31: 30 | AO31: X | AR31: 0.9696969697
A32: CPS-019-2021 | B32: 2021 | C32: FDLS-CD-016-2021 | D32: https://community.secop.gov.co/Public/Tendering/OpportunityDetail/Index?noticeUID=CO1.NTC.1751650&isFromPublicArea=True&isModal=False | E32: Contratos de prestación de servicios profesionales y de apoyo a la gestión | F32: Contratación directa | G32: Prestación de servicios profesionales y de apoyo a la gestión, o para la ejecución de trabajos artísticos que sólo puedan encomendarse a determinadas personas naturales; | H32: PRESTAR LOS SERVICIOS COMO CONDUCTOR DE VEHÍCULOS LIVIANOS DE PROPIEDAD O TENENCIA DEL FONDO DE DESARROLLO LOCAL DE SUMAPAZ | I32: Inversión | J32: Un Nuevo Contrato Social y Ambiental para la Bogotá del Siglo XXI | K32: 57 | L32: =IF(ISERROR(VLOOKUP(K32,Proposito_programa!$C$2:$E$59,2,FALSE))," ",VLOOKUP(K32,Proposito_programa!$C$2:$E$59,2,FALSE)) -> Gestión pública local | M32: =IF(ISERROR(VLOOKUP(K32,Proposito_programa!$C$2:$E$59,3,FALSE))," ",VLOOKUP(K32,Proposito_programa!$C$2:$E$59,3,FALSE)) -> Propósito 5: Construir Bogotá - Región con gobierno abierto, transparente y ciudadanía consciente | N32: 1696 | P32: 1032656045 | Q32: EDUARDO DIMATE RICO | R32: EDUARDO DIMATE RICO | S32: EDUARDO DIMATE RICO | T32: Persona Natural | X32: 25500000 | Z32: 1 | AA32: 2550000 | AB32: 28050000 | AC32: 24650000 | AD32: 2021-02-10 | AE32: 2021-02-11 | AF32: 2022-01-10 | AG32: 333 | AH32: 1 | AI32: 30 | AO32: X | AR32: 0.8787878788
A33: CPS-020-2021 | B33: 2021 | C33: FDLS-CD-016-2021 | D33: https://community.secop.gov.co/Public/Tendering/OpportunityDetail/Index?noticeUID=CO1.NTC.1751650&isFromPublicArea=True&isModal=False | E33: Contratos de prestación de servicios profesionales y de apoyo a la gestión | F33: Contratación directa | G33: Prestación de servicios profesionales y de apoyo a la gestión, o para la ejecución de trabajos artísticos que sólo puedan encomendarse a determinadas personas naturales; | H33: PRESTAR LOS SERVICIOS COMO CONDUCTOR DE VEHÍCULOS LIVIANOS DE PROPIEDAD O TENENCIA DEL FONDO DE DESARROLLO LOCAL DE SUMAPAZ | I33: Inversión | J33: Un Nuevo Contrato Social y Ambiental para la Bogotá del Siglo XXI | K33: 57 | L33: =IF(ISERROR(VLOOKUP(K33,Proposito_programa!$C$2:$E$59,2,FALSE))," ",VLOOKUP(K33,Proposito_programa!$C$2:$E$59,2,FALSE)) -> Gestión pública local | M33: =IF(ISERROR(VLOOKUP(K33,Proposito_programa!$C$2:$E$59,3,FALSE))," ",VLOOKUP(K33,Proposito_programa!$C$2:$E$59,3,FALSE)) -> Propósito 5: Construir Bogotá - Región con gobierno abierto, transparente y ciudadanía consciente | N33: 1696 | P33: 79816851 | Q33: WILLIAM EDUARDO MICAN VASQUEZ | R33: WILLIAM EDUARDO MICAN VASQUEZ | S33: WILLIAM EDUARDO MICAN VASQUEZ | T33: Persona Natural | X33: 25500000 | Z33: 1 | AA33: 2550000 | AB33: 28050000 | AC33: 27200000 | AD33: 2021-02-10 | AE33: 2021-02-11 | AF33: 2022-01-10 | AG33: 333 | AH33: 1 | AI33: 30 | AO33: X | AR33: 0.9696969697
A34: CPS-021-2021 | B34: 2021 | C34: FDLS-CD-016-2021 | D34: https://community.secop.gov.co/Public/Tendering/OpportunityDetail/Index?noticeUID=CO1.NTC.1751650&isFromPublicArea=True&isModal=False | E34: Contratos de prestación de servicios profesionales y de apoyo a la gestión | F34: Contratación directa | G34: Prestación de servicios profesionales y de apoyo a la gestión, o para la ejecución de trabajos artísticos que sólo puedan encomendarse a determinadas personas naturales; | H34: PRESTAR LOS SERVICIOS COMO CONDUCTOR DE VEHÍCULOS LIVIANOS DE PROPIEDAD O TENENCIA DEL FONDO DE DESARROLLO LOCAL DE SUMAPAZ | I34: Inversión | J34: Un Nuevo Contrato Social y Ambiental para la Bogotá del Siglo XXI | K34: 57 | L34: =IF(ISERROR(VLOOKUP(K34,Proposito_programa!$C$2:$E$59,2,FALSE))," ",VLOOKUP(K34,Proposito_programa!$C$2:$E$59,2,FALSE)) -> Gestión pública local | M34: =IF(ISERROR(VLOOKUP(K34,Proposito_programa!$C$2:$E$59,3,FALSE))," ",VLOOKUP(K34,Proposito_programa!$C$2:$E$59,3,FALSE)) -> Propósito 5: Construir Bogotá - Región con gobierno abierto, transparente y ciudadanía consciente | N34: 1696 | P34: 19271225 | Q34: MAXIMILIANO LOPEZ SUAREZ | R34: MAXIMILIANO LOPEZ SUAREZ | S34: MAXIMILIANO LOPEZ SUAREZ | T34: Persona Natural | X34: 25500000 | Z34: 1 | AA34: 2550000 | AB34: 28050000 | AC34: 27200000 | AD34: 2021-02-10 | AE34: 2021-02-11 | AF34: 2022-01-10 | AG34: 333 | AH34: 1 | AI34: 30 | AO34: X | AR34: 0.9696969697
A35: CPS-022-2021 | B35: 2021 | C35: FDLS-CD-017-2021 | D35: https://community.secop.gov.co/Public/Tendering/OpportunityDetail/Index?noticeUID=CO1.NTC.1754579&isFromPublicArea=True&isModal=False | E35: Contratos de prestación de servicios profesionales y de apoyo a la gestión | F35: Contratación directa | G35: Prestación de servicios profesionales y de apoyo a la gestión, o para la ejecución de trabajos artísticos que sólo puedan encomendarse a determinadas personas naturales; | H35: PRESTAR LOS SERVICIOS COMO CONDUCTOR DE VEHÍCULOS LIVIANOS DE PROPIEDAD O TENENCIA DEL FONDO DE DESARROLLO LOCAL DE SUMAPAZ | I35: Inversión | J35: Un Nuevo Contrato Social y Ambiental para la Bogotá del Siglo XXI | K35: 57 | L35: =IF(ISERROR(VLOOKUP(K35,Proposito_programa!$C$2:$E$59,2,FALSE))," ",VLOOKUP(K35,Proposito_programa!$C$2:$E$59,2,FALSE)) -> Gestión pública local | M35: =IF(ISERROR(VLOOKUP(K35,Proposito_programa!$C$2:$E$59,3,FALSE))," ",VLOOKUP(K35,Proposito_programa!$C$2:$E$59,3,FALSE)) -> Propósito 5: Construir Bogotá - Región con gobierno abierto, transparente y ciudadanía consciente | N35: 1696 | P35: 79632420 | Q35: MARLON RAMIREZ ROMAN | R35: MARLON RAMIREZ ROMAN | S35: MARLON RAMIREZ ROMAN | T35: Persona Natural | X35: 25500000 | Z35: 1 | AA35: 2550000 | AB35: 28050000 | AC35: 27115000 | AD35: 2021-02-10 | AE35: 2021-02-12 | AF35: 2022-01-11 | AG35: 333 | AH35: 1 | AI35: 30 | AO35: X | AR35: 0.9666666667
A36: CPS-023-2021 | B36: 2021 | C36: FDLS-CD-018-2021 | D36: https://community.secop.gov.co/Public/Tendering/OpportunityDetail/Index?noticeUID=CO1.NTC.1758306&isFromPublicArea=True&isModal=False | E36: Contratos de prestación de servicios profesionales y de apoyo a la gestión | F36: Contratación directa | G36: Prestación de servicios profesionales y de apoyo a la gestión, o para la ejecución de trabajos artísticos que sólo puedan encomendarse a determinadas personas naturales; | H36: PRESTAR SUS SERVICIOS DE APOYO ADMINISTRATIVO AL ÁREA DE GESTIÓN DE DESARROLLO LOCAL, EN LOS TEMAS RELACIONADOS CON LA INFRAESTRUCTURA VIAL DE LA ALCALDÍA LOCAL DE SUMAPAZ | I36: Inversión | J36: Un Nuevo Contrato Social y Ambiental para la Bogotá del Siglo XXI | K36: 57 | L36: =IF(ISERROR(VLOOKUP(K36,Proposito_programa!$C$2:$E$59,2,FALSE))," ",VLOOKUP(K36,Proposito_programa!$C$2:$E$59,2,FALSE)) -> Gestión pública local | M36: =IF(ISERROR(VLOOKUP(K36,Proposito_programa!$C$2:$E$59,3,FALSE))," ",VLOOKUP(K36,Proposito_programa!$C$2:$E$59,3,FALSE)) -> Propósito 5: Construir Bogotá - Región con gobierno abierto, transparente y ciudadanía consciente | N36: 1696 | P36: 1030562593 | Q36: JOHANA MARITZA GOMEZ NEUTO | R36: JOHANA MARITZA GOMEZ NEUTO | S36: JOHANA MARITZA GOMEZ NEUTO | T36: Persona Natural | X36: 39000000 | Z36: 1 | AA36: 3900000 | AB36: 42900000 | AC36: 41470000 | AD36: 2021-02-11 | AE36: 2021-02-12 | AF36: 2022-01-11 | AG36: 333 | AH36: 1 | AI36: 30 | AO36: X | AR36: 0.9666666667
A37: CPS-024-2021 | B37: 2021 | C37: FDLS-CD-019-2021 | D37: https://community.secop.gov.co/Public/Tendering/OpportunityDetail/Index?noticeUID=CO1.NTC.1758747&isFromPublicArea=True&isModal=False | E37: Contratos de prestación de servicios profesionales y de apoyo a la gestión | F37: Contratación directa | G37: Prestación de servicios profesionales y de apoyo a la gestión, o para la ejecución de trabajos artísticos que sólo puedan encomendarse a determinadas personas naturales; | H37: PRESTAR LOS SERVICIOS TÉCNICOS DE APOYO ADMINISTRATIVO AL ÁREA DE GESTIÓN DE DESARROLLO LOCAL, DE LA ALCALDÍA LOCAL DE SUMAPAZ | I37: Inversión | J37: Un Nuevo Contrato Social y Ambiental para la Bogotá del Siglo XXI | K37: 6 | L37: =IF(ISERROR(VLOOKUP(K37,Proposito_programa!$C$2:$E$59,2,FALSE))," ",VLOOKUP(K37,Proposito_programa!$C$2:$E$59,2,FALSE)) -> Sistema Distrital de Cuidado | M37: =IF(ISERROR(VLOOKUP(K37,Proposito_programa!$C$2:$E$59,3,FALSE))," ",VLOOKUP(K37,Proposito_programa!$C$2:$E$59,3,FALSE)) -> Propósito 1: Hacer un nuevo contrato social para incrementar la inclusión social, productiva y política | N37: 1643 | P37: 1069737202 | Q37: AIDA LORENA TORRES GUZMAN | R37: AIDA LORENA TORRES GUZMAN | S37: AIDA LORENA TORRES GUZMAN | T37: Persona Natural | X37: 39000000 | AB37: 39000000 | AC37: 29770000 | AD37: 2021-02-11 | AE37: 2021-02-12 | AF37: 2021-10-01 | AG37: 231 | AP37: X | AR37: 0.7633333333
A38: CPS-025-2021 | B38: 2021 | C38: FDLS-CD-020-2021 | D38: https://community.secop.gov.co/Public/Tendering/OpportunityDetail/Index?noticeUID=CO1.NTC.1767231&isFromPublicArea=True&isModal=False | E38: Contratos de prestación de servicios profesionales y de apoyo a la gestión | F38: Contratación directa | G38: Prestación de servicios profesionales y de apoyo a la gestión, o para la ejecución de trabajos artísticos que sólo puedan encomendarse a determinadas personas naturales; | H38: PRESTAR LOS SERVICIOS COMO AUXILIAR ADMINISTRATIVO AL SERVICIO DE LA JUNTA ADMINISTRADORA LOCAL DE SUMAPAZ | I38: Inversión | J38: Un Nuevo Contrato Social y Ambiental para la Bogotá del Siglo XXI | K38: 57 | L38: =IF(ISERROR(VLOOKUP(K38,Proposito_programa!$C$2:$E$59,2,FALSE))," ",VLOOKUP(K38,Proposito_programa!$C$2:$E$59,2,FALSE)) -> Gestión pública local | M38: =IF(ISERROR(VLOOKUP(K38,Proposito_programa!$C$2:$E$59,3,FALSE))," ",VLOOKUP(K38,Proposito_programa!$C$2:$E$59,3,FALSE)) -> Propósito 5: Construir Bogotá - Región con gobierno abierto, transparente y ciudadanía consciente | N38: 1696 | P38: 1022943098 | Q38: GLORIA YOLANDA DIMATE RICO | R38: GLORIA YOLANDA DIMATE RICO - CEDIDO A EDISON FERNEY MARTINEZ MOLINA | S38: GLORIA YOLANDA DIMATE RICO - CEDIDO A EDISON FERNEY MARTINEZ MOLINA | T38: Persona Natural | X38: 26000000 | AB38: 26000000 | AC38: 20799998 | AD38: 2021-02-15 | AE38: 2021-02-17 | AF38: 2021-12-16 | AG38: 302 | AJ38: 1023019730 | AK38: EDISON FERNEY MARTINEZ MOLINA | AL38: 2021-05-18 | AM38: 18113334 | AP38: X | AR38: 0.7999999231
A39: CPS-026-2021 | B39: 2021 | C39: FDLS-CD-021-2021 | D39: https://community.secop.gov.co/Public/Tendering/OpportunityDetail/Index?noticeUID=CO1.NTC.1772933&isFromPublicArea=True&isModal=False | E39: Contratos de prestación de servicios profesionales y de apoyo a la gestión | F39: Contratación directa | G39: Prestación de servicios profesionales y de apoyo a la gestión, o para la ejecución de trabajos artísticos que sólo puedan encomendarse a determinadas personas naturales; | H39: PRESTAR LOS SERVICIOS PROFESIONALES PARA APOYAR LA PLANEACIÓN, EJECUCIÓN Y SEGUIMIENTO DE LOS PROYECTOS DE INVERSIÓN RELACIONADOS CON LA PLANEACIÓN PARTICIPATIVA RURAL Y DEL DESARROLLO CON ENFOQUE TERRITORIAL, DEL FONDO DE DESARROLLO LOCAL DE SUMAPAZ | I39: Inversión | J39: Un Nuevo Contrato Social y Ambiental para la Bogotá del Siglo XXI | K39: 39 | L39: =IF(ISERROR(VLOOKUP(K39,Proposito_programa!$C$2:$E$59,2,FALSE))," ",VLOOKUP(K39,Proposito_programa!$C$2:$E$59,2,FALSE)) -> Bogotá territorio de paz y atención integral a las víctimas del conflicto armado | M39: =IF(ISERROR(VLOOKUP(K39,Proposito_programa!$C$2:$E$59,3,FALSE))," ",VLOOKUP(K39,Proposito_programa!$C$2:$E$59,3,FALSE)) -> Propósito 3: Inspirar confianza y legitimidad para vivir sin miedo y ser epicentro de cultura ciudadana, paz y reconciliación | N39: 1672 | P39: 1015436119 | Q39: ANGELICA MARIA VEGA CARREÑO | R39: ANGELICA MARIA VEGA CARREÑO | S39: ANGELICA MARIA VEGA CARREÑO | T39: Persona Natural | X39: 68000000 | AB39: 68000000 | AC39: 13373333 | AD39: 2021-02-16 | AE39: 2021-03-02 | AF39: 2021-05-01 | AG39: 60 | AP39: X | AR39: 0.1966666618
A40: CPS-027-2021 | B40: 2021 | C40: FDLS-CD-022-2021 | D40: https://community.secop.gov.co/Public/Tendering/OpportunityDetail/Index?noticeUID=CO1.NTC.1774352&isFromPublicArea=True&isModal=False | E40: Contratos de prestación de servicios profesionales y de apoyo a la gestión | F40: Contratación directa | G40: Prestación de servicios profesionales y de apoyo a la gestión, o para la ejecución de trabajos artísticos que sólo puedan encomendarse a determinadas personas naturales; | H40: PRESTAR LOS SERVICIOS COMO AUXILIAR ADMINISTRATIVO AL ÁREA DE GESTIÓN DEL DESARROLLO EN LA ALCALDÍA LOCAL DE SUMAPAZ | I40: Inversión | J40: Un Nuevo Contrato Social y Ambiental para la Bogotá del Siglo XXI | K40: 57 | L40: =IF(ISERROR(VLOOKUP(K40,Proposito_programa!$C$2:$E$59,2,FALSE))," ",VLOOKUP(K40,Proposito_programa!$C$2:$E$59,2,FALSE)) -> Gestión pública local | M40: =IF(ISERROR(VLOOKUP(K40,Proposito_programa!$C$2:$E$59,3,FALSE))," ",VLOOKUP(K40,Proposito_programa!$C$2:$E$59,3,FALSE)) -> Propósito 5: Construir Bogotá - Región con gobierno abierto, transparente y ciudadanía consciente | N40: 1696 | P40: 1023019741 | Q40: CARLOS JULIO MACANA SECHAGUA | R40: CARLOS JULIO MACANA SECHAGUA | S40: CARLOS JULIO MACANA SECHAGUA | T40: Persona Natural | X40: 25000000 | Z40: 1 | AA40: 2500000 | AB40: 27500000 | AC40: 23583333 | AD40: 2021-02-17 | AE40: 2021-02-18 | AF40: 2022-01-17 | AG40: 333 | AH40: 1 | AI40: 30 | AO40: X | AR40: 0.8575757455
A41: CPS-028-2021 | B41: 2021 | C41: FDLS-CD-023-2021 | D41: https://community.secop.gov.co/Public/Tendering/OpportunityDetail/Index?noticeUID=CO1.NTC.1773362&isFromPublicArea=True&isModal=False | E41: Contratos de prestación de servicios profesionales y de apoyo a la gestión | F41: Contratación directa | G41: Prestación de servicios profesionales y de apoyo a la gestión, o para la ejecución de trabajos artísticos que sólo puedan encomendarse a determinadas personas naturales; | H41: PRESTAR LOS SERVICIOS PROFESIONALES ESPECIALIZADOS PARA APOYAR EL PROCESO DE PLANEACIÓN Y SEGUIMIENTO DE LOS PLANES, PROGRAMAS Y PROYECTOS DE INVERSIÓN DEL FONDO DE DESARROLLO LOCAL DE SUMAPAZ | I41: Inversión | J41: Un Nuevo Contrato Social y Ambiental para la Bogotá del Siglo XXI | K41: 1 | L41: =IF(ISERROR(VLOOKUP(K41,Proposito_programa!$C$2:$E$59,2,FALSE))," ",VLOOKUP(K41,Proposito_programa!$C$2:$E$59,2,FALSE)) -> Subsidios y transferencias para la equidad | M41: =IF(ISERROR(VLOOKUP(K41,Proposito_programa!$C$2:$E$59,3,FALSE))," ",VLOOKUP(K41,Proposito_programa!$C$2:$E$59,3,FALSE)) -> Propósito 1: Hacer un nuevo contrato social para incrementar la inclusión social, productiva y política | N41: 1583 | P41: 1023861638 | Q41: LUIS ALBERTO GALEANO ESCUCHA | R41: LUIS ALBERTO GALEANO ESCUCHA | S41: LUIS ALBERTO GALEANO ESCUCHA | T41: Persona Natural | X41: 76000000 | Z41: 1 | AA41: 7600000 | AB41: 83600000 | AC41: 78026667 | AD41: 2021-02-16 | AE41: 2021-02-23 | AF41: 2022-01-22 | AG41: 333 | AH41: 1 | AI41: 30 | AO41: X | AR41: 0.9333333373
A42: CPS-029-2021 | B42: 2021 | C42: FDLS-CD-024-2021 | D42: https://community.secop.gov.co/Public/Tendering/OpportunityDetail/Index?noticeUID=CO1.NTC.1774353&isFromPublicArea=True&isModal=False | E42: Contratos de prestación de servicios profesionales y de apoyo a la gestión | F42: Contratación directa | G42: Prestación de servicios profesionales y de apoyo a la gestión, o para la ejecución de trabajos artísticos que sólo puedan encomendarse a determinadas personas naturales; | H42: PRESTAR LOS SERVICIOS COMO INSPECTOR DE PARQUE AUTOMOTOR DE LA MAQUINARIA Y VEHÍCULOS PESADOS DE PROPIEDAD O TENENCIA DEL FONDO DE DESARROLLO LOCAL DE SUMAPAZ | I42: Inversión | J42: Un Nuevo Contrato Social y Ambiental para la Bogotá del Siglo XXI | K42: 57 | L42: =IF(ISERROR(VLOOKUP(K42,Proposito_programa!$C$2:$E$59,2,FALSE))," ",VLOOKUP(K42,Proposito_programa!$C$2:$E$59,2,FALSE)) -> Gestión pública local | M42: =IF(ISERROR(VLOOKUP(K42,Proposito_programa!$C$2:$E$59,3,FALSE))," ",VLOOKUP(K42,Proposito_programa!$C$2:$E$59,3,FALSE)) -> Propósito 5: Construir Bogotá - Región con gobierno abierto, transparente y ciudadanía consciente | N42: 1696 | P42: 79727160 | Q42: VICTOR MANUEL TORRES RAMIREZ | R42: VICTOR MANUEL TORRES RAMIREZ | S42: VICTOR MANUEL TORRES RAMIREZ | T42: Persona Natural | X42: 26000000 | AB42: 26000000 | AC42: 24526667 | AD42: 2021-02-17 | AE42: 2021-02-18 | AF42: 2021-12-17 | AG42: 302 | AP42: X | AR42: 0.9433333462
A43: CPS-030-2021 | B43: 2021 | C43: FDLS-CD-025-2021 | D43: https://community.secop.gov.co/Public/Tendering/OpportunityDetail/Index?noticeUID=CO1.NTC.1774772&isFromPublicArea=True&isModal=False | E43: Contratos de prestación de servicios profesionales y de apoyo a la gestión | F43: Contratación directa | G43: Prestación de servicios profesionales y de apoyo a la gestión, o para la ejecución de trabajos artísticos que sólo puedan encomendarse a determinadas personas naturales; | H43: PRESTAR LOS SERVICIOS COMO INSPECTOR DE PARQUE AUTOMOTOR DE LA MAQUINARIA Y VEHÍCULOS PESADOS DE PROPIEDAD O TENENCIA DEL FONDO DE DESARROLLO LOCAL DE SUMAPAZ | I43: Inversión | J43: Un Nuevo Contrato Social y Ambiental para la Bogotá del Siglo XXI | K43: 57 | L43: =IF(ISERROR(VLOOKUP(K43,Proposito_programa!$C$2:$E$59,2,FALSE))," ",VLOOKUP(K43,Proposito_programa!$C$2:$E$59,2,FALSE)) -> Gestión pública local | M43: =IF(ISERROR(VLOOKUP(K43,Proposito_programa!$C$2:$E$59,3,FALSE))," ",VLOOKUP(K43,Proposito_programa!$C$2:$E$59,3,FALSE)) -> Propósito 5: Construir Bogotá - Región con gobierno abierto, transparente y ciudadanía consciente | N43: 1696 | P43: 11388875 | Q43: WILLIAM OSVALDO RUBIANO TELLEZ | R43: WILLIAM OSVALDO RUBIANO TELLEZ | S43: WILLIAM OSVALDO RUBIANO TELLEZ | T43: Persona Natural | X43: 26000000 | Z43: 1 | AA43: 2600000 | AB43: 28600000 | AC43: 26000000 | AD43: 2021-02-17 | AE43: 2021-02-18 | AF43: 2022-01-17 | AG43: 333 | AH43: 1 | AI43: 30 | AO43: X | AR43: 0.9090909091
A44: CPS-031-2021 | B44: 2021 | C44: FDLS-CD-026-2021 | D44: https://community.secop.gov.co/Public/Tendering/OpportunityDetail/Index?noticeUID=CO1.NTC.1781546&isFromPublicArea=True&isModal=False | E44: Contratos de prestación de servicios profesionales y de apoyo a la gestión | F44: Contratación directa | G44: Prestación de servicios profesionales y de apoyo a la gestión, o para la ejecución de trabajos artísticos que sólo puedan encomendarse a determinadas personas naturales; | H44: PRESTAR SUS SERVICIOS DE APOYO ADMINISTRATIVO AL PARQUE AUTOMOTOR DE PROPIEDAD DEL FONDO DE DESARROLLO LOCAL DE SUMAPAZ | I44: Inversión | J44: Un Nuevo Contrato Social y Ambiental para la Bogotá del Siglo XXI | K44: 57 | L44: =IF(ISERROR(VLOOKUP(K44,Proposito_programa!$C$2:$E$59,2,FALSE))," ",VLOOKUP(K44,Proposito_programa!$C$2:$E$59,2,FALSE)) -> Gestión pública local | M44: =IF(ISERROR(VLOOKUP(K44,Proposito_programa!$C$2:$E$59,3,FALSE))," ",VLOOKUP(K44,Proposito_programa!$C$2:$E$59,3,FALSE)) -> Propósito 5: Construir Bogotá - Región con gobierno abierto, transparente y ciudadanía consciente | N44: 1696 | P44: 1023015837 | Q44: JULIAN FELIPE GUTIERREZ CARDONA | R44: JULIAN FELIPE GUTIERREZ CARDONA | S44: JULIAN FELIPE GUTIERREZ CARDONA | T44: Persona Natural | X44: 25000000 | AB44: 25000000 | AC44: 20583333 | AD44: 2021-02-18 | AE44: 2021-02-24 | AF44: 2021-12-23 | AG44: 302 | AP44: X | AR44: 0.82333332
A45: CPS-032-2021 | B45: 2021 | C45: FDLS-CD-027-2021 | D45: https://community.secop.gov.co/Public/Tendering/OpportunityDetail/Index?noticeUID=CO1.NTC.1778162&isFromPublicArea=True&isModal=False | E45: Contratos de prestación de servicios profesionales y de apoyo a la gestión | F45: Contratación directa | G45: Prestación de servicios profesionales y de apoyo a la gestión, o para la ejecución de trabajos artísticos que sólo puedan encomendarse a determinadas personas naturales; | H45: PRESTAR LOS SERVICIOS COMO CONDUCTOR DE VEHÍCULOS PESADOS DE PROPIEDAD O TENENCIA DEL FONDO DE DESARROLLO LOCAL DE SUMAPAZ | I45: Inversión | J45: Un Nuevo Contrato Social y Ambiental para la Bogotá del Siglo XXI | K45: 57 | L45: =IF(ISERROR(VLOOKUP(K45,Proposito_programa!$C$2:$E$59,2,FALSE))," ",VLOOKUP(K45,Proposito_programa!$C$2:$E$59,2,FALSE)) -> Gestión pública local | M45: =IF(ISERROR(VLOOKUP(K45,Proposito_programa!$C$2:$E$59,3,FALSE))," ",VLOOKUP(K45,Proposito_programa!$C$2:$E$59,3,FALSE)) -> Propósito 5: Construir Bogotá - Región con gobierno abierto, transparente y ciudadanía consciente | N45: 1696 | P45: 80877733 | Q45: HILBER VERGARA ROBAYO | R45: HILBER VERGARA ROBAYO | S45: HILBER VERGARA ROBAYO | T45: Persona Natural | X45: 25500000 | Z45: 1 | AA45: 2550000 | AB45: 28050000 | AC45: 26520000 | AD45: 2021-02-18 | AE45: 2021-02-19 | AF45: 2022-01-18 | AG45: 333 | AH45: 1 | AI45: 30 | AO45: X | AR45: 0.9454545455
A46: CPS-033-2021 | B46: 2021 | C46: FDLS-CD-028-2021 | D46: https://community.secop.gov.co/Public/Tendering/OpportunityDetail/Index?noticeUID=CO1.NTC.1784955&isFromPublicArea=True&isModal=False | E46: Contratos de prestación de servicios profesionales y de apoyo a la gestión | F46: Contratación directa | G46: Prestación de servicios profesionales y de apoyo a la gestión, o para la ejecución de trabajos artísticos que sólo puedan encomendarse a determinadas personas naturales; | H46: PRESTAR LOS SERVICIOS COMO CONDUCTOR DE VEHÍCULOS PESADOS DE PROPIEDAD O TENENCIA DEL FONDO DE DESARROLLO LOCAL DE SUMAPAZ | I46: Inversión | J46: Un Nuevo Contrato Social y Ambiental para la Bogotá del Siglo XXI | K46: 57 | L46: =IF(ISERROR(VLOOKUP(K46,Proposito_programa!$C$2:$E$59,2,FALSE))," ",VLOOKUP(K46,Proposito_programa!$C$2:$E$59,2,FALSE)) -> Gestión pública local | M46: =IF(ISERROR(VLOOKUP(K46,Proposito_programa!$C$2:$E$59,3,FALSE))," ",VLOOKUP(K46,Proposito_programa!$C$2:$E$59,3,FALSE)) -> Propósito 5: Construir Bogotá - Región con gobierno abierto, transparente y ciudadanía consciente | N46: 1696 | P46: 11448287 | Q46: WILLIAM ESNEIDER CHINGATE PULIDO | R46: WILLIAM ESNEIDER CHINGATE PULIDO | S46: WILLIAM ESNEIDER CHINGATE PULIDO | T46: Persona Natural | X46: 25500000 | Z46: 1 | AA46: 2550000 | AB46: 28050000 | AC46: 26095000 | AD46: 2021-02-19 | AE46: 2021-02-24 | AF46: 2022-01-23 | AG46: 333 | AH46: 1 | AI46: 30 | AO46: X | AR46: 0.9303030303
A47: CPS-034-2021 | B47: 2021 | C47: FDLS-CD-028-2021 | D47: https://community.secop.gov.co/Public/Tendering/OpportunityDetail/Index?noticeUID=CO1.NTC.1784955&isFromPublicArea=True&isModal=False | E47: Contratos de prestación de servicios profesionales y de apoyo a la gestión | F47: Contratación directa | G47: Prestación de servicios profesionales y de apoyo a la gestión, o para la ejecución de trabajos artísticos que sólo puedan encomendarse a determinadas personas naturales; | H47: PRESTAR LOS SERVICIOS COMO CONDUCTOR DE VEHÍCULOS PESADOS DE PROPIEDAD O TENENCIA DEL FONDO DE DESARROLLO LOCAL DE SUMAPAZ | I47: Inversión | J47: Un Nuevo Contrato Social y Ambiental para la Bogotá del Siglo XXI | K47: 57 | L47: =IF(ISERROR(VLOOKUP(K47,Proposito_programa!$C$2:$E$59,2,FALSE))," ",VLOOKUP(K47,Proposito_programa!$C$2:$E$59,2,FALSE)) -> Gestión pública local | M47: =IF(ISERROR(VLOOKUP(K47,Proposito_programa!$C$2:$E$59,3,FALSE))," ",VLOOKUP(K47,Proposito_programa!$C$2:$E$59,3,FALSE)) -> Propósito 5: Construir Bogotá - Región con gobierno abierto, transparente y ciudadanía consciente | N47: 1696 | P47: 1022924525 | Q47: MOISES DELGADO VERGARA | R47: MOISES DELGADO VERGARA | S47: MOISES DELGADO VERGARA | T47: Persona Natural | X47: 25500000 | Z47: 1 | AA47: 2550000 | AB47: 28050000 | AC47: 26095000 | AD47: 2021-02-19 | AE47: 2021-02-24 | AF47: 2022-01-23 | AG47: 333 | AH47: 1 | AI47: 30 | AO47: X | AR47: 0.9303030303
A48: CPS-035-2021 | B48: 2021 | C48: FDLS-CD-029-2021 | D48: https://community.secop.gov.co/Public/Tendering/OpportunityDetail/Index?noticeUID=CO1.NTC.1782522&isFromPublicArea=True&isModal=False | E48: Contratos de prestación de servicios profesionales y de apoyo a la gestión | F48: Contratación directa | G48: Prestación de servicios profesionales y de apoyo a la gestión, o para la ejecución de trabajos artísticos que sólo puedan encomendarse a determinadas personas naturales; | H48: PRESTAR LOS SERVICIOS PROFESIONALES PARA APOYAR LA PLANEACIÓN DE LOS PROYECTOS DE INVERSIÓN DEL SECTOR DE PARTICIPACIÓN QUE EJECUTE EL FONDO DE DESARROLLO LOCAL DE SUMAPAZ | I48: Inversión | J48: Un Nuevo Contrato Social y Ambiental para la Bogotá del Siglo XXI | K48: 55 | L48: =IF(ISERROR(VLOOKUP(K48,Proposito_programa!$C$2:$E$59,2,FALSE))," ",VLOOKUP(K48,Proposito_programa!$C$2:$E$59,2,FALSE)) -> Fortalecimiento de cultura ciudadana y su institucionalidad | M48: =IF(ISERROR(VLOOKUP(K48,Proposito_programa!$C$2:$E$59,3,FALSE))," ",VLOOKUP(K48,Proposito_programa!$C$2:$E$59,3,FALSE)) -> Propósito 5: Construir Bogotá - Región con gobierno abierto, transparente y ciudadanía consciente | N48: 1691 | P48: 1015415370 | Q48: ANGIE CAROLINA PRIETO ALVARADO | R48: ANGIE CAROLINA PRIETO ALVARADO | S48: ANGIE CAROLINA PRIETO ALVARADO | T48: Persona Natural | X48: 57000000 | AB48: 57000000 | AC48: 57000000 | AD48: 2021-02-18 | AE48: 2021-02-23 | AF48: 2021-12-22 | AG48: 302 | AP48: X | AR48: 1
A49: CPS-036-2021 | B49: 2021 | C49: FDLS-CD-030-2021 | D49: https://community.secop.gov.co/Public/Tendering/OpportunityDetail/Index?noticeUID=CO1.NTC.1782418&isFromPublicArea=True&isModal=False | E49: Contratos de prestación de servicios profesionales y de apoyo a la gestión | F49: Contratación directa | G49: Prestación de servicios profesionales y de apoyo a la gestión, o para la ejecución de trabajos artísticos que sólo puedan encomendarse a determinadas personas naturales; | H49: PRESTAR SUS SERVICIOS PROFESIONALES AL ÁREA DE GESTIÓN DE DESARROLLO LOCAL PARA REALIZAR LA FORMULACIÓN, EJECUCIÓN Y SEGUIMIENTO DEL PROYECTO DE INVERSIÓN " CONECTIVIDAD Y REDES DE COMUNICACIÓN " | I49: Inversión | J49: Un Nuevo Contrato Social y Ambiental para la Bogotá del Siglo XXI | K49: 54 | L49: =IF(ISERROR(VLOOKUP(K49,Proposito_programa!$C$2:$E$59,2,FALSE))," ",VLOOKUP(K49,Proposito_programa!$C$2:$E$59,2,FALSE)) -> Transformación digital y gestión de TIC para un territorio inteligente | M49: =IF(ISERROR(VLOOKUP(K49,Proposito_programa!$C$2:$E$59,3,FALSE))," ",VLOOKUP(K49,Proposito_programa!$C$2:$E$59,3,FALSE)) -> Propósito 5: Construir Bogotá - Región con gobierno abierto, transparente y ciudadanía consciente | N49: 1692 | P49: 79889352 | Q49: JESUS EDIMER RONCANCIO RONCANCIO | R49: JESUS EDIMER RONCANCIO RONCANCIO | S49: JESUS EDIMER RONCANCIO RONCANCIO | T49: Persona Natural | X49: 57000000 | Z49: 1 | AA49: 2850000 | AB49: 59850000 | AC49: 58710000 | AD49: 2021-02-18 | AE49: 2021-02-22 | AF49: 2022-01-05 | AG49: 317 | AH49: 1 | AI49: 15 | AO49: X | AR49: 0.980952381
A50: CPS-037-2021 | B50: 2021 | C50: FDLS-CD-031-2021 | D50: https://community.secop.gov.co/Public/Tendering/OpportunityDetail/Index?noticeUID=CO1.NTC.1777955&isFromPublicArea=True&isModal=False | E50: Contratos de prestación de servicios profesionales y de apoyo a la gestión | F50: Contratación directa | G50: Prestación de servicios profesionales y de apoyo a la gestión, o para la ejecución de trabajos artísticos que sólo puedan encomendarse a determinadas personas naturales; | H50: PRESTAR LOS SERVICIOS PROFESIONALES COORDINAR LA ARTICULACIÓN, ASISTENCIA Y ACOMPAÑAMIENTO DE LOS PROCESOS DE PLANEACIÓN LOCAL, PARA LA PROMOCIÓN DE LA PARTICIPACIÓN DE LAS MUJERES Y DE LA EQUIDAD DE GÉNERO, PARA MATERIALIZAR EN LA LOCALIDAD LAS ESTRATEGIAS DE TERRITORIALIZACIÓN Y TRANSVERSALIZACIÓN DE LA POLÍTICA PUBLICA DE MUJERES Y EQUIDAD DE GÉNERO, PPMYEG | I50: Inversión | J50: Un Nuevo Contrato Social y Ambiental para la Bogotá del Siglo XXI | K50: 40 | L50: =IF(ISERROR(VLOOKUP(K50,Proposito_programa!$C$2:$E$59,2,FALSE))," ",VLOOKUP(K50,Proposito_programa!$C$2:$E$59,2,FALSE)) -> Más mujeres viven una vida libre de violencias, se sienten seguras y acceden con confianza al sistema de justicia | M50: =IF(ISERROR(VLOOKUP(K50,Proposito_programa!$C$2:$E$59,3,FALSE))," ",VLOOKUP(K50,Proposito_programa!$C$2:$E$59,3,FALSE)) -> Propósito 3: Inspirar confianza y legitimidad para vivir sin miedo y ser epicentro de cultura ciudadana, paz y reconciliación | N50: 1674 | P50: 52008301 | Q50: ANA ROSA BAUTISTA RINCON | R50: ANA ROSA BAUTISTA RINCON | S50: ANA ROSA BAUTISTA RINCON | T50: Persona Natural | X50: 57000000 | AB50: 57000000 | AC50: 53010000 | AD50: 2021-02-18 | AE50: 2021-02-22 | AF50: 2021-12-21 | AG50: 302 | AP50: X | AR50: 0.93
A51: CPS-038-2021 | B51: 2021 | C51: FDLS-CD-032-2021 | D51: https://community.secop.gov.co/Public/Tendering/OpportunityDetail/Index?noticeUID=CO1.NTC.1779939&isFromPublicArea=True&isModal=False | E51: Contratos de prestación de servicios profesionales y de apoyo a la gestión | F51: Contratación directa | G51: Prestación de servicios profesionales y de apoyo a la gestión, o para la ejecución de trabajos artísticos que sólo puedan encomendarse a determinadas personas naturales; | H51: PRESTAR LOS SERVICIOS COMO CONDUCTOR DE VEHÍCULOS PESADOS DE PROPIEDAD O TENENCIA DEL FONDO DE DESARROLLO LOCAL DE SUMAPAZ | I51: Inversión | J51: Un Nuevo Contrato Social y Ambiental para la Bogotá del Siglo XXI | K51: 57 | L51: =IF(ISERROR(VLOOKUP(K51,Proposito_programa!$C$2:$E$59,2,FALSE))," ",VLOOKUP(K51,Proposito_programa!$C$2:$E$59,2,FALSE)) -> Gestión pública local | M51: =IF(ISERROR(VLOOKUP(K51,Proposito_programa!$C$2:$E$59,3,FALSE))," ",VLOOKUP(K51,Proposito_programa!$C$2:$E$59,3,FALSE)) -> Propósito 5: Construir Bogotá - Región con gobierno abierto, transparente y ciudadanía consciente | N51: 1696 | P51: 1007829181 | Q51: ELKIN ANDRES GARCIA CIFUENTES | R51: ELKIN ANDRÉS GARCIA CIFUENTES | S51: ELKIN ANDRÉS GARCIA CIFUENTES | T51: Persona Natural | X51: 25500000 | Z51: 1 | AA51: 2550000 | AB51: 28050000 | AC51: 26520000 | AD51: 2021-02-18 | AE51: 2021-02-19 | AF51: 2022-01-18 | AG51: 333 | AH51: 1 | AI51: 30 | AO51: X | AR51: 0.9454545455
A52: CPS-039-2021 | B52: 2021 | C52: FDLS-CD-032-2021 | D52: https://community.secop.gov.co/Public/Tendering/OpportunityDetail/Index?noticeUID=CO1.NTC.1779939&isFromPublicArea=True&isModal=False | E52: Contratos de prestación de servicios profesionales y de apoyo a la gestión | F52: Contratación directa | G52: Prestación de servicios profesionales y de apoyo a la gestión, o para la ejecución de trabajos artísticos que sólo puedan encomendarse a determinadas personas naturales; | H52: PRESTAR LOS SERVICIOS COMO CONDUCTOR DE VEHÍCULOS PESADOS DE PROPIEDAD O TENENCIA DEL FONDO DE DESARROLLO LOCAL DE SUMAPAZ | I52: Inversión | J52: Un Nuevo Contrato Social y Ambiental para la Bogotá del Siglo XXI | K52: 57 | L52: =IF(ISERROR(VLOOKUP(K52,Proposito_programa!$C$2:$E$59,2,FALSE))," ",VLOOKUP(K52,Proposito_programa!$C$2:$E$59,2,FALSE)) -> Gestión pública local | M52: =IF(ISERROR(VLOOKUP(K52,Proposito_programa!$C$2:$E$59,3,FALSE))," ",VLOOKUP(K52,Proposito_programa!$C$2:$E$59,3,FALSE)) -> Propósito 5: Construir Bogotá - Región con gobierno abierto, transparente y ciudadanía consciente | N52: 1696 | P52: 79819241 | Q52: CARLOS JULIO PALACIOS RAMIREZ | R52: CARLOS JULIO PALACIOS RAMIREZ | S52: CARLOS JULIO PALACIOS RAMIREZ | T52: Persona Natural | X52: 25500000 | Z52: 1 | AA52: 2550000 | AB52: 28050000 | AC52: 26520000 | AD52: 2021-02-18 | AE52: 2021-02-19 | AF52: 2022-01-18 | AG52: 333 | AH52: 1 | AI52: 30 | AO52: X | AR52: 0.9454545455
A53: CPS-040-2021 | B53: 2021 | C53: FDLS-CD-033-2021 | D53: https://community.secop.gov.co/Public/Tendering/OpportunityDetail/Index?noticeUID=CO1.NTC.1795207&isFromPublicArea=True&isModal=False | E53: Contratos de prestación de servicios profesionales y de apoyo a la gestión | F53: Contratación directa | G53: Prestación de servicios profesionales y de apoyo a la gestión, o para la ejecución de trabajos artísticos que sólo puedan encomendarse a determinadas personas naturales; | H53: PRESTAR LOS SERVICIOS PROFESIONALES AL ÁREA DE GESTIÓN DE DESARROLLO LOCAL PARA APOYAR LA PLANEACIÓN, EJECUCIÓN Y SEGUIMIENTO A LOS PROYECTOS DE INVERSIÓN QUE LE SEAN DESIGNADOS | I53: Inversión | J53: Un Nuevo Contrato Social y Ambiental para la Bogotá del Siglo XXI | K53: 49 | L53: =IF(ISERROR(VLOOKUP(K53,Proposito_programa!$C$2:$E$59,2,FALSE))," ",VLOOKUP(K53,Proposito_programa!$C$2:$E$59,2,FALSE)) -> Movilidad segura, sostenible y accesible | M53: =IF(ISERROR(VLOOKUP(K53,Proposito_programa!$C$2:$E$59,3,FALSE))," ",VLOOKUP(K53,Proposito_programa!$C$2:$E$59,3,FALSE)) -> Propósito 4: Hacer de Bogotá Región un modelo de movilidad multimodal, incluyente y sostenible | N53: 1688 | P53: 1014239239 | Q53: ANAMARIA GOMEZ COLMENARES | R53: ANAMARIA GOMEZ COLMENARES | S53: ANAMARIA GOMEZ COLMENARES | T53: Persona Natural | X53: 57000000 | Z53: 1 | AA53: 2850000 | AB53: 59850000 | AC53: 58140000 | AD53: 2021-02-23 | AE53: 2021-02-25 | AF53: 2022-01-08 | AG53: 317 | AH53: 1 | AI53: 15 | AO53: X | AR53: 0.9714285714
A54: CPS-041-2021 | B54: 2021 | C54: FDLS-CD-034-2021 | D54: https://community.secop.gov.co/Public/Tendering/OpportunityDetail/Index?noticeUID=CO1.NTC.1787959&isFromPublicArea=True&isModal=False | E54: Contratos de prestación de servicios profesionales y de apoyo a la gestión | F54: Contratación directa | G54: Prestación de servicios profesionales y de apoyo a la gestión, o para la ejecución de trabajos artísticos que sólo puedan encomendarse a determinadas personas naturales; | H54: PRESTAR LOS SERVICIOS PROFESIONALES PARA APOYAR TÉCNICAMENTE A LOS RESPONSABLES E INTEGRANTES DE LOS PROCESOS EN LA IMPLEMENTACIÓN DE HERRAMIENTAS DE GESTIÓN, SIGUIENDO LOS LINEAMIENTOS METODOLÓGICOS ESTABLECIDOS POR LA OFICINA ASESORA DE PLANEACIÓN DE LA SECRETARÍA DISTRITAL DE GOBIERNO | I54: Inversión | J54: Un Nuevo Contrato Social y Ambiental para la Bogotá del Siglo XXI | K54: 57 | L54: =IF(ISERROR(VLOOKUP(K54,Proposito_programa!$C$2:$E$59,2,FALSE))," ",VLOOKUP(K54,Proposito_programa!$C$2:$E$59,2,FALSE)) -> Gestión pública local | M54: =IF(ISERROR(VLOOKUP(K54,Proposito_programa!$C$2:$E$59,3,FALSE))," ",VLOOKUP(K54,Proposito_programa!$C$2:$E$59,3,FALSE)) -> Propósito 5: Construir Bogotá - Región con gobierno abierto, transparente y ciudadanía consciente | N54: 1696 | P54: 52211430 | Q54: GLORIA ESPERANZA PIRAJON TEJEDOR | R54: GLORIA ESPERANZA PIRAJON TEJEDOR | S54: GLORIA ESPERANZA PIRAJON TEJEDOR | T54: Persona Natural | X54: 65000000 | Z54: 1 | AA54: 3250000 | AB54: 68250000 | AC54: 66300000 | AD54: 2021-02-22 | AE54: 2021-02-25 | AF54: 2022-01-08 | AG54: 317 | AH54: 1 | AI54: 15 | AO54: X | AR54: 0.9714285714
A55: CPS-042-2021 | B55: 2021 | C55: FDLS-CD-036-2021 | D55: https://community.secop.gov.co/Public/Tendering/OpportunityDetail/Index?noticeUID=CO1.NTC.1788063&isFromPublicArea=True&isModal=False | E55: Contratos de prestación de servicios profesionales y de apoyo a la gestión | F55: Contratación directa | G55: Prestación de servicios profesionales y de apoyo a la gestión, o para la ejecución de trabajos artísticos que sólo puedan encomendarse a determinadas personas naturales; | H55: PRESTAR LOS SERVICIOS PROFESIONALES PARA APOYAR JURÍDICAMENTE LAS RESPUESTAS A LAS SOLICITUDES RADICADAS POR LOS ENTES DE CONTROL, CONCEJO DE BOGOTÁ Y TEMAS RELACIONADOS CON PLANES DE MEJORAMIENTO DE LA ALCALDÍA LOCAL DE SUMAPAZ. | I55: Inversión | J55: Un Nuevo Contrato Social y Ambiental para la Bogotá del Siglo XXI | K55: 57 | L55: =IF(ISERROR(VLOOKUP(K55,Proposito_programa!$C$2:$E$59,2,FALSE))," ",VLOOKUP(K55,Proposito_programa!$C$2:$E$59,2,FALSE)) -> Gestión pública local | M55: =IF(ISERROR(VLOOKUP(K55,Proposito_programa!$C$2:$E$59,3,FALSE))," ",VLOOKUP(K55,Proposito_programa!$C$2:$E$59,3,FALSE)) -> Propósito 5: Construir Bogotá - Región con gobierno abierto, transparente y ciudadanía consciente | N55: 1696 | P55: 52516975 | Q55: NINI JOHANA GUTIERREZ TORRES | R55: NINI JOHANA GUTIERREZ TORRES | S55: NINI JOHANA GUTIERREZ TORRES | T55: Persona Natural | X55: 43500000 | AB55: 43500000 | AC55: 10440000 | AD55: 2021-02-22 | AE55: 2021-02-23 | AF55: 2021-05-05 | AG55: 71 | AP55: X | AR55: 0.24
A56: CPS-043-2021 | B56: 2021 | C56: FDLS-CD-037-2021 | D56: https://community.secop.gov.co/Public/Tendering/OpportunityDetail/Index?noticeUID=CO1.NTC.1785036&isFromPublicArea=True&isModal=False | E56: Contratos de prestación de servicios profesionales y de apoyo a la gestión | F56: Contratación directa | G56: Prestación de servicios profesionales y de apoyo a la gestión, o para la ejecución de trabajos artísticos que sólo puedan encomendarse a determinadas personas naturales; | H56: PRESTAR LOS SERVICIOS COMO AUXILIAR ADMINISTRATIVO QUE APOYE LAS ACTIVIDADES DE PARQUE AUTOMOTOR EN LA ALCALDÍA LOCAL DE SUMAPAZ | I56: Inversión | J56: Un Nuevo Contrato Social y Ambiental para la Bogotá del Siglo XXI | K56: 57 | L56: =IF(ISERROR(VLOOKUP(K56,Proposito_programa!$C$2:$E$59,2,FALSE))," ",VLOOKUP(K56,Proposito_programa!$C$2:$E$59,2,FALSE)) -> Gestión pública local | M56: =IF(ISERROR(VLOOKUP(K56,Proposito_programa!$C$2:$E$59,3,FALSE))," ",VLOOKUP(K56,Proposito_programa!$C$2:$E$59,3,FALSE)) -> Propósito 5: Construir Bogotá - Región con gobierno abierto, transparente y ciudadanía consciente | N56: 1696 | P56: 52558577 | Q56: GLORIA ISABEL AGUILERA ACOSTA | R56: GLORIA ISABEL AGUILERA ACOSTA | S56: GLORIA ISABEL AGUILERA ACOSTA | T56: Persona Natural | X56: 39000000 | AB56: 39000000 | AC56: 39000000 | AD56: 2021-02-19 | AE56: 2021-02-19 | AF56: 2021-12-18 | AG56: 302 | AP56: X | AR56: 1
A57: CPS-044-2021 | B57: 2021 | C57: FDLS-CD-038-2021 | D57: https://community.secop.gov.co/Public/Tendering/OpportunityDetail/Index?noticeUID=CO1.NTC.1784980&isFromPublicArea=True&isModal=False | E57: Contratos de prestación de servicios profesionales y de apoyo a la gestión | F57: Contratación directa | G57: Prestación de servicios profesionales y de apoyo a la gestión, o para la ejecución de trabajos artísticos que sólo puedan encomendarse a determinadas personas naturales; | H57: PRESTAR LOS SERVICIOS COMO AUXILIAR ADMINISTRATIVO PARA LA CORREGIDURÍA DE SAN JUAN | I57: Inversión | J57: Un Nuevo Contrato Social y Ambiental para la Bogotá del Siglo XXI | K57: 57 | L57: =IF(ISERROR(VLOOKUP(K57,Proposito_programa!$C$2:$E$59,2,FALSE))," ",VLOOKUP(K57,Proposito_programa!$C$2:$E$59,2,FALSE)) -> Gestión pública local | M57: =IF(ISERROR(VLOOKUP(K57,Proposito_programa!$C$2:$E$59,3,FALSE))," ",VLOOKUP(K57,Proposito_programa!$C$2:$E$59,3,FALSE)) -> Propósito 5: Construir Bogotá - Región con gobierno abierto, transparente y ciudadanía consciente | N57: 1696 | P57: 1016031740 | Q57: DEICY AMPARO MORALES TORRES | R57: DEICY AMPARO MORALES TORRES | S57: DEICY AMPARO MORALES TORRES | T57: Persona Natural | X57: 23000000 | AB57: 23000000 | AC57: 21236662 | AD57: 2021-02-19 | AE57: 2021-02-24 | AF57: 2021-12-23 | AG57: 302 | AP57: X | AR57: 0.9233331304
A58: CPS-045-2021 | B58: 2021 | C58: FDLS-CD-039-2021 | D58: https://community.secop.gov.co/Public/Tendering/OpportunityDetail/Index?noticeUID=CO1.NTC.1786925&isFromPublicArea=True&isModal=False | E58: Contratos de prestación de servicios profesionales y de apoyo a la gestión | F58: Contratación directa | G58: Prestación de servicios profesionales y de apoyo a la gestión, o para la ejecución de trabajos artísticos que sólo puedan encomendarse a determinadas personas naturales; | H58: PRESTAR LOS SERVICIOS COMO AUXILIAR ADMINISTRATIVO PARA EL CENTRO DE DOCUMENTACIÓN E INFORMACIÓN C.D.I. DE LA ALCALDÍA LOCAL DE SUMAPAZ | I58: Inversión | J58: Un Nuevo Contrato Social y Ambiental para la Bogotá del Siglo XXI | K58: 57 | L58: =IF(ISERROR(VLOOKUP(K58,Proposito_programa!$C$2:$E$59,2,FALSE))," ",VLOOKUP(K58,Proposito_programa!$C$2:$E$59,2,FALSE)) -> Gestión pública local | M58: =IF(ISERROR(VLOOKUP(K58,Proposito_programa!$C$2:$E$59,3,FALSE))," ",VLOOKUP(K58,Proposito_programa!$C$2:$E$59,3,FALSE)) -> Propósito 5: Construir Bogotá - Región con gobierno abierto, transparente y ciudadanía consciente | N58: 1696 | P58: 1014306050 | Q58: PAULA VALENTINA ARIZA HOLGUIN | R58: PAULA VALENTINA ARIZA HOLGUIN | S58: PAULA VALENTINA ARIZA HOLGUIN | T58: Persona Natural | X58: 26000000 | Z58: 1 | AA58: 1300000 | AB58: 27300000 | AC58: 26693333 | AD58: 2021-02-22 | AE58: 2021-02-23 | AF58: 2022-01-06 | AG58: 317 | AH58: 1 | AI58: 15 | AO58: X | AR58: 0.9777777656
A59: CPS-046-2021 | B59: 2021 | C59: FDLS-CD-040-2021 | D59: https://community.secop.gov.co/Public/Tendering/OpportunityDetail/Index?noticeUID=CO1.NTC.1784477&isFromPublicArea=True&isModal=False | E59: Contratos de prestación de servicios profesionales y de apoyo a la gestión | F59: Contratación directa | G59: Prestación de servicios profesionales y de apoyo a la gestión, o para la ejecución de trabajos artísticos que sólo puedan encomendarse a determinadas personas naturales; | H59: PRESTAR SUS SERVICIOS PROFESIONALES DE APOYO AL ÁREA DE GESTIÓN DE DESARROLLO LOCAL EN LOS TEMAS CONTABLES Y PRESUPUESTALES DEL FONDO DE DESARROLLO LOCAL DE SUMAPAZ | I59: Inversión | J59: Un Nuevo Contrato Social y Ambiental para la Bogotá del Siglo XXI | K59: 57 | L59: =IF(ISERROR(VLOOKUP(K59,Proposito_programa!$C$2:$E$59,2,FALSE))," ",VLOOKUP(K59,Proposito_programa!$C$2:$E$59,2,FALSE)) -> Gestión pública local | M59: =IF(ISERROR(VLOOKUP(K59,Proposito_programa!$C$2:$E$59,3,FALSE))," ",VLOOKUP(K59,Proposito_programa!$C$2:$E$59,3,FALSE)) -> Propósito 5: Construir Bogotá - Región con gobierno abierto, transparente y ciudadanía consciente | N59: 1696 | P59: 79639287 | Q59: ELKIN RAUL OSWALDO CASTAÑEDA DURAN | R59: ELKIN RAUL OSWALDO CASTAÑEDA DURAN | S59: ELKIN RAUL OSWALDO CASTAÑEDA DURAN | T59: Persona Natural | X59: 62000000 | Z59: 1 | AA59: 3100000 | AB59: 65100000 | AC59: 63653333 | AD59: 2021-02-19 | AE59: 2021-02-23 | AF59: 2022-01-06 | AG59: 317 | AH59: 1 | AI59: 15 | AO59: X | AR59: 0.9777777727
A60: CPS-047-2021 | B60: 2021 | C60: FDLS-CD-051-2021 | D60: https://community.secop.gov.co/Public/Tendering/OpportunityDetail/Index?noticeUID=CO1.NTC.1790554&isFromPublicArea=True&isModal=False | E60: Contratos de prestación de servicios profesionales y de apoyo a la gestión | F60: Contratación directa | G60: Prestación de servicios profesionales y de apoyo a la gestión, o para la ejecución de trabajos artísticos que sólo puedan encomendarse a determinadas personas naturales; | H60: PRESTAR LOS SERVICIOS PROFESIONALES PARA APOYAR LA PLANEACIÓN, SEGUIMIENTO, EJECUCIÓN Y CONTROL DE LOS PROYECTOS ENFOCADOS A LA MITIGACIÓN Y GESTIÓN DEL RIESGO Y ADAPTACIÓN AL CAMBIO CLIMÁTICO PARA LA CONSERVACIÓN DEL MEDIO AMBIENTE Y LOS RECURSOS NATURALES RENOVABLES EXISTENTES EN LA LOCALIDAD DE SUMAPAZ | I60: Inversión | J60: Un Nuevo Contrato Social y Ambiental para la Bogotá del Siglo XXI | K60: 30 | L60: =IF(ISERROR(VLOOKUP(K60,Proposito_programa!$C$2:$E$59,2,FALSE))," ",VLOOKUP(K60,Proposito_programa!$C$2:$E$59,2,FALSE)) -> Eficiencia en la atención de emergencias | M60: =IF(ISERROR(VLOOKUP(K60,Proposito_programa!$C$2:$E$59,3,FALSE))," ",VLOOKUP(K60,Proposito_programa!$C$2:$E$59,3,FALSE)) -> Propósito 2 : Cambiar Nuestros Hábitos de Vida para Reverdecer a Bogotá y Adaptarnos y Mitigar la Crisis Climática | N60: 1652 | P60: 1032656281 | Q60: WILMAR GILDARDO TORRES TORRES | S60: WILMAR GILDARDO TORRES TORRES | T60: Persona Natural | X60: 57000000 | AB60: 57000000 | AD60: 2021-02-23 | AE60: 2021-02-25 | AF60: 2021-12-23 | AG60: 302 | AP60: X | AR60: 0
A61: CPS-048-2021 | B61: 2021 | C61: FDLS-CD-041-2021 | D61: https://community.secop.gov.co/Public/Tendering/OpportunityDetail/Index?noticeUID=CO1.NTC.1783286&isFromPublicArea=True&isModal=False | E61: Contratos de prestación de servicios profesionales y de apoyo a la gestión | F61: Contratación directa | G61: Prestación de servicios profesionales y de apoyo a la gestión, o para la ejecución de trabajos artísticos que sólo puedan encomendarse a determinadas personas naturales; | H61: PRESTAR LOS SERVICIOS COMO AUXILIAR ADMINISTRATIVO PARA LA CORREGIDURÍA DE BETANIA | I61: Inversión | J61: Un Nuevo Contrato Social y Ambiental para la Bogotá del Siglo XXI | K61: 57 | L61: =IF(ISERROR(VLOOKUP(K61,Proposito_programa!$C$2:$E$59,2,FALSE))," ",VLOOKUP(K61,Proposito_programa!$C$2:$E$59,2,FALSE)) -> Gestión pública local | M61: =IF(ISERROR(VLOOKUP(K61,Proposito_programa!$C$2:$E$59,3,FALSE))," ",VLOOKUP(K61,Proposito_programa!$C$2:$E$59,3,FALSE)) -> Propósito 5: Construir Bogotá - Región con gobierno abierto, transparente y ciudadanía consciente | N61: 1696 | P61: 1032656360 | Q61: DIANA LUCIA RAMIREZ MUÑOZ | R61: DIANA LUCÍA RAMIREZ MUÑOZ | S61: DIANA LUCÍA RAMIREZ MUÑOZ | T61: Persona Natural | X61: 23000000 | AB61: 23000000 | AC61: 57000000 | AD61: 2021-02-16 | AE61: 2021-02-24 | AF61: 2021-12-24 | AG61: 302 | AP61: X | AR61: 2.47826087
A62: CPS-049-2021 | B62: 2021 | C62: FDLS-CD-042-2021 | D62: https://community.secop.gov.co/Public/Tendering/OpportunityDetail/Index?noticeUID=CO1.NTC.1797083&isFromPublicArea=True&isModal=False | E62: Contratos de prestación de servicios profesionales y de apoyo a la gestión | F62: Contratación directa | G62: Prestación de servicios profesionales y de apoyo a la gestión, o para la ejecución de trabajos artísticos que sólo puedan encomendarse a determinadas personas naturales; | H62: PRESTAR LOS SERVICIOS TÉCNICOS PARA LA OPERACIÓN, SEGUIMIENTO Y CUMPLIMIENTO DE LOS PROCESOS Y PROCEDIMIENTOS DEL SERVICIO APOYOS PARA LA SEGURIDAD ECONÓMICA TIPO C, REQUERIDOS PARA EL OPORTUNO Y ADECUADO REGISTRO, CRUCE Y REPORTE DE LOS DATOS EN EL SISTEMA MISIONAL–SIRBE, QUE CONTRIBUYAN A LA GARANTÍA DE LOS DERECHOS DE LA POBLACIÓN MAYOR EN EL MARCO DE LA POLÍTICA PÚBLICA SOCIAL PARA EL ENVEJECIMIENTO Y LA VEJEZ1 EN EL DISTRITO CAPITAL A CARGO DE LA ALCALDÍA LOCAL | I62: Inversión | J62: Un Nuevo Contrato Social y Ambiental para la Bogotá del Siglo XXI | K62: 1 | L62: =IF(ISERROR(VLOOKUP(K62,Proposito_programa!$C$2:$E$59,2,FALSE))," ",VLOOKUP(K62,Proposito_programa!$C$2:$E$59,2,FALSE)) -> Subsidios y transferencias para la equidad | M62: =IF(ISERROR(VLOOKUP(K62,Proposito_programa!$C$2:$E$59,3,FALSE))," ",VLOOKUP(K62,Proposito_programa!$C$2:$E$59,3,FALSE)) -> Propósito 1: Hacer un nuevo contrato social para incrementar la inclusión social, productiva y política | N62: 1583 | P62: 1022998108 | Q62: CRISTIAN ANDRES VASQUEZ CHINGATE | R62: CRISTIAN ANDRES VASQUEZ CHINGATE | S62: CRISTIAN ANDRES VASQUEZ CHINGATE | T62: Persona Natural | X62: 31000000 | AB62: 31000000 | AC62: 21236666 | AD62: 2021-02-24 | AE62: 2021-02-25 | AF62: 2021-12-23 | AG62: 302 | AP62: X | AR62: 0.6850537419
A63: CPS-050-2021 | B63: 2021 | C63: FDLS-CD-043-2021 | D63: https://community.secop.gov.co/Public/Tendering/OpportunityDetail/Index?noticeUID=CO1.NTC.1787828&isFromPublicArea=True&isModal=False | E63: Contratos de prestación de servicios profesionales y de apoyo a la gestión | F63: Contratación directa | G63: Prestación de servicios profesionales y de apoyo a la gestión, o para la ejecución de trabajos artísticos que sólo puedan encomendarse a determinadas personas naturales; | H63: PRESTAR SUS SERVICIOS PROFESIONALES DE APOYO AL ÁREA DE GESTIÓN DEL DESARROLLO LOCAL EN ASPECTOS DE CONTRATACIÓN DEL FONDO DE DESARROLLO LOCAL DE SUMAPAZ | I63: Inversión | J63: Un Nuevo Contrato Social y Ambiental para la Bogotá del Siglo XXI | K63: 57 | L63: =IF(ISERROR(VLOOKUP(K63,Proposito_programa!$C$2:$E$59,2,FALSE))," ",VLOOKUP(K63,Proposito_programa!$C$2:$E$59,2,FALSE)) -> Gestión pública local | M63: =IF(ISERROR(VLOOKUP(K63,Proposito_programa!$C$2:$E$59,3,FALSE))," ",VLOOKUP(K63,Proposito_programa!$C$2:$E$59,3,FALSE)) -> Propósito 5: Construir Bogotá - Región con gobierno abierto, transparente y ciudadanía consciente | N63: 1696 | P63: 9695442 | Q63: LUIS EDUARDO VILLEGAS GIL | R63: LUIS EDUARDO VILLEGAS GIL | S63: LUIS EDUARDO VILLEGAS GIL | T63: Persona Natural | X63: 43500000 | AB63: 43500000 | AC63: 31000000 | AD63: 2021-02-22 | AE63: 2021-02-24 | AF63: 2021-03-26 | AG63: 30 | AP63: X | AR63: 0.7126436782
A64: CPS-051-2021 | B64: 2021 | C64: FDLS-CD-044-2021 | D64: https://community.secop.gov.co/Public/Tendering/OpportunityDetail/Index?noticeUID=CO1.NTC.1788133&isFromPublicArea=True&isModal=False | E64: Contratos de prestación de servicios profesionales y de apoyo a la gestión | F64: Contratación directa | G64: Prestación de servicios profesionales y de apoyo a la gestión, o para la ejecución de trabajos artísticos que sólo puedan encomendarse a determinadas personas naturales; | H64: PRESTAR SUS SERVICIOS COMO PROFESIONAL DE APOYO A LA GESTIÓN PARA DAR RESPUESTA A DERECHOS DE PETICIÓN Y DEMÁS REQUERIMIENTOS RELACIONADOS CON LOS PROCESOS CONTRACTUALES DEL FONDO DE DESARROLLO LOCAL DE SUMAPAZ | I64: Inversión | J64: Un Nuevo Contrato Social y Ambiental para la Bogotá del Siglo XXI | K64: 57 | L64: =IF(ISERROR(VLOOKUP(K64,Proposito_programa!$C$2:$E$59,2,FALSE))," ",VLOOKUP(K64,Proposito_programa!$C$2:$E$59,2,FALSE)) -> Gestión pública local | M64: =IF(ISERROR(VLOOKUP(K64,Proposito_programa!$C$2:$E$59,3,FALSE))," ",VLOOKUP(K64,Proposito_programa!$C$2:$E$59,3,FALSE)) -> Propósito 5: Construir Bogotá - Región con gobierno abierto, transparente y ciudadanía consciente | N64: 1696 | P64: 1020802394 | Q64: JESSICA JULIETH CARDONA JARAMILLO | R64: JESSICA JULIETH CARDONA JARAMILLO | S64: JESSICA JULIETH CARDONA JARAMILLO | T64: Persona Natural | X64: 43650000 | Z64: 1 | AA64: 2182500 | AB64: 45832500 | AC64: 4640000 | AD64: 2021-02-22 | AE64: 2021-02-24 | AF64: 2022-01-07 | AG64: 317 | AH64: 1 | AI64: 15 | AO64: X | AR64: 0.1012382043
A65: CPS-052-2021 | B65: 2021 | C65: FDLS-CD-045-2021 | D65: https://community.secop.gov.co/Public/Tendering/OpportunityDetail/Index?noticeUID=CO1.NTC.1796393&isFromPublicArea=True&isModal=False | E65: Contratos de prestación de servicios profesionales y de apoyo a la gestión | F65: Contratación directa | G65: Prestación de servicios profesionales y de apoyo a la gestión, o para la ejecución de trabajos artísticos que sólo puedan encomendarse a determinadas personas naturales; | H65: PRESTAR LOS SERVICIOS PROFESIONALES AL ÁREA DE GESTIÓN DE DESARROLLO LOCAL PARA APOYAR LA PLANEACIÓN, EJECUCIÓN Y SEGUIMIENTO A LOS PROYECTOS DE INVERSIÓN DE INFRAESTRUCTURA VIAL QUE LE SEAN DESIGNADOS | I65: Inversión | J65: Un Nuevo Contrato Social y Ambiental para la Bogotá del Siglo XXI | K65: 49 | L65: =IF(ISERROR(VLOOKUP(K65,Proposito_programa!$C$2:$E$59,2,FALSE))," ",VLOOKUP(K65,Proposito_programa!$C$2:$E$59,2,FALSE)) -> Movilidad segura, sostenible y accesible | M65: =IF(ISERROR(VLOOKUP(K65,Proposito_programa!$C$2:$E$59,3,FALSE))," ",VLOOKUP(K65,Proposito_programa!$C$2:$E$59,3,FALSE)) -> Propósito 4: Hacer de Bogotá Región un modelo de movilidad multimodal, incluyente y sostenible | N65: 1688 | P65: 1014264950 | Q65: VALENTINA MARTINEZ MUÑOZ | R65: VALENTINA MARTINEZ MUÑOZ | S65: VALENTINA MARTINEZ MUÑOZ | T65: Persona Natural | X65: 57000000 | Z65: 1 | AA65: 2850000 | AB65: 59850000 | AC65: 44668500 | AD65: 2021-02-24 | AE65: 2021-02-26 | AF65: 2022-01-09 | AG65: 317 | AH65: 1 | AI65: 15 | AO65: X | AR65: 0.7463408521
A66: CPS-053-2021 | B66: 2021 | C66: FDLS-CD-046-2021 | D66: https://community.secop.gov.co/Public/Tendering/OpportunityDetail/Index?noticeUID=CO1.NTC.1794105&isFromPublicArea=True&isModal=False | E66: Contratos de prestación de servicios profesionales y de apoyo a la gestión | F66: Contratación directa | G66: Prestación de servicios profesionales y de apoyo a la gestión, o para la ejecución de trabajos artísticos que sólo puedan encomendarse a determinadas personas naturales; | H66: PRESTAR LOS SERVICIOS PROFESIONALES PARA APOYAR LA PLANEACIÓN, LA EJECUCIÓN Y SEGUIMIENTO DE LOS PROYECTOS DE INVERSIÓN EN LOS TEMAS DE RECREACIÓN Y DEPORTE QUE EJECUTE EL FONDO DE DESARROLLO LOCAL DE SUMAPAZ | I66: Inversión | J66: Un Nuevo Contrato Social y Ambiental para la Bogotá del Siglo XXI | K66: 20 | L66: =IF(ISERROR(VLOOKUP(K66,Proposito_programa!$C$2:$E$59,2,FALSE))," ",VLOOKUP(K66,Proposito_programa!$C$2:$E$59,2,FALSE)) -> Bogotá, referente en cultura, deporte, recreación y actividad física, con parques para el desarrollo y la salud | M66: =IF(ISERROR(VLOOKUP(K66,Proposito_programa!$C$2:$E$59,3,FALSE))," ",VLOOKUP(K66,Proposito_programa!$C$2:$E$59,3,FALSE)) -> Propósito 1: Hacer un nuevo contrato social para incrementar la inclusión social, productiva y política | N66: 1590 | P66: 1016062253 | Q66: JENNY MARCELA GONZALEZ MARTIN | R66: JENNY MARCELA GONZALEZ MARTIN | S66: JENNY MARCELA GONZALEZ MARTIN | T66: Persona Natural | X66: 57000000 | AB66: 57000000 | AC66: 57950000 | AD66: 2021-02-23 | AE66: 2021-02-25 | AF66: 2021-12-24 | AG66: 302 | AP66: X | AR66: 1.016666667
A67: CPS-054-2021 | B67: 2021 | C67: FDLS-CD-047-2021 | D67: https://community.secop.gov.co/Public/Tendering/OpportunityDetail/Index?noticeUID=CO1.NTC.1792503&isFromPublicArea=True&isModal=False | E67: Contratos de prestación de servicios profesionales y de apoyo a la gestión | F67: Contratación directa | G67: Prestación de servicios profesionales y de apoyo a la gestión, o para la ejecución de trabajos artísticos que sólo puedan encomendarse a determinadas personas naturales; | H67: PRESTAR LOS SERVICIOS COMO CONDUCTOR DE VEHÍCULOS LIVIANOS DE PROPIEDAD O TENENCIA DEL FONDO DE DESARROLLO LOCAL DE SUMAPAZ | I67: Inversión | J67: Un Nuevo Contrato Social y Ambiental para la Bogotá del Siglo XXI | K67: 57 | L67: =IF(ISERROR(VLOOKUP(K67,Proposito_programa!$C$2:$E$59,2,FALSE))," ",VLOOKUP(K67,Proposito_programa!$C$2:$E$59,2,FALSE)) -> Gestión pública local | M67: =IF(ISERROR(VLOOKUP(K67,Proposito_programa!$C$2:$E$59,3,FALSE))," ",VLOOKUP(K67,Proposito_programa!$C$2:$E$59,3,FALSE)) -> Propósito 5: Construir Bogotá - Región con gobierno abierto, transparente y ciudadanía consciente | N67: 1696 | P67: 79763739 | Q67: WILLIAN FERNANDO PORRAS LOPEZ | R67: WILLIAN FERNANDO PORRAS LOPEZ | S67: WILLIAN FERNANDO PORRAS LOPEZ | T67: Persona Natural | X67: 25500000 | Z67: 1 | AA67: 2550000 | AB67: 28050000 | AC67: 52440000 | AD67: 2021-02-23 | AE67: 2021-02-25 | AF67: 2022-01-24 | AG67: 333 | AH67: 1 | AI67: 30 | AO67: X | AR67: 1.869518717
A68: CPS-055-2021 | B68: 2021 | C68: FDLS-CD-048-2021 | D68: https://community.secop.gov.co/Public/Tendering/OpportunityDetail/Index?noticeUID=CO1.NTC.1791926&isFromPublicArea=True&isModal=False | E68: Contratos de prestación de servicios profesionales y de apoyo a la gestión | F68: Contratación directa | G68: Prestación de servicios profesionales y de apoyo a la gestión, o para la ejecución de trabajos artísticos que sólo puedan encomendarse a determinadas personas naturales; | H68: PRESTAR LOS SERVICIOS PROFESIONALES PARA APOYAR LA PLANEACIÓN, SEGUIMIENTO, EJECUCIÓN Y CONTROL DE LAS ACTIVIDADES AGROPECUARIAS ENFOCADAS A PROMOVER EL DESARROLLO RURAL SOSTENIBLE, EN LA LOCALIDAD DE SUMAPAZ | I68: Inversión | J68: Un Nuevo Contrato Social y Ambiental para la Bogotá del Siglo XXI | K68: 34 | L68: =IF(ISERROR(VLOOKUP(K68,Proposito_programa!$C$2:$E$59,2,FALSE))," ",VLOOKUP(K68,Proposito_programa!$C$2:$E$59,2,FALSE)) -> Bogotá protectora de los animales | M68: =IF(ISERROR(VLOOKUP(K68,Proposito_programa!$C$2:$E$59,3,FALSE))," ",VLOOKUP(K68,Proposito_programa!$C$2:$E$59,3,FALSE)) -> Propósito 2 : Cambiar Nuestros Hábitos de Vida para Reverdecer a Bogotá y Adaptarnos y Mitigar la Crisis Climática | N68: 1666 | P68: 79381209 | Q68: WILSON REY MORENO | R68: WILSON REY MORENO | S68: WILSON REY MORENO | T68: Persona Natural | X68: 57000000 | AB68: 57000000 | AC68: 26010000 | AD68: 2021-02-23 | AE68: 2021-03-01 | AF68: 2021-12-31 | AG68: 305 | AO68: X | AR68: 0.4563157895
A69: CPS-056-2021 | B69: 2021 | C69: FDLS-CD-049-2021 | D69: https://community.secop.gov.co/Public/Tendering/OpportunityDetail/Index?noticeUID=CO1.NTC.1797447&isFromPublicArea=True&isModal=False | E69: Contratos de prestación de servicios profesionales y de apoyo a la gestión | F69: Contratación directa | G69: Prestación de servicios profesionales y de apoyo a la gestión, o para la ejecución de trabajos artísticos que sólo puedan encomendarse a determinadas personas naturales; | H69: PRESTAR SUS SERVICIOS PROFESIONALES AL ALMACÉN DEL FONDO DE DESARROLLO LOCAL DE SUMAPAZ | I69: Inversión | J69: Un Nuevo Contrato Social y Ambiental para la Bogotá del Siglo XXI | K69: 57 | L69: =IF(ISERROR(VLOOKUP(K69,Proposito_programa!$C$2:$E$59,2,FALSE))," ",VLOOKUP(K69,Proposito_programa!$C$2:$E$59,2,FALSE)) -> Gestión pública local | M69: =IF(ISERROR(VLOOKUP(K69,Proposito_programa!$C$2:$E$59,3,FALSE))," ",VLOOKUP(K69,Proposito_programa!$C$2:$E$59,3,FALSE)) -> Propósito 5: Construir Bogotá - Región con gobierno abierto, transparente y ciudadanía consciente | N69: 1696 | P69: 1053803005 | Q69: YEINER GARCIA MARIN | R69: YEINER GARCÍA MARÍN | S69: YEINER GARCÍA MARÍN | T69: Persona Natural | X69: 43650000 | AB69: 43650000 | AC69: 51300000 | AD69: 2021-02-24 | AE69: 2021-02-26 | AF69: 2021-11-10 | AG69: 257 | AP69: X | AR69: 1.175257732
A70: CPS-057-2021 | B70: 2021 | C70: FDLS-CD-050-2021 | D70: https://community.secop.gov.co/Public/Tendering/OpportunityDetail/Index?noticeUID=CO1.NTC.1802241&isFromPublicArea=True&isModal=False | E70: Contratos de prestación de servicios profesionales y de apoyo a la gestión | F70: Contratación directa | G70: Prestación de servicios profesionales y de apoyo a la gestión, o para la ejecución de trabajos artísticos que sólo puedan encomendarse a determinadas personas naturales; | H70: PRESTAR SUS SERVICIOS COMO TÉCNICO DE APOYO ADMINISTRATIVO AL ÁREA DE GESTIÓN DE DESARROLLO LOCAL EN LOS PROCESOS CONTRACTUALES DE LA ALCALDÍA LOCAL DE SUMAPAZ | I70: Inversión | J70: Un Nuevo Contrato Social y Ambiental para la Bogotá del Siglo XXI | K70: 57 | L70: =IF(ISERROR(VLOOKUP(K70,Proposito_programa!$C$2:$E$59,2,FALSE))," ",VLOOKUP(K70,Proposito_programa!$C$2:$E$59,2,FALSE)) -> Gestión pública local | M70: =IF(ISERROR(VLOOKUP(K70,Proposito_programa!$C$2:$E$59,3,FALSE))," ",VLOOKUP(K70,Proposito_programa!$C$2:$E$59,3,FALSE)) -> Propósito 5: Construir Bogotá - Región con gobierno abierto, transparente y ciudadanía consciente | N70: 1696 | P70: 53074893 | Q70: MARLEN MAZANORY PARRA BORREGO | R70: MARLEN MAZANORY PARRA BORREGO | S70: MARLEN MAZANORY PARRA BORREGO | T70: Persona Natural | X70: 38000000 | AB70: 38000000 | AC70: 35647500 | AD70: 2021-02-25 | AE70: 2021-03-02 | AF70: 2022-01-01 | AG70: 305 | AO70: X | AR70: 0.9380921053
A71: CPS-058-2021 | B71: 2021 | C71: FDLS-CD-052-2021 | D71: https://community.secop.gov.co/Public/Tendering/OpportunityDetail/Index?noticeUID=CO1.NTC.1791684&isFromPublicArea=True&isModal=False | E71: Contratos de prestación de servicios profesionales y de apoyo a la gestión | F71: Contratación directa | G71: Prestación de servicios profesionales y de apoyo a la gestión, o para la ejecución de trabajos artísticos que sólo puedan encomendarse a determinadas personas naturales; | H71: PRESTAR LOS SERVICIOS PROFESIONALES PARA APOYAR LA PLANEACIÓN, SEGUIMIENTO, EJECUCIÓN Y CONTROL DE LOS PROYECTOS ENFOCADOS A LA RESTAURACIÓN ECOLÓGICA RURAL Y, ATENDER LA GESTIÓN AMBIENTAL EXTERNA EN LA LOCALIDAD DE SUMAPAZ | I71: Inversión | J71: Un Nuevo Contrato Social y Ambiental para la Bogotá del Siglo XXI | K71: 28 | L71: =IF(ISERROR(VLOOKUP(K71,Proposito_programa!$C$2:$E$59,2,FALSE))," ",VLOOKUP(K71,Proposito_programa!$C$2:$E$59,2,FALSE)) -> Bogotá protectora de sus recursos naturales | M71: =IF(ISERROR(VLOOKUP(K71,Proposito_programa!$C$2:$E$59,3,FALSE))," ",VLOOKUP(K71,Proposito_programa!$C$2:$E$59,3,FALSE)) -> Propósito 2 : Cambiar Nuestros Hábitos de Vida para Reverdecer a Bogotá y Adaptarnos y Mitigar la Crisis Climática | N71: 1651 | P71: 1026277892 | Q71: WILLIAM ANDRES HERRERA PABON | R71: WILMAR GILDARDO TORRES TORRES | S71: WILLIAM ANDRÉS HERRERA PABÓN | T71: Persona Natural | X71: 57000000 | AB71: 57000000 | AC71: 34073333 | AD71: 2021-02-23 | AE71: 2021-03-03 | AF71: 2022-01-02 | AG71: 307 | AO71: X | AR71: 0.5977777719
A72: CPS-059-2021 | B72: 2021 | C72: FDLS-CD-053-2021 | D72: https://community.secop.gov.co/Public/Tendering/OpportunityDetail/Index?noticeUID=CO1.NTC.1792580&isFromPublicArea=True&isModal=False | E72: Contratos de prestación de servicios profesionales y de apoyo a la gestión | F72: Contratación directa | G72: Prestación de servicios profesionales y de apoyo a la gestión, o para la ejecución de trabajos artísticos que sólo puedan encomendarse a determinadas personas naturales; | H72: PRESTAR LOS SERVICIOS PROFESIONALES PARA APOYAR LA PLANEACIÓN, EJECUCIÓN Y SEGUIMIENTO DE LOS PROYECTOS DE INVERSIÓN EN TEMAS DE REACTIVACIÓN ECONÓMICA QUE LE SEAN DESIGNADOS, DEL FONDO DE DESARROLLO LOCAL DE SUMAPAZ | I72: Inversión | J72: Un Nuevo Contrato Social y Ambiental para la Bogotá del Siglo XXI | K72: 1 | L72: =IF(ISERROR(VLOOKUP(K72,Proposito_programa!$C$2:$E$59,2,FALSE))," ",VLOOKUP(K72,Proposito_programa!$C$2:$E$59,2,FALSE)) -> Subsidios y transferencias para la equidad | M72: =IF(ISERROR(VLOOKUP(K72,Proposito_programa!$C$2:$E$59,3,FALSE))," ",VLOOKUP(K72,Proposito_programa!$C$2:$E$59,3,FALSE)) -> Propósito 1: Hacer un nuevo contrato social para incrementar la inclusión social, productiva y política | N72: 1583 | P72: 80016995 | Q72: JHOJAN ANDRES CASTAÑEDA SANCHEZ | R72: WILLIAM ANDRÉS HERRERA PABÓN | S72: JHOJAN ANDRES CASTAÑEDA SANCHEZ | T72: Persona Natural | X72: 57000000 | Z72: 1 | AA72: 2850000 | AB72: 59850000 | AC72: 56620000 | AD72: 2021-02-23 | AE72: 2021-02-25 | AF72: 2022-01-08 | AG72: 317 | AH72: 1 | AI72: 15 | AO72: X | AR72: 0.946031746
A73: CPS-060-2021 | B73: 2021 | C73: FDLS-CD-054-2021 | D73: https://community.secop.gov.co/Public/Tendering/OpportunityDetail/Index?noticeUID=CO1.NTC.1797459&isFromPublicArea=True&isModal=False | E73: Contratos de prestación de servicios profesionales y de apoyo a la gestión | F73: Contratación directa | G73: Prestación de servicios profesionales y de apoyo a la gestión, o para la ejecución de trabajos artísticos que sólo puedan encomendarse a determinadas personas naturales; | H73: PRESTAR LOS SERVICIOS DE APOYO ADMINISTRATIVO AL ÁREA DE GESTIÓN DE DESARROLLO LOCAL, EN LA GESTIÓN DE PLANEACIÓN DE LA ALCALDÍA LOCAL DE SUMAPAZ | I73: Inversión | J73: Un Nuevo Contrato Social y Ambiental para la Bogotá del Siglo XXI | K73: 57 | L73: =IF(ISERROR(VLOOKUP(K73,Proposito_programa!$C$2:$E$59,2,FALSE))," ",VLOOKUP(K73,Proposito_programa!$C$2:$E$59,2,FALSE)) -> Gestión pública local | M73: =IF(ISERROR(VLOOKUP(K73,Proposito_programa!$C$2:$E$59,3,FALSE))," ",VLOOKUP(K73,Proposito_programa!$C$2:$E$59,3,FALSE)) -> Propósito 5: Construir Bogotá - Región con gobierno abierto, transparente y ciudadanía consciente | N73: 1696 | P73: 1000601472 | Q73: JUAN FELIPE FLOREZ GALEANO | R73: JHOJAN ANDRES CASTAÑEDA SANCHEZ | S73: JUAN FELIPE FLOREZ GALEANO | T73: Persona Natural | X73: 26000000 | AB73: 26000000 | AC73: 52440000 | AD73: 2021-02-24 | AE73: 2021-02-26 | AF73: 2021-12-25 | AG73: 302 | AP73: X | AR73: 2.016923077
A74: CPS-061-2021 | B74: 2021 | C74: FDLS-CD-055-2021 | D74: https://community.secop.gov.co/Public/Tendering/OpportunityDetail/Index?noticeUID=CO1.NTC.1796492&isFromPublicArea=True&isModal=False | E74: Contratos de prestación de servicios profesionales y de apoyo a la gestión | F74: Contratación directa | G74: Prestación de servicios profesionales y de apoyo a la gestión, o para la ejecución de trabajos artísticos que sólo puedan encomendarse a determinadas personas naturales; | H74: PRESTAR LOS SERVICIOS COMO AYUDANTES DE MAQUINARIA PESADA DE PROPIEDAD O TENENCIA DEL FONDO DE DESARROLLO LOCAL DE SUMAPAZ | I74: Inversión | J74: Un Nuevo Contrato Social y Ambiental para la Bogotá del Siglo XXI | K74: 57 | L74: =IF(ISERROR(VLOOKUP(K74,Proposito_programa!$C$2:$E$59,2,FALSE))," ",VLOOKUP(K74,Proposito_programa!$C$2:$E$59,2,FALSE)) -> Gestión pública local | M74: =IF(ISERROR(VLOOKUP(K74,Proposito_programa!$C$2:$E$59,3,FALSE))," ",VLOOKUP(K74,Proposito_programa!$C$2:$E$59,3,FALSE)) -> Propósito 5: Construir Bogotá - Región con gobierno abierto, transparente y ciudadanía consciente | N74: 1696 | P74: 3129847 | Q74: ALEXANDER PEREZ MOLINA | R74: JUAN FELIPE FLOREZ GALEANO | S74: ALEXANDER PÉREZ MOLINA | T74: Persona Natural | X74: 25000000 | Z74: 1 | AA74: 2500000 | AB74: 27500000 | AC74: 25999999 | AD74: 2021-02-24 | AE74: 2021-03-01 | AF74: 2022-01-30 | AG74: 333 | AH74: 1 | AI74: 30 | AO74: X | AR74: 0.9454545091
A75: CPS-062-2021 | B75: 2021 | C75: FDLS-CD-056-2021 | D75: https://community.secop.gov.co/Public/Tendering/OpportunityDetail/Index?noticeUID=CO1.NTC.1797866&isFromPublicArea=True&isModal=False | E75: Contratos de prestación de servicios profesionales y de apoyo a la gestión | F75: Contratación directa | G75: Prestación de servicios profesionales y de apoyo a la gestión, o para la ejecución de trabajos artísticos que sólo puedan encomendarse a determinadas personas naturales; | H75: PRESTAR SUS SERVICIOS PROFESIONALES DE APOYO AL ÁREA DE GESTIÓN DE DESARROLLO LOCAL EN TEMAS ADMINISTRATIVOS DEL FONDO DE DESARROLLO LOCAL DE SUMAPAZ | I75: Inversión | J75: Un Nuevo Contrato Social y Ambiental para la Bogotá del Siglo XXI | K75: 57 | L75: =IF(ISERROR(VLOOKUP(K75,Proposito_programa!$C$2:$E$59,2,FALSE))," ",VLOOKUP(K75,Proposito_programa!$C$2:$E$59,2,FALSE)) -> Gestión pública local | M75: =IF(ISERROR(VLOOKUP(K75,Proposito_programa!$C$2:$E$59,3,FALSE))," ",VLOOKUP(K75,Proposito_programa!$C$2:$E$59,3,FALSE)) -> Propósito 5: Construir Bogotá - Región con gobierno abierto, transparente y ciudadanía consciente | N75: 1696 | P75: 52185103 | Q75: MARIBEL JOHANA REYES | R75: ALEXANDER PÉREZ MOLINA | S75: MARIBEL JOHANA REYES | T75: Persona Natural | X75: 43650000 | AB75: 43650000 | AC75: 25000000 | AD75: 2021-02-24 | AE75: 2021-02-26 | AF75: 2021-12-25 | AG75: 302 | AP75: X | AR75: 0.5727376861
A76: CPS-063-2021 | B76: 2021 | C76: FDLS-CD-057-2021 | D76: https://community.secop.gov.co/Public/Tendering/OpportunityDetail/Index?noticeUID=CO1.NTC.1799833&isFromPublicArea=True&isModal=False | E76: Contratos de prestación de servicios profesionales y de apoyo a la gestión | F76: Contratación directa | G76: Prestación de servicios profesionales y de apoyo a la gestión, o para la ejecución de trabajos artísticos que sólo puedan encomendarse a determinadas personas naturales; | H76: PRESTAR SUS SERVICIOS PROFESIONALES DE APOYO ADMINISTRATIVO AL ÁREA DE GESTIÓN DEL DESARROLLO LOCAL, EN LA GESTIÓN CONTRACTUAL DEL FONDO DE DESARROLLO LOCAL DE SUMAPAZ | I76: Inversión | J76: Un Nuevo Contrato Social y Ambiental para la Bogotá del Siglo XXI | K76: 57 | L76: =IF(ISERROR(VLOOKUP(K76,Proposito_programa!$C$2:$E$59,2,FALSE))," ",VLOOKUP(K76,Proposito_programa!$C$2:$E$59,2,FALSE)) -> Gestión pública local | M76: =IF(ISERROR(VLOOKUP(K76,Proposito_programa!$C$2:$E$59,3,FALSE))," ",VLOOKUP(K76,Proposito_programa!$C$2:$E$59,3,FALSE)) -> Propósito 5: Construir Bogotá - Región con gobierno abierto, transparente y ciudadanía consciente | N76: 1696 | P76: 1010204948 | Q76: CHRISTIAN CAMILO RUBIANO GOMEZ | R76: MARIBEL JOHANA REYES | S76: CHRISTIAN CAMILO RUBIANO GÓMEZ | T76: Persona Natural | X76: 57000000 | AB76: 57000000 | AC76: 40012500 | AD76: 2021-02-25 | AE76: 2021-03-01 | AF76: 2021-12-31 | AG76: 305 | AO76: X | AR76: 0.7019736842
A77: CPS-064-2021 | B77: 2021 | C77: FDLS-CD-058-2021 | D77: https://community.secop.gov.co/Public/Tendering/OpportunityDetail/Index?noticeUID=CO1.NTC.1803028&isFromPublicArea=True&isModal=False | E77: Contratos de prestación de servicios profesionales y de apoyo a la gestión | F77: Contratación directa | G77: Prestación de servicios profesionales y de apoyo a la gestión, o para la ejecución de trabajos artísticos que sólo puedan encomendarse a determinadas personas naturales; | H77: PRESTAR LOS SERVICIOS PROFESIONALES PARA APOYAR LA PLANEACIÓN DE LOS PROYECTOS DE INVERSIÓN RELACIONADOS CON SALONES COMUNALES QUE EJECUTE EL FONDO DE DESARROLLO LOCAL DE SUMAPAZ | I77: Inversión | J77: Un Nuevo Contrato Social y Ambiental para la Bogotá del Siglo XXI | K77: 55 | L77: =IF(ISERROR(VLOOKUP(K77,Proposito_programa!$C$2:$E$59,2,FALSE))," ",VLOOKUP(K77,Proposito_programa!$C$2:$E$59,2,FALSE)) -> Fortalecimiento de cultura ciudadana y su institucionalidad | M77: =IF(ISERROR(VLOOKUP(K77,Proposito_programa!$C$2:$E$59,3,FALSE))," ",VLOOKUP(K77,Proposito_programa!$C$2:$E$59,3,FALSE)) -> Propósito 5: Construir Bogotá - Región con gobierno abierto, transparente y ciudadanía consciente | N77: 1691 | P77: 1018498031 | Q77: DANIEL ALFONSO ESPINOSA ROCHA | R77: CHRISTIAN CAMILO RUBIANO GÓMEZ | S77: DANIEL ALFONSO ESPINOSA ROCHA | T77: Persona Natural | X77: 43650000 | Z77: 1 | AA77: 2182500 | AB77: 45832500 | AC77: 57000000 | AD77: 2021-02-26 | AE77: 2021-02-26 | AF77: 2022-01-09 | AG77: 317 | AH77: 1 | AI77: 15 | AO77: X | AR77: 1.243658976
A78: CPS-065-2021 | B78: 2021 | C78: FDLS-CD-059-2021 | D78: https://community.secop.gov.co/Public/Tendering/OpportunityDetail/Index?noticeUID=CO1.NTC.1808035&isFromPublicArea=True&isModal=False | E78: Contratos de prestación de servicios profesionales y de apoyo a la gestión | F78: Contratación directa | G78: Prestación de servicios profesionales y de apoyo a la gestión, o para la ejecución de trabajos artísticos que sólo puedan encomendarse a determinadas personas naturales; | H78: PRESTAR LOS SERVICIOS COMO TÉCNICO ADMINISTRATIVO AL SERVICIO DE LA JUNTA ADMINISTRADORA LOCAL DE SUMAPAZ | I78: Inversión | J78: Un Nuevo Contrato Social y Ambiental para la Bogotá del Siglo XXI | K78: 57 | L78: =IF(ISERROR(VLOOKUP(K78,Proposito_programa!$C$2:$E$59,2,FALSE))," ",VLOOKUP(K78,Proposito_programa!$C$2:$E$59,2,FALSE)) -> Gestión pública local | M78: =IF(ISERROR(VLOOKUP(K78,Proposito_programa!$C$2:$E$59,3,FALSE))," ",VLOOKUP(K78,Proposito_programa!$C$2:$E$59,3,FALSE)) -> Propósito 5: Construir Bogotá - Región con gobierno abierto, transparente y ciudadanía consciente | N78: 1696 | P78: 52231511 | Q78: CARLA NIAMED LOZANO TAUTIVA | R78: DANIEL ALFONSO ESPINOSA ROCHA | S78: CARLA NIAMED LOZANO TAUTIVA | T78: Persona Natural | X78: 31000000 | AB78: 31000000 | AC78: 44377500 | AD78: 2021-03-01 | AE78: 2021-03-01 | AF78: 2021-12-31 | AG78: 305 | AO78: X | AR78: 1.431532258
A79: CPS-066-2021 | B79: 2021 | C79: FDLS-CD-060-2021 | D79: https://community.secop.gov.co/Public/Tendering/OpportunityDetail/Index?noticeUID=CO1.NTC.1803801&isFromPublicArea=True&isModal=False | E79: Contratos de prestación de servicios profesionales y de apoyo a la gestión | F79: Contratación directa | G79: Prestación de servicios profesionales y de apoyo a la gestión, o para la ejecución de trabajos artísticos que sólo puedan encomendarse a determinadas personas naturales; | H79: PRESTAR LOS SERVICIOS PROFESIONALES DE APOYO AL ÁREA DE GESTIÓN DE DESARROLLO LOCA DE LA ALCALDÍA LOCAL DE SUMAPAZ, EN TEMAS RELACIONADOS CON LA REACTIVACIÓN ECONÓMICA Y EMPLEO LOCAL | I79: Inversión | J79: Un Nuevo Contrato Social y Ambiental para la Bogotá del Siglo XXI | K79: 1 | L79: =IF(ISERROR(VLOOKUP(K79,Proposito_programa!$C$2:$E$59,2,FALSE))," ",VLOOKUP(K79,Proposito_programa!$C$2:$E$59,2,FALSE)) -> Subsidios y transferencias para la equidad | M79: =IF(ISERROR(VLOOKUP(K79,Proposito_programa!$C$2:$E$59,3,FALSE))," ",VLOOKUP(K79,Proposito_programa!$C$2:$E$59,3,FALSE)) -> Propósito 1: Hacer un nuevo contrato social para incrementar la inclusión social, productiva y política | N79: 1583 | P79: 79972956 | Q79: JUAN CARLOS HERNANDEZ PEÑA | R79: CARLA NIAMED LOZANO TAUTIVA | S79: JUAN CARLOS HERNANDEZ PEÑA | T79: Persona Natural | X79: 43650000 | AB79: =+X79+Y79+AA79 -> 43650000 | AC79: 39000000 | AD79: 2021-02-26 | AE79: 2021-03-01 | AF79: 2021-12-31 | AG79: 305 | AO79: X | AR79: 0.8934707904
A80: CPS-067-2021 | B80: 2021 | C80: FDLS-CD-061-2021 | D80: https://community.secop.gov.co/Public/Tendering/OpportunityDetail/Index?noticeUID=CO1.NTC.1802289&isFromPublicArea=True&isModal=False | E80: Contratos de prestación de servicios profesionales y de apoyo a la gestión | F80: Contratación directa | G80: Prestación de servicios profesionales y de apoyo a la gestión, o para la ejecución de trabajos artísticos que sólo puedan encomendarse a determinadas personas naturales; | H80: PRESTAR LOS SERVICIOS COMO AYUDANTES DE MAQUINARIA PESADA DE PROPIEDAD O TENENCIA DEL FONDO DE DESARROLLO LOCAL DE SUMAPAZ | I80: Inversión | J80: Un Nuevo Contrato Social y Ambiental para la Bogotá del Siglo XXI | K80: 57 | L80: =IF(ISERROR(VLOOKUP(K80,Proposito_programa!$C$2:$E$59,2,FALSE))," ",VLOOKUP(K80,Proposito_programa!$C$2:$E$59,2,FALSE)) -> Gestión pública local | M80: =IF(ISERROR(VLOOKUP(K80,Proposito_programa!$C$2:$E$59,3,FALSE))," ",VLOOKUP(K80,Proposito_programa!$C$2:$E$59,3,FALSE)) -> Propósito 5: Construir Bogotá - Región con gobierno abierto, transparente y ciudadanía consciente | N80: 1696 | P80: 1013598298 | Q80: CARLOS JAIR PEÑA PEÑA | R80: JUAN CARLOS HERNANDEZ PEÑA | S80: CARLOS JAIR PEÑA PEÑA | T80: Persona Natural | X80: 25000000 | Z80: 1 | AA80: 2500000 | AB80: 27500000 | AC80: 43650000 | AD80: 2021-02-25 | AE80: 2021-03-01 | AF80: 2022-01-31 | AG80: 336 | AH80: 1 | AI80: 30 | AO80: X | AR80: =IF(ISERROR(AC80/AB80),"-",(AC80/AB80)) -> 1.587272727
A81: CPS-068-2021 | B81: 2021 | C81: FDLS-CD-062-2021 | D81: https://community.secop.gov.co/Public/Tendering/OpportunityDetail/Index?noticeUID=CO1.NTC.1810242&isFromPublicArea=True&isModal=False | E81: Contratos de prestación de servicios profesionales y de apoyo a la gestión | F81: Contratación directa | G81: Prestación de servicios profesionales y de apoyo a la gestión, o para la ejecución de trabajos artísticos que sólo puedan encomendarse a determinadas personas naturales; | H81: PRESTAR LOS SERVICIOS PROFESIONALES PARA APOYAR LOS ASUNTOS JURÍDICOS EN LA GESTIÓN CONTRACTUAL Y POSTCONTRACTUALES DEL FONDO DE DESARROLLO LOCAL DE SUMAPAZ | I81: Inversión | J81: Un Nuevo Contrato Social y Ambiental para la Bogotá del Siglo XXI | K81: 57 | L81: =IF(ISERROR(VLOOKUP(K81,Proposito_programa!$C$2:$E$59,2,FALSE))," ",VLOOKUP(K81,Proposito_programa!$C$2:$E$59,2,FALSE)) -> Gestión pública local | M81: =IF(ISERROR(VLOOKUP(K81,Proposito_programa!$C$2:$E$59,3,FALSE))," ",VLOOKUP(K81,Proposito_programa!$C$2:$E$59,3,FALSE)) -> Propósito 5: Construir Bogotá - Región con gobierno abierto, transparente y ciudadanía consciente | N81: 1696 | P81: 52900762 | Q81: JENNY CAROLINA GIRON CUERVO | R81: CARLOS JAIR PEÑA PEÑA | S81: JENNY CAROLINA GIRÓN CUERVO | T81: Persona Natural | X81: 19500000 | AB81: 19500000 | AC81: 25000000 | AD81: 2021-03-01 | AE81: 2021-03-01 | AF81: 2021-05-30 | AG81: 90 | AP81: X | AR81: 1.282051282
A82: CPS-069-2021 | B82: 2021 | C82: FDLS-CD-063-2021 | D82: https://community.secop.gov.co/Public/Tendering/OpportunityDetail/Index?noticeUID=CO1.NTC.1809698&isFromPublicArea=True&isModal=False | E82: Contratos de prestación de servicios profesionales y de apoyo a la gestión | F82: Contratación directa | G82: Prestación de servicios profesionales y de apoyo a la gestión, o para la ejecución de trabajos artísticos que sólo puedan encomendarse a determinadas personas naturales; | H82: PRESTAR LOS SERVICIOS PROFESIONALES COMO ABOGADO (A) DE APOYO AL ÁREA DE GESTIÓN POLICIVA DE LA ALCALDÍA LOCAL DE SUMAPAZ | I82: Inversión | J82: Un Nuevo Contrato Social y Ambiental para la Bogotá del Siglo XXI | K82: 57 | L82: =IF(ISERROR(VLOOKUP(K82,Proposito_programa!$C$2:$E$59,2,FALSE))," ",VLOOKUP(K82,Proposito_programa!$C$2:$E$59,2,FALSE)) -> Gestión pública local | M82: =IF(ISERROR(VLOOKUP(K82,Proposito_programa!$C$2:$E$59,3,FALSE))," ",VLOOKUP(K82,Proposito_programa!$C$2:$E$59,3,FALSE)) -> Propósito 5: Construir Bogotá - Región con gobierno abierto, transparente y ciudadanía consciente | N82: 1696 | P82: 79632494 | Q82: ELZON FERNEY DELGADO MORALES | R82: JENNY CAROLINA GIRÓN CUERVO | S82: ELZON FERNEY DELGADO MORALES | T82: Persona Natural | X82: 55000000 | AB82: 55000000 | AC82: 19500000 | AD82: 2021-03-01 | AE82: 2021-03-02 | AF82: 2022-01-01 | AG82: 305 | AO82: X | AR82: 0.3545454545
A83: CPS-070-2021 | B83: 2021 | C83: FDLS-CD-064-2021 | D83: https://community.secop.gov.co/Public/Tendering/OpportunityDetail/Index?noticeUID=CO1.NTC.1819767&isFromPublicArea=True&isModal=False | E83: Contratos de prestación de servicios profesionales y de apoyo a la gestión | F83: Contratación directa | G83: Prestación de servicios profesionales y de apoyo a la gestión, o para la ejecución de trabajos artísticos que sólo puedan encomendarse a determinadas personas naturales; | H83: PRESTAR LOS SERVICIOS COMO AYUDANTES DE MAQUINARIA PESADA DE PROPIEDAD O TENENCIA DEL FONDO DE DESARROLLO LOCAL DE SUMAPAZ | I83: Inversión | J83: Un Nuevo Contrato Social y Ambiental para la Bogotá del Siglo XXI | K83: 57 | L83: =IF(ISERROR(VLOOKUP(K83,Proposito_programa!$C$2:$E$59,2,FALSE))," ",VLOOKUP(K83,Proposito_programa!$C$2:$E$59,2,FALSE)) -> Gestión pública local | M83: =IF(ISERROR(VLOOKUP(K83,Proposito_programa!$C$2:$E$59,3,FALSE))," ",VLOOKUP(K83,Proposito_programa!$C$2:$E$59,3,FALSE)) -> Propósito 5: Construir Bogotá - Región con gobierno abierto, transparente y ciudadanía consciente | N83: 1696 | P83: 79216776 | Q83: ERISMENDIZ CASTELLANOS DIAZ | R83: ELZON FERNEY DELGADO MORALES | S83: ERISMENDIZ CASTELLANOS DIAZ | T83: Persona Natural | X83: 25000000 | Z83: 1 | AA83: 2500000 | AB83: 27500000 | AC83: 54999666 | AD83: 2021-03-04 | AE83: 2021-03-05 | AF83: 2022-02-04 | AG83: 336 | AH83: 1 | AI83: 30 | AO83: X | AR83: 1.999987855
A84: CPS-071-2021 | B84: 2021 | C84: FDLS-CD-065-2021 | D84: https://community.secop.gov.co/Public/Tendering/OpportunityDetail/Index?noticeUID=CO1.NTC.1814617&isFromPublicArea=True&isModal=False | E84: Contratos de prestación de servicios profesionales y de apoyo a la gestión | F84: Contratación directa | G84: Prestación de servicios profesionales y de apoyo a la gestión, o para la ejecución de trabajos artísticos que sólo puedan encomendarse a determinadas personas naturales; | H84: PRESTAR SUS SERVICIOS PROFESIONALES PARA COORDINAR, LIDERAR Y ASESORAR LOS PLANES Y ESTRATEGIAS DE COMUNICACIÓN INTERNA Y EXTERNA PARA LA DIVULGACIÓN DE LOS PROGRAMAS, PROYECTOS Y ACTIVIDADES DE LA ALCALDÍA LOCAL DE SUMAPAZ | I84: Inversión | J84: Un Nuevo Contrato Social y Ambiental para la Bogotá del Siglo XXI | K84: 57 | L84: =IF(ISERROR(VLOOKUP(K84,Proposito_programa!$C$2:$E$59,2,FALSE))," ",VLOOKUP(K84,Proposito_programa!$C$2:$E$59,2,FALSE)) -> Gestión pública local | M84: =IF(ISERROR(VLOOKUP(K84,Proposito_programa!$C$2:$E$59,3,FALSE))," ",VLOOKUP(K84,Proposito_programa!$C$2:$E$59,3,FALSE)) -> Propósito 5: Construir Bogotá - Región con gobierno abierto, transparente y ciudadanía consciente | N84: 1696 | P84: 1032460361 | Q84: FABIAN ANDRES FLOREZ RODRIGUEZ | R84: ERISMENDIZ CASTELLANOS DIAZ | S84: FABIAN ANDRES FLOREZ RODRIGUEZ | T84: Persona Natural | X84: 57000000 | AB84: 57000000 | AC84: 24666667 | AD84: 2021-03-02 | AE84: 2021-03-03 | AF84: 2022-01-02 | AG84: 305 | AO84: X | AR84: 0.4327485439
A85: CPS-072-2021 | B85: 2021 | C85: FDLS-CD-067-2021 | D85: https://community.secop.gov.co/Public/Tendering/OpportunityDetail/Index?noticeUID=CO1.NTC.1810689&isFromPublicArea=True&isModal=False | E85: Contratos de prestación de servicios profesionales y de apoyo a la gestión | F85: Contratación directa | G85: Prestación de servicios profesionales y de apoyo a la gestión, o para la ejecución de trabajos artísticos que sólo puedan encomendarse a determinadas personas naturales; | H85: PRESTAR LOS SERVICIOS COMO AYUDANTES DE MAQUINARIA PESADA DE PROPIEDAD O TENENCIA DEL FONDO DE DESARROLLO LOCAL DE SUMAPAZ | I85: Inversión | J85: Un Nuevo Contrato Social y Ambiental para la Bogotá del Siglo XXI | K85: 57 | L85: =IF(ISERROR(VLOOKUP(K85,Proposito_programa!$C$2:$E$59,2,FALSE))," ",VLOOKUP(K85,Proposito_programa!$C$2:$E$59,2,FALSE)) -> Gestión pública local | M85: =IF(ISERROR(VLOOKUP(K85,Proposito_programa!$C$2:$E$59,3,FALSE))," ",VLOOKUP(K85,Proposito_programa!$C$2:$E$59,3,FALSE)) -> Propósito 5: Construir Bogotá - Región con gobierno abierto, transparente y ciudadanía consciente | N85: 1696 | P85: 1010000989 | Q85: HECTOR JOHAN MORALES HILARION | R85: FABIAN ANDRES FLOREZ RODRIGUEZ | S85: HECTOR JOHAN MORALES HILARION | T85: Persona Natural | X85: 25000000 | Z85: 1 | AA85: 2500000 | AB85: 27500000 | AC85: 57000000 | AD85: 2021-03-01 | AE85: 2021-03-02 | AF85: 2022-02-01 | AG85: 336 | AH85: 1 | AI85: 30 | AO85: X | AR85: 2.072727273
A86: CPS-073-2021 | B86: 2021 | C86: FDLS-CD-068-2021 | D86: https://community.secop.gov.co/Public/Tendering/OpportunityDetail/Index?noticeUID=CO1.NTC.1812056&isFromPublicArea=True&isModal=False | E86: Contratos de prestación de servicios profesionales y de apoyo a la gestión | F86: Contratación directa | G86: Prestación de servicios profesionales y de apoyo a la gestión, o para la ejecución de trabajos artísticos que sólo puedan encomendarse a determinadas personas naturales; | H86: PRESTAR LOS SERVICIOS COMO AUXILIAR DE APOYO ADMINISTRATIVO AL ÁREA DE GESTIÓN POLICIVA DE LA ALCALDÍA LOCAL DE SUMAPAZ | I86: Inversión | J86: Un Nuevo Contrato Social y Ambiental para la Bogotá del Siglo XXI | K86: 57 | L86: =IF(ISERROR(VLOOKUP(K86,Proposito_programa!$C$2:$E$59,2,FALSE))," ",VLOOKUP(K86,Proposito_programa!$C$2:$E$59,2,FALSE)) -> Gestión pública local | M86: =IF(ISERROR(VLOOKUP(K86,Proposito_programa!$C$2:$E$59,3,FALSE))," ",VLOOKUP(K86,Proposito_programa!$C$2:$E$59,3,FALSE)) -> Propósito 5: Construir Bogotá - Región con gobierno abierto, transparente y ciudadanía consciente | N86: 1696 | P86: 52524470 | Q86: MARCELA TORRES RAMIREZ | R86: SEGURIDAD LAS AMÉRICAS LTDA SEGURIAMÉRICAS LTDA | S86: MARCELA TORRES RAMIREZ | T86: Persona Natural | X86: 26000000 | AB86: 26000000 | AC86: 22416666 | AD86: 2021-03-01 | AE86: 2021-03-02 | AF86: 2022-01-01 | AG86: 305 | AO86: X | AR86: 0.8621794615
A87: CPS-074-2021 | B87: 2021 | C87: FDLS-CD-069-2021 | D87: https://community.secop.gov.co/Public/Tendering/OpportunityDetail/Index?noticeUID=CO1.NTC.1809105&isFromPublicArea=True&isModal=False | E87: Contratos de prestación de servicios profesionales y de apoyo a la gestión | F87: Contratación directa | G87: Prestación de servicios profesionales y de apoyo a la gestión, o para la ejecución de trabajos artísticos que sólo puedan encomendarse a determinadas personas naturales; | H87: PRESTAR LOS SERVICIOS PROFESIONALES PARA APOYAR LOS ASUNTOS JURÍDICOS, CONTRACTUALES Y POS-CONTRACTUALES DE LA ALCALDÍA LOCAL DE SUMAPAZ | I87: Inversión | J87: Un Nuevo Contrato Social y Ambiental para la Bogotá del Siglo XXI | K87: 57 | L87: =IF(ISERROR(VLOOKUP(K87,Proposito_programa!$C$2:$E$59,2,FALSE))," ",VLOOKUP(K87,Proposito_programa!$C$2:$E$59,2,FALSE)) -> Gestión pública local | M87: =IF(ISERROR(VLOOKUP(K87,Proposito_programa!$C$2:$E$59,3,FALSE))," ",VLOOKUP(K87,Proposito_programa!$C$2:$E$59,3,FALSE)) -> Propósito 5: Construir Bogotá - Región con gobierno abierto, transparente y ciudadanía consciente | N87: 1696 | P87: 52777050 | Q87: MIRYAN CRISTINA PARRA DUQUE | R87: HECTOR JOHAN MORALES HILARION | S87: MIRYAN CRISTINA PARRA DUQUE | T87: Persona Natural | X87: 60000000 | AB87: 60000000 | AC87: 23313333 | AD87: 2021-03-01 | AE87: 2021-03-05 | AF87: 2022-01-04 | AG87: 305 | AO87: X | AR87: 0.38855555
A88: CPS-075-2021 | B88: 2021 | C88: FDLS-CD-070-2021 | D88: https://community.secop.gov.co/Public/Tendering/OpportunityDetail/Index?noticeUID=CO1.NTC.1820474&isFromPublicArea=True&isModal=False | E88: Contratos de prestación de servicios profesionales y de apoyo a la gestión | F88: Contratación directa | G88: Prestación de servicios profesionales y de apoyo a la gestión, o para la ejecución de trabajos artísticos que sólo puedan encomendarse a determinadas personas naturales; | H88: PRESTAR LOS SERVICIOS PARA DESARROLLAR ACTIVIDADES LOGÍSTICAS Y OPERATIVAS, EN LOS BIENES Y/O PREDIOS EN DONDE FUNCIONA LA ALCALDÍA LOCAL DE SUMAPAZ | I88: Inversión | J88: Un Nuevo Contrato Social y Ambiental para la Bogotá del Siglo XXI | K88: 57 | L88: =IF(ISERROR(VLOOKUP(K88,Proposito_programa!$C$2:$E$59,2,FALSE))," ",VLOOKUP(K88,Proposito_programa!$C$2:$E$59,2,FALSE)) -> Gestión pública local | M88: =IF(ISERROR(VLOOKUP(K88,Proposito_programa!$C$2:$E$59,3,FALSE))," ",VLOOKUP(K88,Proposito_programa!$C$2:$E$59,3,FALSE)) -> Propósito 5: Construir Bogotá - Región con gobierno abierto, transparente y ciudadanía consciente | N88: 1696 | P88: 79358856 | Q88: LEOPOLDO MARTINEZ MARTINEZ | R88: MARCELA TORRES RAMIREZ | S88: LEOPOLDO MARTINEZ MARTINEZ | T88: Persona Natural | X88: 26000000 | AB88: 26000000 | AC88: 59200000 | AD88: 2021-03-04 | AE88: 2021-03-05 | AF88: 2022-01-04 | AG88: 305 | AO88: X | AR88: 2.276923077
A89: CPS-076-2021 | B89: 2021 | C89: FDLS-CD-071-2021 | D89: https://community.secop.gov.co/Public/Tendering/OpportunityDetail/Index?noticeUID=CO1.NTC.1812551&isFromPublicArea=True&isModal=False | E89: Contratos de prestación de servicios profesionales y de apoyo a la gestión | F89: Contratación directa | G89: Prestación de servicios profesionales y de apoyo a la gestión, o para la ejecución de trabajos artísticos que sólo puedan encomendarse a determinadas personas naturales; | H89: PRESTAR LOS SERVICIOS PROFESIONALES PARA APOYAR LA PLANEACIÓN, SEGUIMIENTO, EJECUCIÓN Y CONTROL DE LAS ACTIVIDADES AGROPECUARIAS ENFOCADAS A PROMOVER EL DESARROLLO RURAL SOSTENIBLE, EN LA LOCALIDAD DE SUMAPAZ | I89: Inversión | J89: Un Nuevo Contrato Social y Ambiental para la Bogotá del Siglo XXI | K89: 6 | L89: =IF(ISERROR(VLOOKUP(K89,Proposito_programa!$C$2:$E$59,2,FALSE))," ",VLOOKUP(K89,Proposito_programa!$C$2:$E$59,2,FALSE)) -> Sistema Distrital de Cuidado | M89: =IF(ISERROR(VLOOKUP(K89,Proposito_programa!$C$2:$E$59,3,FALSE))," ",VLOOKUP(K89,Proposito_programa!$C$2:$E$59,3,FALSE)) -> Propósito 1: Hacer un nuevo contrato social para incrementar la inclusión social, productiva y política | N89: 1637 | P89: 79266150 | Q89: GUILLERMO ENRIQUE MONTAÑO CALDERON | R89: MIRYAN CRISTINA PARRA DUQUE | S89: GUILLERMO ENRIQUE MONTAÑO CALDERON | T89: Persona Natural | X89: 57000000 | AB89: 57000000 | AC89: 25653333 | AD89: 2021-03-02 | AE89: 2021-03-03 | AF89: 2022-01-09 | AG89: 305 | AO89: X | AR89: 0.4500584737
A90: CPS-077-2021 | B90: 2021 | C90: FDLS-CD-072-2021 | D90: https://community.secop.gov.co/Public/Tendering/OpportunityDetail/Index?noticeUID=CO1.NTC.1821453&isFromPublicArea=True&isModal=False | E90: Contratos de prestación de servicios profesionales y de apoyo a la gestión | F90: Contratación directa | G90: Prestación de servicios profesionales y de apoyo a la gestión, o para la ejecución de trabajos artísticos que sólo puedan encomendarse a determinadas personas naturales; | H90: PRESTAR LOS SERVICIOS COMO AYUDANTES DE MAQUINARIA PESADA DE PROPIEDAD O TENENCIA DEL FONDO DE DESARROLLO LOCAL DE SUMAPAZ | I90: Inversión | J90: Un Nuevo Contrato Social y Ambiental para la Bogotá del Siglo XXI | K90: 57 | L90: =IF(ISERROR(VLOOKUP(K90,Proposito_programa!$C$2:$E$59,2,FALSE))," ",VLOOKUP(K90,Proposito_programa!$C$2:$E$59,2,FALSE)) -> Gestión pública local | M90: =IF(ISERROR(VLOOKUP(K90,Proposito_programa!$C$2:$E$59,3,FALSE))," ",VLOOKUP(K90,Proposito_programa!$C$2:$E$59,3,FALSE)) -> Propósito 5: Construir Bogotá - Región con gobierno abierto, transparente y ciudadanía consciente | N90: 1696 | P90: 1069749786 | Q90: YILBER ADAMES RAMIREZ | R90: LEOPOLDO MARTINEZ MARTINEZ | S90: YILBER ADAMES RAMÍREZ | T90: Persona Natural | X90: 25000000 | Z90: 1 | AA90: 2500000 | AB90: 27500000 | AC90: 55100000 | AD90: 2021-03-04 | AE90: 2021-03-05 | AF90: 2022-02-04 | AG90: 336 | AH90: 1 | AI90: 30 | AO90: X | AR90: 2.003636364
A91: CPS-078-2021 | B91: 2021 | C91: FDLS-CD-073-2021 | D91: https://community.secop.gov.co/Public/Tendering/OpportunityDetail/Index?noticeUID=CO1.NTC.1814010&isFromPublicArea=True&isModal=False | E91: Contratos de prestación de servicios profesionales y de apoyo a la gestión | F91: Contratación directa | G91: Prestación de servicios profesionales y de apoyo a la gestión, o para la ejecución de trabajos artísticos que sólo puedan encomendarse a determinadas personas naturales; | H91: PRESTAR LOS SERVICIOS COMO AUXILIAR ADMINISTRATIVO PARA EL ÁREA DE GESTIÓN DE DESARROLLO LOCAL, EN LOS TEMAS DE INFRAESTRUCTURA, DE LA ALCALDÍA LOCAL DE SUMAPAZ | I91: Inversión | J91: Un Nuevo Contrato Social y Ambiental para la Bogotá del Siglo XXI | K91: 56 | L91: =IF(ISERROR(VLOOKUP(K91,Proposito_programa!$C$2:$E$59,2,FALSE))," ",VLOOKUP(K91,Proposito_programa!$C$2:$E$59,2,FALSE)) -> Gestión pública efectiva | M91: =IF(ISERROR(VLOOKUP(K91,Proposito_programa!$C$2:$E$59,3,FALSE))," ",VLOOKUP(K91,Proposito_programa!$C$2:$E$59,3,FALSE)) -> Propósito 5: Construir Bogotá - Región con gobierno abierto, transparente y ciudadanía consciente | N91: 1693 | P91: 1015419501 | Q91: NATALIA SANCHEZ MARIN | R91: GUILLERMO ENRIQUE MONTAÑO CALDERON | S91: NATALIA SANCHEZ MARIN | T91: Persona Natural | X91: 26000000 | AB91: 26000000 | AC91: 24666667 | AD91: 2021-03-02 | AE91: 2021-03-03 | AF91: 2022-01-02 | AG91: 305 | AO91: X | AR91: 0.9487179615
A92: CPS-079-2021 | B92: 2021 | C92: FDLS-CD-074-2021 | D92: https://community.secop.gov.co/Public/Tendering/OpportunityDetail/Index?noticeUID=CO1.NTC.1813925&isFromPublicArea=True&isModal=False | E92: Contratos de prestación de servicios profesionales y de apoyo a la gestión | F92: Contratación directa | G92: Prestación de servicios profesionales y de apoyo a la gestión, o para la ejecución de trabajos artísticos que sólo puedan encomendarse a determinadas personas naturales; | H92: PRESTAR LOS SERVICIOS COMO AUXILIAR ADMINISTRATIVO PARA EL ÁREA DE GESTIÓN DE DESARROLLO LOCAL, EN LOS TEMAS DE INFRAESTRUCTURA, DE LA ALCALDÍA LOCAL DE SUMAPAZ | I92: Inversión | J92: Un Nuevo Contrato Social y Ambiental para la Bogotá del Siglo XXI | K92: 56 | L92: =IF(ISERROR(VLOOKUP(K92,Proposito_programa!$C$2:$E$59,2,FALSE))," ",VLOOKUP(K92,Proposito_programa!$C$2:$E$59,2,FALSE)) -> Gestión pública efectiva | M92: =IF(ISERROR(VLOOKUP(K92,Proposito_programa!$C$2:$E$59,3,FALSE))," ",VLOOKUP(K92,Proposito_programa!$C$2:$E$59,3,FALSE)) -> Propósito 5: Construir Bogotá - Región con gobierno abierto, transparente y ciudadanía consciente | N92: 1693 | P92: 1022323083 | Q92: SANDRA MARCELA CASTRO GONZALEZ | R92: YILBER ADAMES RAMÍREZ | S92: SANDRA MARCELA CASTRO GONZALEZ | T92: Persona Natural | X92: 26000000 | AB92: 26000000 | AC92: 23226667 | AD92: 2021-03-02 | AE92: 2021-03-03 | AF92: 2022-01-02 | AG92: 305 | AO92: X | AR92: 0.8933333462
A93: CPS-080-2021 | B93: 2021 | C93: FDLS-CD-075-2021 | D93: https://community.secop.gov.co/Public/Tendering/OpportunityDetail/Index?noticeUID=CO1.NTC.1812338&isFromPublicArea=True&isModal=False | E93: Contratos de prestación de servicios profesionales y de apoyo a la gestión | F93: Contratación directa | G93: Prestación de servicios profesionales y de apoyo a la gestión, o para la ejecución de trabajos artísticos que sólo puedan encomendarse a determinadas personas naturales; | H93: PRESTAR LOS SERVICIOS TÉCNICOS PARA LA GESTIÓN AMBIENTAL-AGROPECUARIA, DEL ÁREA DE GESTIÓN DE DESARROLLO LOCAL DE LA ALCALDÍA LOCAL DE SUMAPAZ | I93: Inversión | J93: Un Nuevo Contrato Social y Ambiental para la Bogotá del Siglo XXI | K93: 23 | L93: =IF(ISERROR(VLOOKUP(K93,Proposito_programa!$C$2:$E$59,2,FALSE))," ",VLOOKUP(K93,Proposito_programa!$C$2:$E$59,2,FALSE)) -> Bogotá rural | M93: =IF(ISERROR(VLOOKUP(K93,Proposito_programa!$C$2:$E$59,3,FALSE))," ",VLOOKUP(K93,Proposito_programa!$C$2:$E$59,3,FALSE)) -> Propósito 1: Hacer un nuevo contrato social para incrementar la inclusión social, productiva y política | N93: 1634 | P93: 1022988839 | Q93: ALEXANDRA CORTES LOPEZ | R93: NATALIA SANCHEZ MARIN | S93: ALEXANDRA CORTES LOPEZ | T93: Persona Natural | X93: 39000000 | AB93: 39000000 | AC93: 25826666 | AD93: 2021-03-02 | AE93: 2021-03-03 | AF93: 2022-01-02 | AG93: 305 | AO93: X | AR93: 0.6622222051
A94: CPS-081-2021 | B94: 2021 | C94: FDLS-CD-076-2021 | D94: https://community.secop.gov.co/Public/Tendering/OpportunityDetail/Index?noticeUID=CO1.NTC.1812000&isFromPublicArea=True&isModal=False | E94: Contratos de prestación de servicios profesionales y de apoyo a la gestión | F94: Contratación directa | G94: Prestación de servicios profesionales y de apoyo a la gestión, o para la ejecución de trabajos artísticos que sólo puedan encomendarse a determinadas personas naturales; | H94: PRESTAR LOS SERVICIOS DE APOYO LOGÍSTICO Y OPERATIVO PARA LA ALCALDÍA LOCAL DE SUMAPAZ, EN ESPECIAL EN LAS CORREGIDURÍAS DE NAZARETH Y BETANIA | I94: Inversión | J94: Un Nuevo Contrato Social y Ambiental para la Bogotá del Siglo XXI | K94: 57 | L94: =IF(ISERROR(VLOOKUP(K94,Proposito_programa!$C$2:$E$59,2,FALSE))," ",VLOOKUP(K94,Proposito_programa!$C$2:$E$59,2,FALSE)) -> Gestión pública local | M94: =IF(ISERROR(VLOOKUP(K94,Proposito_programa!$C$2:$E$59,3,FALSE))," ",VLOOKUP(K94,Proposito_programa!$C$2:$E$59,3,FALSE)) -> Propósito 5: Construir Bogotá - Región con gobierno abierto, transparente y ciudadanía consciente | N94: 1696 | P94: 19157189 | Q94: ENRIQUE HUERTAS | R94: SANDRA MARCELA CASTRO GONZALEZ | S94: ENRIQUE HUERTAS | T94: Persona Natural | X94: 20700000 | AB94: 20700000 | AC94: 38740000 | AD94: 2021-03-02 | AE94: 2021-03-03 | AF94: 2022-01-02 | AG94: 305 | AO94: X | AR94: 1.871497585
A95: CPS-082-2021 | B95: 2021 | C95: FDLS-CD-077-2021 | D95: https://community.secop.gov.co/Public/Tendering/OpportunityDetail/Index?noticeUID=CO1.NTC.1812642&isFromPublicArea=True&isModal=False | E95: Contratos de prestación de servicios profesionales y de apoyo a la gestión | F95: Contratación directa | G95: Prestación de servicios profesionales y de apoyo a la gestión, o para la ejecución de trabajos artísticos que sólo puedan encomendarse a determinadas personas naturales; | H95: PRESTAR SUS SERVICIOS PROFESIONALES PARA APOYAR AL EQUIPO DE PRENSA Y COMUNICACIONES DE LA ALCALDÍA LOCAL EN LA CREACIÓN, REALIZACIÓN, PRODUCCIÓN Y EDICIÓN DE VIDEOS, ASÍ COMO EL REGISTRO, EDICIÓN Y LA PRESENTACIÓN DE FOTOGRAFÍAS DE LOS ACONTECIMIENTOS, HECHOS Y EVENTOS EXTERNOS E INTERNOS DE LA ALCALDÍA LOCAL, PARA SER UTILIZADOS COMO INSUMOS DE COMUNICACIÓN EN LOS MEDIOS, ESPECIALMENTE ESCRITOS, DIGITALES Y AUDIOVISUALES | I95: Inversión | J95: Un Nuevo Contrato Social y Ambiental para la Bogotá del Siglo XXI | K95: 57 | L95: =IF(ISERROR(VLOOKUP(K95,Proposito_programa!$C$2:$E$59,2,FALSE))," ",VLOOKUP(K95,Proposito_programa!$C$2:$E$59,2,FALSE)) -> Gestión pública local | M95: =IF(ISERROR(VLOOKUP(K95,Proposito_programa!$C$2:$E$59,3,FALSE))," ",VLOOKUP(K95,Proposito_programa!$C$2:$E$59,3,FALSE)) -> Propósito 5: Construir Bogotá - Región con gobierno abierto, transparente y ciudadanía consciente | N95: 1696 | P95: 81715533 | Q95: LUIS ANGEL ARROYAVE VILARO | R95: ALEXANDRA CORTES LOPEZ | S95: LUIS ANGEL ARROYAVE VILARO | T95: Persona Natural | X95: 43650000 | AB95: 43650000 | AC95: 20562000 | AD95: 2021-03-02 | AE95: 2021-03-04 | AF95: 2022-01-03 | AG95: 305 | AO95: X | AR95: 0.4710652921
A96: CPS-083-2021 | B96: 2021 | C96: FDLS-CD-078-2021 | D96: https://community.secop.gov.co/Public/Tendering/OpportunityDetail/Index?noticeUID=CO1.NTC.1812877&isFromPublicArea=True&isModal=False | E96: Contratos de prestación de servicios profesionales y de apoyo a la gestión | F96: Contratación directa | G96: Prestación de servicios profesionales y de apoyo a la gestión, o para la ejecución de trabajos artísticos que sólo puedan encomendarse a determinadas personas naturales; | H96: PRESTAR SUS SERVICIOS PROFESIONALES DE APOYO AL ÁREA DE GESTIÓN DE DESARROLLO LOCAL DE LA ALCALDÍA LOCAL DE SUMAPAZ, EN TEMAS DE REACTIVACIÓN ECONÓMICA, EMPLEOS DE EMERGENCIA | I96: Inversión | J96: Un Nuevo Contrato Social y Ambiental para la Bogotá del Siglo XXI | K96: 1 | L96: =IF(ISERROR(VLOOKUP(K96,Proposito_programa!$C$2:$E$59,2,FALSE))," ",VLOOKUP(K96,Proposito_programa!$C$2:$E$59,2,FALSE)) -> Subsidios y transferencias para la equidad | M96: =IF(ISERROR(VLOOKUP(K96,Proposito_programa!$C$2:$E$59,3,FALSE))," ",VLOOKUP(K96,Proposito_programa!$C$2:$E$59,3,FALSE)) -> Propósito 1: Hacer un nuevo contrato social para incrementar la inclusión social, productiva y política | N96: 1583 | P96: 1022390655 | Q96: LUIS ALBERTO MARTINEZ SICHACA | R96: ENRIQUE HUERTAS | S96: LUIS ALBERTO MARTINEZ SICHACA | T96: Persona Natural | X96: 50000000 | AB96: 50000000 | AC96: 7857000 | AD96: 2021-03-02 | AE96: 2021-03-03 | AF96: 2022-01-02 | AG96: 305 | AO96: X | AR96: 0.15714
A97: CPS-084-2021 | B97: 2021 | C97: FDLS-CD-079-2021 | D97: https://community.secop.gov.co/Public/Tendering/OpportunityDetail/Index?noticeUID=CO1.NTC.1812078&isFromPublicArea=True&isModal=False | E97: Contratos de prestación de servicios profesionales y de apoyo a la gestión | F97: Contratación directa | G97: Prestación de servicios profesionales y de apoyo a la gestión, o para la ejecución de trabajos artísticos que sólo puedan encomendarse a determinadas personas naturales; | H97: PRESTAR LOS SERVICIOS PROFESIONALES AL ÁREA DE GESTIÓN DE DESARROLLO LOCAL PARA APOYAR LA PLANEACIÓN, EJECUCIÓN Y SEGUIMIENTO A LOS PROYECTOS DE INVERSIÓN DE MEJORAMIENTO DE VIVIENDA RURAL QUE LE SEAN DESIGNADOS | I97: Inversión | J97: Un Nuevo Contrato Social y Ambiental para la Bogotá del Siglo XXI | K97: 19 | L97: =IF(ISERROR(VLOOKUP(K97,Proposito_programa!$C$2:$E$59,2,FALSE))," ",VLOOKUP(K97,Proposito_programa!$C$2:$E$59,2,FALSE)) -> Vivienda y entornos dignos en el territorio urbano y rural | M97: =IF(ISERROR(VLOOKUP(K97,Proposito_programa!$C$2:$E$59,3,FALSE))," ",VLOOKUP(K97,Proposito_programa!$C$2:$E$59,3,FALSE)) -> Propósito 1: Hacer un nuevo contrato social para incrementar la inclusión social, productiva y política | N97: 1589 | P97: 79889687 | Q97: LUIS CARLOS LOPEZ MENDOZA | R97: LUIS ANGEL ARROYAVE VILARO | S97: LUIS CARLOS LÓPEZ MENDOZA | T97: Persona Natural | X97: 70000000 | AB97: 70000000 | AC97: 49666667 | AD97: 2021-03-02 | AE97: 2021-03-04 | AF97: 2022-01-03 | AG97: 305 | AO97: X | AR97: 0.7095238143
A98: CPS-085-2021 | B98: 2021 | C98: FDLS-CD-080-2021* | D98: https://community.secop.gov.co/Public/Tendering/OpportunityDetail/Index?noticeUID=CO1.NTC.1840702&isFromPublicArea=True&isModal=False | E98: Contratos de prestación de servicios profesionales y de apoyo a la gestión | F98: Contratación directa | G98: Prestación de servicios profesionales y de apoyo a la gestión, o para la ejecución de trabajos artísticos que sólo puedan encomendarse a determinadas personas naturales; | H98: PRESTAR LOS SERVICIOS COMO OPERARIOS DE LA MAQUINARIA PESADA DE PROPIEDAD O TENENCIA DEL FONDO DE DESARROLLO LOCAL DE SUMAPAZ | I98: Inversión | J98: Un Nuevo Contrato Social y Ambiental para la Bogotá del Siglo XXI | K98: 57 | L98: =IF(ISERROR(VLOOKUP(K98,Proposito_programa!$C$2:$E$59,2,FALSE))," ",VLOOKUP(K98,Proposito_programa!$C$2:$E$59,2,FALSE)) -> Gestión pública local | M98: =IF(ISERROR(VLOOKUP(K98,Proposito_programa!$C$2:$E$59,3,FALSE))," ",VLOOKUP(K98,Proposito_programa!$C$2:$E$59,3,FALSE)) -> Propósito 5: Construir Bogotá - Región con gobierno abierto, transparente y ciudadanía consciente | N98: 1696 | P98: 1032656287 | Q98: ALBEIRO BARBOSA CIFUENTES | R98: LUIS ALBERTO MARTINEZ SICHACA | S98: ALBEIRO BARBOSA CIFUENTES | T98: Persona Natural | X98: 22950000 | Z98: 1 | AA98: 2550000 | AB98: 25500000 | AC98: 69300000 | AD98: 2021-03-12 | AE98: 2021-03-15 | AF98: 2022-01-14 | AG98: 305 | AH98: 1 | AI98: 30 | AO98: X | AR98: 2.717647059
A99: CPS-086-2021 | B99: 2021 | C99: FDLS-CD-080-2021* | D99: https://community.secop.gov.co/Public/Tendering/OpportunityDetail/Index?noticeUID=CO1.NTC.1840702&isFromPublicArea=True&isModal=False | E99: Contratos de prestación de servicios profesionales y de apoyo a la gestión | F99: Contratación directa | G99: Prestación de servicios profesionales y de apoyo a la gestión, o para la ejecución de trabajos artísticos que sólo puedan encomendarse a determinadas personas naturales; | H99: PRESTAR LOS SERVICIOS COMO OPERARIOS DE LA MAQUINARIA PESADA DE PROPIEDAD O TENENCIA DEL FONDO DE DESARROLLO LOCAL DE SUMAPAZ | I99: Inversión | J99: Un Nuevo Contrato Social y Ambiental para la Bogotá del Siglo XXI | K99: 57 | L99: =IF(ISERROR(VLOOKUP(K99,Proposito_programa!$C$2:$E$59,2,FALSE))," ",VLOOKUP(K99,Proposito_programa!$C$2:$E$59,2,FALSE)) -> Gestión pública local | M99: =IF(ISERROR(VLOOKUP(K99,Proposito_programa!$C$2:$E$59,3,FALSE))," ",VLOOKUP(K99,Proposito_programa!$C$2:$E$59,3,FALSE)) -> Propósito 5: Construir Bogotá - Región con gobierno abierto, transparente y ciudadanía consciente | N99: 1696 | P99: 1022938049 | Q99: ALEXANDER BUSTOS CHAVARRO | R99: LUIS CARLOS LÓPEZ MENDOZA | S99: ALEXANDER BUSTOS CHAVARRO | T99: Persona Natural | X99: 22950000 | Z99: 1 | AA99: 2550000 | AB99: 25500000 | AC99: 24310000 | AD99: 2021-03-12 | AE99: 2021-03-15 | AF99: 2022-01-14 | AG99: 305 | AH99: 1 | AI99: 30 | AO99: X | AR99: 0.9533333333
A100: CPS-087-2021 | B100: 2021 | C100: FDLS-CD-080-2021* | D100: https://community.secop.gov.co/Public/Tendering/OpportunityDetail/Index?noticeUID=CO1.NTC.1840702&isFromPublicArea=True&isModal=False | E100: Contratos de prestación de servicios profesionales y de apoyo a la gestión | F100: Contratación directa | G100: Prestación de servicios profesionales y de apoyo a la gestión, o para la ejecución de trabajos artísticos que sólo puedan encomendarse a determinadas personas naturales; | H100: PRESTAR LOS SERVICIOS COMO OPERARIOS DE LA MAQUINARIA PESADA DE PROPIEDAD O TENENCIA DEL FONDO DE DESARROLLO LOCAL DE SUMAPAZ | I100: Inversión | J100: Un Nuevo Contrato Social y Ambiental para la Bogotá del Siglo XXI | K100: 57 | L100: =IF(ISERROR(VLOOKUP(K100,Proposito_programa!$C$2:$E$59,2,FALSE))," ",VLOOKUP(K100,Proposito_programa!$C$2:$E$59,2,FALSE)) -> Gestión pública local | M100: =IF(ISERROR(VLOOKUP(K100,Proposito_programa!$C$2:$E$59,3,FALSE))," ",VLOOKUP(K100,Proposito_programa!$C$2:$E$59,3,FALSE)) -> Propósito 5: Construir Bogotá - Región con gobierno abierto, transparente y ciudadanía consciente | N100: 1696 | P100: 79462118 | Q100: ERNESTO GUEVARA GONZALEZ | R100: ALBEIRO BARBOSA CIFUENTES | S100: ERNESTO GUEVARA GONZALEZ | T100: Persona Natural | X100: 22950000 | Z100: 1 | AA100: 2550000 | AB100: 25500000 | AC100: 24310000 | AD100: 2021-03-12 | AE100: 2021-03-15 | AF100: 2022-01-14 | AG100: 305 | AH100: 1 | AI100: 30 | AO100: X | AR100: 0.9533333333
A101: CPS-088-2021 | B101: 2021 | C101: FDLS-CD-080-2021* | D101: https://community.secop.gov.co/Public/Tendering/OpportunityDetail/Index?noticeUID=CO1.NTC.1840702&isFromPublicArea=True&isModal=False | E101: Contratos de prestación de servicios profesionales y de apoyo a la gestión | F101: Contratación directa | G101: Prestación de servicios profesionales y de apoyo a la gestión, o para la ejecución de trabajos artísticos que sólo puedan encomendarse a determinadas personas naturales; | H101: PRESTAR LOS SERVICIOS COMO OPERARIOS DE LA MAQUINARIA PESADA DE PROPIEDAD O TENENCIA DEL FONDO DE DESARROLLO LOCAL DE SUMAPAZ | I101: Inversión | J101: Un Nuevo Contrato Social y Ambiental para la Bogotá del Siglo XXI | K101: 57 | L101: =IF(ISERROR(VLOOKUP(K101,Proposito_programa!$C$2:$E$59,2,FALSE))," ",VLOOKUP(K101,Proposito_programa!$C$2:$E$59,2,FALSE)) -> Gestión pública local | M101: =IF(ISERROR(VLOOKUP(K101,Proposito_programa!$C$2:$E$59,3,FALSE))," ",VLOOKUP(K101,Proposito_programa!$C$2:$E$59,3,FALSE)) -> Propósito 5: Construir Bogotá - Región con gobierno abierto, transparente y ciudadanía consciente | N101: 1696 | P101: 80451743 | Q101: SALOMON ROMERO PALACIOS | R101: ALEXANDER BUSTOS CHAVARRO | S101: SALOMON ROMERO PALACIOS | T101: Persona Natural | X101: 22950000 | Z101: 1 | AA101: 2550000 | AB101: 25500000 | AC101: 24310000 | AD101: 2021-03-12 | AE101: 2021-03-15 | AF101: 2022-01-14 | AG101: 305 | AH101: 1 | AI101: 30 | AO101: X | AR101: 0.9533333333
A102: CPS-089-2021 | B102: 2021 | C102: FDLS-CD-080-2021* | D102: https://community.secop.gov.co/Public/Tendering/OpportunityDetail/Index?noticeUID=CO1.NTC.1840702&isFromPublicArea=True&isModal=False | E102: Contratos de prestación de servicios profesionales y de apoyo a la gestión | F102: Contratación directa | G102: Prestación de servicios profesionales y de apoyo a la gestión, o para la ejecución de trabajos artísticos que sólo puedan encomendarse a determinadas personas naturales; | H102: PRESTAR LOS SERVICIOS COMO OPERARIOS DE LA MAQUINARIA PESADA DE PROPIEDAD O TENENCIA DEL FONDO DE DESARROLLO LOCAL DE SUMAPAZ | I102: Inversión | J102: Un Nuevo Contrato Social y Ambiental para la Bogotá del Siglo XXI | K102: 57 | L102: =IF(ISERROR(VLOOKUP(K102,Proposito_programa!$C$2:$E$59,2,FALSE))," ",VLOOKUP(K102,Proposito_programa!$C$2:$E$59,2,FALSE)) -> Gestión pública local | M102: =IF(ISERROR(VLOOKUP(K102,Proposito_programa!$C$2:$E$59,3,FALSE))," ",VLOOKUP(K102,Proposito_programa!$C$2:$E$59,3,FALSE)) -> Propósito 5: Construir Bogotá - Región con gobierno abierto, transparente y ciudadanía consciente | N102: 1696 | P102: 79565214 | Q102: NEIDER MOLINA REY | R102: ERNESTO GUEVARA GONZALEZ | S102: NEIDER MOLINA REY | T102: Persona Natural | X102: 22950000 | Z102: 1 | AA102: 2550000 | AB102: 25500000 | AC102: 24310000 | AD102: 2021-03-12 | AE102: 2021-03-15 | AF102: 2022-01-14 | AG102: 305 | AH102: 1 | AI102: 30 | AO102: X | AR102: 0.9533333333
A103: CPS-090-2021 | B103: 2021 | C103: FDLS-CD-080-2021* | D103: https://community.secop.gov.co/Public/Tendering/OpportunityDetail/Index?noticeUID=CO1.NTC.1840702&isFromPublicArea=True&isModal=False | E103: Contratos de prestación de servicios profesionales y de apoyo a la gestión | F103: Contratación directa | G103: Prestación de servicios profesionales y de apoyo a la gestión, o para la ejecución de trabajos artísticos que sólo puedan encomendarse a determinadas personas naturales; | H103: PRESTAR LOS SERVICIOS COMO OPERARIOS DE LA MAQUINARIA PESADA DE PROPIEDAD O TENENCIA DEL FONDO DE DESARROLLO LOCAL DE SUMAPAZ | I103: Inversión | J103: Un Nuevo Contrato Social y Ambiental para la Bogotá del Siglo XXI | K103: 57 | L103: =IF(ISERROR(VLOOKUP(K103,Proposito_programa!$C$2:$E$59,2,FALSE))," ",VLOOKUP(K103,Proposito_programa!$C$2:$E$59,2,FALSE)) -> Gestión pública local | M103: =IF(ISERROR(VLOOKUP(K103,Proposito_programa!$C$2:$E$59,3,FALSE))," ",VLOOKUP(K103,Proposito_programa!$C$2:$E$59,3,FALSE)) -> Propósito 5: Construir Bogotá - Región con gobierno abierto, transparente y ciudadanía consciente | N103: 1696 | P103: 1070750533 | Q103: RAFAEL ANTONIO LARA SANABRIA | R103: SALOMON ROMERO PALACIOS | S103: RAFAEL ANTONIO LARA SANABRIA | T103: Persona Natural | X103: 22950000 | Z103: 1 | AA103: 2550000 | AB103: 25500000 | AC103: 24310000 | AD103: 2021-03-12 | AE103: 2021-03-15 | AF103: 2022-01-14 | AG103: 305 | AH103: 1 | AI103: 30 | AO103: X | AR103: 0.9533333333
A104: CPS-091-2021 | B104: 2021 | C104: FDLS-CD-080-2021* | D104: https://community.secop.gov.co/Public/Tendering/OpportunityDetail/Index?noticeUID=CO1.NTC.1840702&isFromPublicArea=True&isModal=False | E104: Contratos de prestación de servicios profesionales y de apoyo a la gestión | F104: Contratación directa | G104: Prestación de servicios profesionales y de apoyo a la gestión, o para la ejecución de trabajos artísticos que sólo puedan encomendarse a determinadas personas naturales; | H104: PRESTAR LOS SERVICIOS COMO OPERARIOS DE LA MAQUINARIA PESADA DE PROPIEDAD O TENENCIA DEL FONDO DE DESARROLLO LOCAL DE SUMAPAZ | I104: Inversión | J104: Un Nuevo Contrato Social y Ambiental para la Bogotá del Siglo XXI | K104: 57 | L104: =IF(ISERROR(VLOOKUP(K104,Proposito_programa!$C$2:$E$59,2,FALSE))," ",VLOOKUP(K104,Proposito_programa!$C$2:$E$59,2,FALSE)) -> Gestión pública local | M104: =IF(ISERROR(VLOOKUP(K104,Proposito_programa!$C$2:$E$59,3,FALSE))," ",VLOOKUP(K104,Proposito_programa!$C$2:$E$59,3,FALSE)) -> Propósito 5: Construir Bogotá - Región con gobierno abierto, transparente y ciudadanía consciente | N104: 1696 | P104: 1023037487 | Q104: JHONATAN VALBUENA VERGARA | R104: NEIDER MOLINA REY | S104: JHONATAN VALBUENA VERGARA | T104: Persona Natural | X104: 22950000 | AB104: 22950000 | AC104: 24310000 | AD104: 2021-03-12 | AE104: 2021-03-15 | AF104: 2021-12-22 | AG104: 273 | AP104: X | AR104: 1.059259259
A105: CPS-092-2021 | B105: 2021 | C105: FDLS-CD-081-2021 | D105: https://community.secop.gov.co/Public/Tendering/OpportunityDetail/Index?noticeUID=CO1.NTC.1814511&isFromPublicArea=True&isModal=False | E105: Contratos de prestación de servicios profesionales y de apoyo a la gestión | F105: Contratación directa | G105: Prestación de servicios profesionales y de apoyo a la gestión, o para la ejecución de trabajos artísticos que sólo puedan encomendarse a determinadas personas naturales; | H105: PRESTAR LOS SERVICIOS PROFESIONALES AL ÁREA DE GESTIÓN DE DESARROLLO LOCAL PARA APOYAR LA PLANEACIÓN, EJECUCIÓN Y SEGUIMIENTO DE LOS PROYECTOS DE INVERSIÓN RELACIONADOS CON LAS OBRAS DE MITIGACIÓN A DESARROLLAR POR EL FDLS | I105: Inversión | J105: Un Nuevo Contrato Social y Ambiental para la Bogotá del Siglo XXI | K105: 57 | L105: =IF(ISERROR(VLOOKUP(K105,Proposito_programa!$C$2:$E$59,2,FALSE))," ",VLOOKUP(K105,Proposito_programa!$C$2:$E$59,2,FALSE)) -> Gestión pública local | M105: =IF(ISERROR(VLOOKUP(K105,Proposito_programa!$C$2:$E$59,3,FALSE))," ",VLOOKUP(K105,Proposito_programa!$C$2:$E$59,3,FALSE)) -> Propósito 5: Construir Bogotá - Región con gobierno abierto, transparente y ciudadanía consciente | N105: 1696 | P105: 1090424977 | Q105: JUAN DAVID CORTES GOMEZ | R105: RAFAEL ANTONIO LARA SANABRIA | S105: JUAN DAVID CORTÉS GOMEZ | T105: Persona Natural | X105: 57000000 | AB105: 57000000 | AC105: 5780000 | AD105: 2021-03-02 | AE105: 2021-03-04 | AF105: 2022-01-03 | AG105: 274 | AO105: X | AR105: 0.1014035088
A106: CPS-093-2021 | B106: 2021 | C106: FDLS-CD-082-2021 | D106: https://community.secop.gov.co/Public/Tendering/OpportunityDetail/Index?noticeUID=CO1.NTC.1818969&isFromPublicArea=True&isModal=False | E106: Contratos de prestación de servicios profesionales y de apoyo a la gestión | F106: Contratación directa | G106: Prestación de servicios profesionales y de apoyo a la gestión, o para la ejecución de trabajos artísticos que sólo puedan encomendarse a determinadas personas naturales; | H106: PRESTAR LOS SERVICIOS PROFESIONALES ESPECIALIZADOS AL ÁREA DE GESTIÓN DEL DESARROLLO LOCAL DE LA ALCALDÍA LOCAL DE SUMAPAZ | I106: Inversión | J106: Un Nuevo Contrato Social y Ambiental para la Bogotá del Siglo XXI | K106: 57 | L106: =IF(ISERROR(VLOOKUP(K106,Proposito_programa!$C$2:$E$59,2,FALSE))," ",VLOOKUP(K106,Proposito_programa!$C$2:$E$59,2,FALSE)) -> Gestión pública local | M106: =IF(ISERROR(VLOOKUP(K106,Proposito_programa!$C$2:$E$59,3,FALSE))," ",VLOOKUP(K106,Proposito_programa!$C$2:$E$59,3,FALSE)) -> Propósito 5: Construir Bogotá - Región con gobierno abierto, transparente y ciudadanía consciente | N106: 1696 | P106: 79625519 | Q106: JAIME ANTONIO MAHECHA QUINTERO | R106: JHONATAN VALBUENA VERGARA | S106: JAIME ANTONIO MAHECHA QUINTERO | T106: Persona Natural | X106: 75000000 | AB106: 75000000 | AC106: 50730000 | AD106: 2021-03-04 | AE106: 2021-03-04 | AF106: 2022-01-03 | AG106: 274 | AO106: X | AR106: 0.6764
A107: CPS-094-2021 | B107: 2021 | C107: FDLS-CD-083-2021 | D107: https://community.secop.gov.co/Public/Tendering/OpportunityDetail/Index?noticeUID=CO1.NTC.1823158&isFromPublicArea=True&isModal=False | E107: Contratos de prestación de servicios profesionales y de apoyo a la gestión | F107: Contratación directa | G107: Prestación de servicios profesionales y de apoyo a la gestión, o para la ejecución de trabajos artísticos que sólo puedan encomendarse a determinadas personas naturales; | H107: PRESTAR LOS SERVICIOS PROFESIONALES PARA APOYAR LA PLANEACIÓN, EJECUCIÓN Y SEGUIMIENTO DE LOS PROYECTOS DE INVERSIÓN EN TEMAS DE CULTURA QUE EJECUTE EL FONDO DE DESARROLLO LOCAL DE SUMAPAZ | I107: Inversión | J107: Un Nuevo Contrato Social y Ambiental para la Bogotá del Siglo XXI | K107: 57 | L107: =IF(ISERROR(VLOOKUP(K107,Proposito_programa!$C$2:$E$59,2,FALSE))," ",VLOOKUP(K107,Proposito_programa!$C$2:$E$59,2,FALSE)) -> Gestión pública local | M107: =IF(ISERROR(VLOOKUP(K107,Proposito_programa!$C$2:$E$59,3,FALSE))," ",VLOOKUP(K107,Proposito_programa!$C$2:$E$59,3,FALSE)) -> Propósito 5: Construir Bogotá - Región con gobierno abierto, transparente y ciudadanía consciente | N107: 1696 | P107: 28723701 | Q107: LUZ YOLANDA LEON FLOREZ | R107: JUAN DAVID CORTÉS GOMEZ | S107: LUZ YOLANDA LEON FLOREZ | T107: Persona Natural | X107: 57000000 | AB107: 57000000 | AC107: 75000000 | AD107: 2021-03-05 | AE107: 2021-03-08 | AF107: 2022-01-07 | AG107: 305 | AO107: X | AR107: 1.315789474
A108: CPS-095-2021 | B108: 2021 | C108: FDLS-CD-084-2021 | D108: https://community.secop.gov.co/Public/Tendering/OpportunityDetail/Index?noticeUID=CO1.NTC.1823712&isFromPublicArea=True&isModal=False | E108: Contratos de prestación de servicios profesionales y de apoyo a la gestión | F108: Contratación directa | G108: Prestación de servicios profesionales y de apoyo a la gestión, o para la ejecución de trabajos artísticos que sólo puedan encomendarse a determinadas personas naturales; | H108: PRESTAR LOS SERVICIOS COMO CONDUCTOR DEL CARROTANQUE DE PROPIEDAD DEL FONDO DE DESARROLLO LOCAL DE SUMAPAZ | I108: Inversión | J108: Un Nuevo Contrato Social y Ambiental para la Bogotá del Siglo XXI | K108: 57 | L108: =IF(ISERROR(VLOOKUP(K108,Proposito_programa!$C$2:$E$59,2,FALSE))," ",VLOOKUP(K108,Proposito_programa!$C$2:$E$59,2,FALSE)) -> Gestión pública local | M108: =IF(ISERROR(VLOOKUP(K108,Proposito_programa!$C$2:$E$59,3,FALSE))," ",VLOOKUP(K108,Proposito_programa!$C$2:$E$59,3,FALSE)) -> Propósito 5: Construir Bogotá - Región con gobierno abierto, transparente y ciudadanía consciente | N108: 1696 | P108: 1032656406 | Q108: FABIAN LEONARDO PULIDO MORENO | R108: JAIME ANTONIO MAHECHA QUINTERO | S108: FABIAN LEONARDO PULIDO MORENO | T108: Persona Natural | X108: 25500000 | Z108: 1 | AA108: 2550000 | AB108: 28050000 | AC108: 49970000 | AD108: 2021-03-05 | AE108: 2021-03-08 | AF108: 2022-02-07 | AG108: 336 | AH108: 1 | AI108: 30 | AO108: X | AR108: 1.781461676
A109: CPS-096-2021 | B109: 2021 | C109: FDLS-MC-066-2021 | D109: https://community.secop.gov.co/Public/Tendering/OpportunityDetail/Index?noticeUID=CO1.NTC.1802527&isFromPublicArea=True&isModal=False | E109: Contratos de prestación de servicios | F109: Contratación mínima cuantia | G109: No aplica | H109: CONTRATAR LA PRESTACION DE SERVICIOS DE VIGILANCIA Y SEGURIDAD PRIVADA CON ARMAS, PARA LAS SEDES DE LA ALCALDIA LOCAL DE SUMAPAZ | I109: Funcionamiento | J109: Un Nuevo Contrato Social y Ambiental para la Bogotá del Siglo XXI | K109: No aplica | L109: =IF(ISERROR(VLOOKUP(K109,Proposito_programa!$C$2:$E$59,2,FALSE))," ",VLOOKUP(K109,Proposito_programa!$C$2:$E$59,2,FALSE)) ->  | M109: =IF(ISERROR(VLOOKUP(K109,Proposito_programa!$C$2:$E$59,3,FALSE))," ",VLOOKUP(K109,Proposito_programa!$C$2:$E$59,3,FALSE)) ->  | O109: 1 | P109: 860518862 | Q109: SEGURIDAD LAS AMERICAS LTDA SEGURIAMERICAS LTDA | R109: LUZ YOLANDA LEON FLOREZ | S109: EDISON FERNEY MARTINEZ MOLINA - CEDIDO A GLORIA YOLANDA DIMATE RICO | T109: Persona Jurídica | X109: 25293289 | Z109: 2 | AA109: 12646644 | AB109: 37939933 | AC109: 24905000 | AD109: 2021-03-05 | AE109: 2021-03-06 | AF109: 2021-04-25 | AG109: 50 | AH109: 2 | AI109: 17 | AQ109: X | AR109: 0.6564323664
A110: CPS-097-2021 | B110: 2021 | C110: FDLS-CD-085-2021 | D110: https://community.secop.gov.co/Public/Tendering/OpportunityDetail/Index?noticeUID=CO1.NTC.1828826&isFromPublicArea=True&isModal=False | E110: Contratos de prestación de servicios profesionales y de apoyo a la gestión | F110: Contratación directa | G110: Prestación de servicios profesionales y de apoyo a la gestión, o para la ejecución de trabajos artísticos que sólo puedan encomendarse a determinadas personas naturales; | H110: PRESTAR LOS SERVICIOS COMO AUXILIAR ADMINISTRATIVO PARA EL CENTRO DE SERVICIOS DE SANTA ROSA | I110: Inversión | J110: Un Nuevo Contrato Social y Ambiental para la Bogotá del Siglo XXI | K110: 57 | L110: =IF(ISERROR(VLOOKUP(K110,Proposito_programa!$C$2:$E$59,2,FALSE))," ",VLOOKUP(K110,Proposito_programa!$C$2:$E$59,2,FALSE)) -> Gestión pública local | M110: =IF(ISERROR(VLOOKUP(K110,Proposito_programa!$C$2:$E$59,3,FALSE))," ",VLOOKUP(K110,Proposito_programa!$C$2:$E$59,3,FALSE)) -> Propósito 5: Construir Bogotá - Región con gobierno abierto, transparente y ciudadanía consciente | N110: 1696 | P110: 1023019730 | Q110: EDISON FERNEY MARTINEZ MOLINA | R110: FABIAN LEONARDO PULIDO MORENO | S110: MARTHA LILIANA CARRERO VILLAMIL | T110: Persona Natural | X110: 23000000 | AB110: 23000000 | AC110: 18663333 | AD110: 2021-03-08 | AE110: 2021-03-13 | AF110: 2022-05-12 | AG110: 303 | AJ110: 1022943098 | AK110: GLORIA YOLANDA DIMATE RICO | AL110: 2021-05-18 | AM110: 17863334 | AO110: X | AR110: 0.8114492609
A111: CPS-098-2021 | B111: 2021 | C111: FDLS-CD-086-2021 | D111: https://community.secop.gov.co/Public/Tendering/OpportunityDetail/Index?noticeUID=CO1.NTC.1838618&isFromPublicArea=True&isModal=False | E111: Contratos de prestación de servicios profesionales y de apoyo a la gestión | F111: Contratación directa | G111: Prestación de servicios profesionales y de apoyo a la gestión, o para la ejecución de trabajos artísticos que sólo puedan encomendarse a determinadas personas naturales; | H111: PRESTAR LOS SERVICIOS COMO AUXILIAR ADMINISTRATIVO EN LOS TEMAS FINANCIEROS DEL ÁREA DE GESTIÓN DE DESARROLLO LOCAL DE LA ALCALDÍA LOCAL DE SUMAPAZ | I111: Inversión | J111: Un Nuevo Contrato Social y Ambiental para la Bogotá del Siglo XXI | K111: 57 | L111: =IF(ISERROR(VLOOKUP(K111,Proposito_programa!$C$2:$E$59,2,FALSE))," ",VLOOKUP(K111,Proposito_programa!$C$2:$E$59,2,FALSE)) -> Gestión pública local | M111: =IF(ISERROR(VLOOKUP(K111,Proposito_programa!$C$2:$E$59,3,FALSE))," ",VLOOKUP(K111,Proposito_programa!$C$2:$E$59,3,FALSE)) -> Propósito 5: Construir Bogotá - Región con gobierno abierto, transparente y ciudadanía consciente | N111: 1696 | P111: 52809596 | Q111: MARTHA LILIANA CARRERO VILLAMIL | R111: EDISON FERNEY MARTINEZ MOLINA - CEDIDO A GLORIA YOLANDA DIMATE RICO | S111: EDISON JOAQUIN BECERRA GONZÁLEZ | T111: Persona Natural | X111: 26000000 | AB111: 26000000 | AC111: 24960000 | AD111: 2021-03-11 | AE111: 2021-03-13 | AF111: 2022-01-12 | AG111: 305 | AO111: X | AR111: 0.96
A112: CPS-099-2021 | B112: 2021 | C112: FDLS-CD-087-2021 | D112: https://community.secop.gov.co/Public/Tendering/OpportunityDetail/Index?noticeUID=CO1.NTC.1838491&isFromPublicArea=True&isModal=False | E112: Contratos de prestación de servicios profesionales y de apoyo a la gestión | F112: Contratación directa | G112: Prestación de servicios profesionales y de apoyo a la gestión, o para la ejecución de trabajos artísticos que sólo puedan encomendarse a determinadas personas naturales; | H112: PRESTAR LOS SERVICIOS COMO AYUDANTES DE MAQUINARIA PESADA DE PROPIEDAD O TENENCIA DEL FONDO DE DESARROLLO LOCAL DE SUMAPAZ | I112: Inversión | J112: Un Nuevo Contrato Social y Ambiental para la Bogotá del Siglo XXI | K112: 57 | L112: =IF(ISERROR(VLOOKUP(K112,Proposito_programa!$C$2:$E$59,2,FALSE))," ",VLOOKUP(K112,Proposito_programa!$C$2:$E$59,2,FALSE)) -> Gestión pública local | M112: =IF(ISERROR(VLOOKUP(K112,Proposito_programa!$C$2:$E$59,3,FALSE))," ",VLOOKUP(K112,Proposito_programa!$C$2:$E$59,3,FALSE)) -> Propósito 5: Construir Bogotá - Región con gobierno abierto, transparente y ciudadanía consciente | N112: 1696 | P112: 1055314053 | Q112: EDISON JOAQUIN BECERRA GONZALEZ | R112: MARTHA LILIANA CARRERO VILLAMIL | S112: GERMAN ROMERO ROMAN | T112: Persona Natural | X112: 25000000 | AB112: 25000000 | AC112: 24083333 | AD112: 2021-03-11 | AE112: 2021-03-12 | AF112: 2022-01-11 | AG112: 305 | AO112: X | AR112: 0.96333332
A113: CPS-100-2021 | B113: 2021 | C113: FDLS-CD-088-2021 | D113: https://community.secop.gov.co/Public/Tendering/OpportunityDetail/Index?noticeUID=CO1.NTC.1839097&isFromPublicArea=True&isModal=False | E113: Contratos de prestación de servicios profesionales y de apoyo a la gestión | F113: Contratación directa | G113: Prestación de servicios profesionales y de apoyo a la gestión, o para la ejecución de trabajos artísticos que sólo puedan encomendarse a determinadas personas naturales; | H113: PRESTAR LOS SERVICIOS COMO CONDUCTOR DE VEHÍCULOS PESADOS DE PROPIEDAD O TENENCIA DEL FONDO DE DESARROLLO LOCAL DE SUMAPAZ | I113: Inversión | J113: Un Nuevo Contrato Social y Ambiental para la Bogotá del Siglo XXI | K113: 57 | L113: =IF(ISERROR(VLOOKUP(K113,Proposito_programa!$C$2:$E$59,2,FALSE))," ",VLOOKUP(K113,Proposito_programa!$C$2:$E$59,2,FALSE)) -> Gestión pública local | M113: =IF(ISERROR(VLOOKUP(K113,Proposito_programa!$C$2:$E$59,3,FALSE))," ",VLOOKUP(K113,Proposito_programa!$C$2:$E$59,3,FALSE)) -> Propósito 5: Construir Bogotá - Región con gobierno abierto, transparente y ciudadanía consciente | N113: 1696 | P113: 79632409 | Q113: GERMAN ROMERO ROMAN | R113: EDISON JOAQUIN BECERRA GONZÁLEZ | S113: JENNY VIVIANA CASTAÑEDA RAMIREZ | T113: Persona Natural | X113: 25500000 | AB113: 25500000 | AC113: 24565000 | AD113: 2021-03-11 | AE113: 2021-03-12 | AF113: 2022-01-11 | AG113: 305 | AO113: X | AR113: 0.9633333333
A114: CPS-101-2021 | B114: 2021 | C114: FDLS-CD-089-2021 | D114: https://community.secop.gov.co/Public/Tendering/OpportunityDetail/Index?noticeUID=CO1.NTC.1838812&isFromPublicArea=True&isModal=False | E114: Contratos de prestación de servicios profesionales y de apoyo a la gestión | F114: Contratación directa | G114: Prestación de servicios profesionales y de apoyo a la gestión, o para la ejecución de trabajos artísticos que sólo puedan encomendarse a determinadas personas naturales; | H114: PRESTAR SUS SERVICIOS PROFESIONALES PARA APOYAR AL EQUIPO DE PRENSA Y COMUNICACIONES DE LA ALCALDÍA LOCAL EN LA REALIZACIÓN DE PRODUCTOS Y PIEZAS DIGITALES, IMPRESAS Y PUBLICITARIAS DE GRAN FORMATO Y DE ANIMACIÓN GRÁFICA, ASÍ COMO APOYAR LA PRODUCCIÓN Y MONTAJE DE EVENTOS | I114: Inversión | J114: Un Nuevo Contrato Social y Ambiental para la Bogotá del Siglo XXI | K114: 57 | L114: =IF(ISERROR(VLOOKUP(K114,Proposito_programa!$C$2:$E$59,2,FALSE))," ",VLOOKUP(K114,Proposito_programa!$C$2:$E$59,2,FALSE)) -> Gestión pública local | M114: =IF(ISERROR(VLOOKUP(K114,Proposito_programa!$C$2:$E$59,3,FALSE))," ",VLOOKUP(K114,Proposito_programa!$C$2:$E$59,3,FALSE)) -> Propósito 5: Construir Bogotá - Región con gobierno abierto, transparente y ciudadanía consciente | N114: 1696 | P114: 1012368691 | Q114: JENNY VIVIANA CASTAÑEDA RAMIREZ | R114: GERMAN ROMERO ROMAN | S114: ANDREI ESTEBAN VARGAS BENITEZ | T114: Persona Natural | X114: 49500000 | Z114: 1 | AA114: 5500000 | AB114: 55000000 | AC114: 52800000 | AD114: 2021-03-11 | AE114: 2021-03-13 | AF114: 2022-01-12 | AG114: 305 | AH114: 1 | AI114: 30 | AO114: X | AR114: 0.96
A115: CPS-102-2021 | B115: 2021 | C115: FDLS-CD-090-2021 | D115: https://community.secop.gov.co/Public/Tendering/OpportunityDetail/Index?noticeUID=CO1.NTC.1838280&isFromPublicArea=True&isModal=False | E115: Contratos de prestación de servicios profesionales y de apoyo a la gestión | F115: Contratación directa | G115: Prestación de servicios profesionales y de apoyo a la gestión, o para la ejecución de trabajos artísticos que sólo puedan encomendarse a determinadas personas naturales; | H115: PRESTAR LOS SERVICIOS DE APOYO ADMINISTRATIVO EN LOS PROCESOS QUE SE ADELANTAN EN EL ALMACÉN DE LA ALCALDÍA LOCAL DE SUMAPAZ | I115: Inversión | J115: Un Nuevo Contrato Social y Ambiental para la Bogotá del Siglo XXI | K115: 57 | L115: =IF(ISERROR(VLOOKUP(K115,Proposito_programa!$C$2:$E$59,2,FALSE))," ",VLOOKUP(K115,Proposito_programa!$C$2:$E$59,2,FALSE)) -> Gestión pública local | M115: =IF(ISERROR(VLOOKUP(K115,Proposito_programa!$C$2:$E$59,3,FALSE))," ",VLOOKUP(K115,Proposito_programa!$C$2:$E$59,3,FALSE)) -> Propósito 5: Construir Bogotá - Región con gobierno abierto, transparente y ciudadanía consciente | N115: 1696 | P115: 1030591646 | Q115: ANDREI ESTEBAN VARGAS BENITEZ | R115: DIEGO YOHANY REY CHINGATE | S115: EDUAR IVAN AVENDAÑO BAUTISTA | T115: Persona Natural | X115: 7800000 | AB115: 7800000 | AC115: 7800000 | AD115: 2021-03-11 | AE115: 2021-03-12 | AF115: 2021-06-11 | AG115: 91 | AP115: X | AR115: 1
A116: CPS-103-2021 | B116: 2021 | C116: FDLS-CD-091-2021 | D116: https://community.secop.gov.co/Public/Tendering/OpportunityDetail/Index?noticeUID=CO1.NTC.1849107&isFromPublicArea=True&isModal=False | E116: Contratos de prestación de servicios profesionales y de apoyo a la gestión | F116: Contratación directa | G116: Prestación de servicios profesionales y de apoyo a la gestión, o para la ejecución de trabajos artísticos que sólo puedan encomendarse a determinadas personas naturales; | H116: PRESTAR LOS SERVICIOS COMO CONDUCTOR DE VEHÍCULOS PESADOS DE PROPIEDAD O TENENCIA DEL FONDO DE DESARROLLO LOCAL DE SUMAPAZ | I116: Inversión | J116: Un Nuevo Contrato Social y Ambiental para la Bogotá del Siglo XXI | K116: 57 | L116: =IF(ISERROR(VLOOKUP(K116,Proposito_programa!$C$2:$E$59,2,FALSE))," ",VLOOKUP(K116,Proposito_programa!$C$2:$E$59,2,FALSE)) -> Gestión pública local | M116: =IF(ISERROR(VLOOKUP(K116,Proposito_programa!$C$2:$E$59,3,FALSE))," ",VLOOKUP(K116,Proposito_programa!$C$2:$E$59,3,FALSE)) -> Propósito 5: Construir Bogotá - Región con gobierno abierto, transparente y ciudadanía consciente | N116: 1696 | P116: 80742188 | Q116: EDUAR IVAN AVENDAÑO BAUTISTA | R116: JENNY VIVIANA CASTAÑEDA RAMIREZ | S116: LEMDER CONTRERAS MARROQUIN | T116: Persona Natural | X116: 25500000 | AB116: 25500000 | AC116: 24140000 | AD116: 2021-03-16 | AE116: 2021-03-17 | AF116: 2022-01-16 | AG116: 305 | AO116: X | AR116: 0.9466666667
A117: CPS-104-2021 | B117: 2021 | C117: FDLS-CD-091-2021 | D117: https://community.secop.gov.co/Public/Tendering/OpportunityDetail/Index?noticeUID=CO1.NTC.1849107&isFromPublicArea=True&isModal=False | E117: Contratos de prestación de servicios profesionales y de apoyo a la gestión | F117: Contratación directa | G117: Prestación de servicios profesionales y de apoyo a la gestión, o para la ejecución de trabajos artísticos que sólo puedan encomendarse a determinadas personas naturales; | H117: PRESTAR LOS SERVICIOS COMO CONDUCTOR DE VEHÍCULOS PESADOS DE PROPIEDAD O TENENCIA DEL FONDO DE DESARROLLO LOCAL DE SUMAPAZ | I117: Inversión | J117: Un Nuevo Contrato Social y Ambiental para la Bogotá del Siglo XXI | K117: 57 | L117: =IF(ISERROR(VLOOKUP(K117,Proposito_programa!$C$2:$E$59,2,FALSE))," ",VLOOKUP(K117,Proposito_programa!$C$2:$E$59,2,FALSE)) -> Gestión pública local | M117: =IF(ISERROR(VLOOKUP(K117,Proposito_programa!$C$2:$E$59,3,FALSE))," ",VLOOKUP(K117,Proposito_programa!$C$2:$E$59,3,FALSE)) -> Propósito 5: Construir Bogotá - Región con gobierno abierto, transparente y ciudadanía consciente | N117: 1696 | P117: 79819196 | Q117: LEMDER CONTRERAS MARROQUIN | R117: ANDREI ESTEBAN VARGAS BENITEZ | S117: DIEGO YOHANY REY CHINGATE | T117: Persona Natural | X117: 25500000 | AB117: 25500000 | AC117: 24140000 | AD117: 2021-03-16 | AE117: 2021-03-17 | AF117: 2022-01-16 | AG117: 305 | AO117: X | AR117: 0.9466666667
A118: CPS-105-2021 | B118: 2021 | C118: FDLS-CD-088-2021 | D118: https://community.secop.gov.co/Public/Tendering/OpportunityDetail/Index?noticeUID=CO1.NTC.1839097&isFromPublicArea=True&isModal=False | E118: Contratos de prestación de servicios profesionales y de apoyo a la gestión | F118: Contratación directa | G118: Prestación de servicios profesionales y de apoyo a la gestión, o para la ejecución de trabajos artísticos que sólo puedan encomendarse a determinadas personas naturales; | H118: PRESTAR LOS SERVICIOS COMO CONDUCTOR DE VEHÍCULOS PESADOS DE PROPIEDAD O TENENCIA DEL FONDO DE DESARROLLO LOCAL DE SUMAPAZ | I118: Inversión | J118: Un Nuevo Contrato Social y Ambiental para la Bogotá del Siglo XXI | K118: 57 | L118: =IF(ISERROR(VLOOKUP(K118,Proposito_programa!$C$2:$E$59,2,FALSE))," ",VLOOKUP(K118,Proposito_programa!$C$2:$E$59,2,FALSE)) -> Gestión pública local | M118: =IF(ISERROR(VLOOKUP(K118,Proposito_programa!$C$2:$E$59,3,FALSE))," ",VLOOKUP(K118,Proposito_programa!$C$2:$E$59,3,FALSE)) -> Propósito 5: Construir Bogotá - Región con gobierno abierto, transparente y ciudadanía consciente | N118: 1696 | P118: 1032656218 | Q118: DIEGO YOHANY REY CHINGATE | R118: EDUAR IVAN AVENDAÑO BAUTISTA | S118: MILENY HILARION RIOS | T118: Persona Natural | X118: 25500000 | AB118: 25500000 | AC118: 21675000 | AD118: 2021-03-11 | AE118: 2021-03-16 | AF118: 2022-01-15 | AG118: 305 | AO118: X | AR118: 0.85
A119: CPS-106-2021 | B119: 2021 | C119: FDLS-CD-093-2021 | D119: https://community.secop.gov.co/Public/Tendering/OpportunityDetail/Index?noticeUID=CO1.NTC.1840862&isFromPublicArea=True&isModal=False | E119: Contratos de prestación de servicios profesionales y de apoyo a la gestión | F119: Contratación directa | G119: Prestación de servicios profesionales y de apoyo a la gestión, o para la ejecución de trabajos artísticos que sólo puedan encomendarse a determinadas personas naturales; | H119: PRESTAR LOS SERVICIOS PROFESIONALES PARA LA OPERACIÓN, PRESTACIÓN, SEGUIMIENTO Y CUMPLIMIENTO DE LOS PROCEDIMIENTOS ADMINISTRATIVOS, OPERATIVOS Y PROGRAMÁTICOS DEL SERVICIO APOYO ECONÓMICO TIPO C, QUE CONTRIBUYAN A LA GARANTÍA DE LOS DERECHOS DE LA POBLACIÓN MAYOR EN EL MARCO DE LA POLÍTICA PÚBLICA SOCIAL PARA EL ENVEJECIMIENTO Y LA VEJEZ EN EL DISTRITO CAPITAL A CARGO DE LA ALCALDÍA LOCAL DE SUMAPAZ | I119: Inversión | J119: Un Nuevo Contrato Social y Ambiental para la Bogotá del Siglo XXI | K119: 1 | L119: =IF(ISERROR(VLOOKUP(K119,Proposito_programa!$C$2:$E$59,2,FALSE))," ",VLOOKUP(K119,Proposito_programa!$C$2:$E$59,2,FALSE)) -> Subsidios y transferencias para la equidad | M119: =IF(ISERROR(VLOOKUP(K119,Proposito_programa!$C$2:$E$59,3,FALSE))," ",VLOOKUP(K119,Proposito_programa!$C$2:$E$59,3,FALSE)) -> Propósito 1: Hacer un nuevo contrato social para incrementar la inclusión social, productiva y política | N119: 1583 | P119: 52372021 | Q119: MILENY HILARION RIOS | R119: LEMDER CONTRERAS MARROQUIN | S119: LEILA MARCELA LUGO | T119: Persona Natural | X119: 43650000 | AB119: 43650000 | AC119: 42049500 | AD119: 2021-03-12 | AE119: 2021-03-12 | AF119: 2022-01-11 | AG119: 305 | AO119: X | AR119: 0.9633333333
A120: CPS-107-2021 | B120: 2021 | C120: FDLS-CD-094-2021 | D120: https://community.secop.gov.co/Public/Tendering/OpportunityDetail/Index?noticeUID=CO1.NTC.1840966&isFromPublicArea=True&isModal=False | E120: Contratos de prestación de servicios profesionales y de apoyo a la gestión | F120: Contratación directa | G120: Prestación de servicios profesionales y de apoyo a la gestión, o para la ejecución de trabajos artísticos que sólo puedan encomendarse a determinadas personas naturales; | H120: PRESTAR LOS SERVICIOS PROFESIONALES PARA LA OPERACIÓN, PRESTACIÓN, SEGUIMIENTO Y CUMPLIMIENTO DE LOS PROCEDIMIENTOS ADMINISTRATIVOS, OPERATIVOS Y PROGRAMÁTICOS DEL SERVICIO APOYO ECONÓMICO TIPO C, QUE CONTRIBUYAN A LA GARANTÍA DE LOS DERECHOS DE LA POBLACIÓN MAYOR EN EL MARCO DE LA POLÍTICA PÚBLICA SOCIAL PARA EL ENVEJECIMIENTO Y LA VEJEZ EN EL DISTRITO CAPITAL A CARGO DE LA ALCALDÍA LOCAL DE SUMAPAZ | I120: Inversión | J120: Un Nuevo Contrato Social y Ambiental para la Bogotá del Siglo XXI | K120: 1 | L120: =IF(ISERROR(VLOOKUP(K120,Proposito_programa!$C$2:$E$59,2,FALSE))," ",VLOOKUP(K120,Proposito_programa!$C$2:$E$59,2,FALSE)) -> Subsidios y transferencias para la equidad | M120: =IF(ISERROR(VLOOKUP(K120,Proposito_programa!$C$2:$E$59,3,FALSE))," ",VLOOKUP(K120,Proposito_programa!$C$2:$E$59,3,FALSE)) -> Propósito 1: Hacer un nuevo contrato social para incrementar la inclusión social, productiva y política | N120: 1583 | P120: 1018414927 | Q120: LEILA MARCELA LUGO | R120: VISATEL DE COLOMBIA S A S | S120: ARNOLDO RAMIREZ MALAGÓN | T120: Persona Natural | X120: 51300000 | Z120: 1 | AA120: 5700000 | AB120: 57000000 | AC120: 54340000 | AD120: 2021-03-12 | AE120: 2021-03-15 | AF120: 2022-01-14 | AG120: 305 | AH120: 1 | AI120: 30 | AO120: X | AR120: 0.9533333333
A121: CPS-108-2021 | B121: 2021 | C121: FDLS-CD-080-2021* | D121: https://community.secop.gov.co/Public/Tendering/OpportunityDetail/Index?noticeUID=CO1.NTC.1840702&isFromPublicArea=True&isModal=False | E121: Contratos de prestación de servicios profesionales y de apoyo a la gestión | F121: Contratación directa | G121: Prestación de servicios profesionales y de apoyo a la gestión, o para la ejecución de trabajos artísticos que sólo puedan encomendarse a determinadas personas naturales; | H121: PRESTAR LOS SERVICIOS COMO OPERARIOS DE LA MAQUINARIA PESADA DE PROPIEDAD O TENENCIA DEL FONDO DE DESARROLLO LOCAL DE SUMAPAZ | I121: Inversión | J121: Un Nuevo Contrato Social y Ambiental para la Bogotá del Siglo XXI | K121: 57 | L121: =IF(ISERROR(VLOOKUP(K121,Proposito_programa!$C$2:$E$59,2,FALSE))," ",VLOOKUP(K121,Proposito_programa!$C$2:$E$59,2,FALSE)) -> Gestión pública local | M121: =IF(ISERROR(VLOOKUP(K121,Proposito_programa!$C$2:$E$59,3,FALSE))," ",VLOOKUP(K121,Proposito_programa!$C$2:$E$59,3,FALSE)) -> Propósito 5: Construir Bogotá - Región con gobierno abierto, transparente y ciudadanía consciente | N121: 1696 | P121: 80489721 | Q121: ARNOLDO RAMIREZ MALAGON | R121: MILENY HILARION RIOS | S121: HECTOR ERNESTO GARCÍA GARIBELLO | T121: Persona Natural | X121: 22950000 | Z121: 1 | AA121: 2550000 | AB121: 25500000 | AC121: 24310000 | AD121: 2021-03-12 | AE121: 2021-03-15 | AF121: 2022-01-14 | AG121: 305 | AH121: 1 | AI121: 30 | AO121: X | AR121: 0.9533333333
A122: CPS-109-2021 | B122: 2021 | C122: FDLS-CD-080-2021* | D122: https://community.secop.gov.co/Public/Tendering/OpportunityDetail/Index?noticeUID=CO1.NTC.1840702&isFromPublicArea=True&isModal=False | E122: Contratos de prestación de servicios profesionales y de apoyo a la gestión | F122: Contratación directa | G122: Prestación de servicios profesionales y de apoyo a la gestión, o para la ejecución de trabajos artísticos que sólo puedan encomendarse a determinadas personas naturales; | H122: PRESTAR LOS SERVICIOS COMO OPERARIOS DE LA MAQUINARIA PESADA DE PROPIEDAD O TENENCIA DEL FONDO DE DESARROLLO LOCAL DE SUMAPAZ | I122: Inversión | J122: Un Nuevo Contrato Social y Ambiental para la Bogotá del Siglo XXI | K122: 57 | L122: =IF(ISERROR(VLOOKUP(K122,Proposito_programa!$C$2:$E$59,2,FALSE))," ",VLOOKUP(K122,Proposito_programa!$C$2:$E$59,2,FALSE)) -> Gestión pública local | M122: =IF(ISERROR(VLOOKUP(K122,Proposito_programa!$C$2:$E$59,3,FALSE))," ",VLOOKUP(K122,Proposito_programa!$C$2:$E$59,3,FALSE)) -> Propósito 5: Construir Bogotá - Región con gobierno abierto, transparente y ciudadanía consciente | N122: 1696 | P122: 1033676728 | Q122: HECTOR ERNESTO GARCIA GARIBELLO | R122: LEILA MARCELA LUGO | S122: JOSE JAVIER PORRAS | T122: Persona Natural | X122: 22950000 | Z122: 1 | AA122: 2550000 | AB122: 25500000 | AC122: 24310000 | AD122: 2021-03-12 | AE122: 2021-03-15 | AF122: 2022-01-14 | AG122: 305 | AH122: 1 | AI122: 30 | AO122: X | AR122: 0.9533333333
A123: CPS-110-2021 | B123: 2021 | C123: FDLS-CD-080-2021* | D123: https://community.secop.gov.co/Public/Tendering/OpportunityDetail/Index?noticeUID=CO1.NTC.1840702&isFromPublicArea=True&isModal=False | E123: Contratos de prestación de servicios profesionales y de apoyo a la gestión | F123: Contratación directa | G123: Prestación de servicios profesionales y de apoyo a la gestión, o para la ejecución de trabajos artísticos que sólo puedan encomendarse a determinadas personas naturales; | H123: PRESTAR LOS SERVICIOS COMO OPERARIOS DE LA MAQUINARIA PESADA DE PROPIEDAD O TENENCIA DEL FONDO DE DESARROLLO LOCAL DE SUMAPAZ | I123: Inversión | J123: Un Nuevo Contrato Social y Ambiental para la Bogotá del Siglo XXI | K123: 57 | L123: =IF(ISERROR(VLOOKUP(K123,Proposito_programa!$C$2:$E$59,2,FALSE))," ",VLOOKUP(K123,Proposito_programa!$C$2:$E$59,2,FALSE)) -> Gestión pública local | M123: =IF(ISERROR(VLOOKUP(K123,Proposito_programa!$C$2:$E$59,3,FALSE))," ",VLOOKUP(K123,Proposito_programa!$C$2:$E$59,3,FALSE)) -> Propósito 5: Construir Bogotá - Región con gobierno abierto, transparente y ciudadanía consciente | N123: 1696 | P123: 79519630 | Q123: JOSE JAVIER PORRAS | R123: ARNOLDO RAMIREZ MALAGÓN | S123: LEONEL JESID MARTINEZ MARTINEZ | T123: Persona Natural | X123: 22950000 | Z123: 1 | AA123: 2550000 | AB123: 25500000 | AC123: 24310000 | AD123: 2021-03-12 | AE123: 2021-03-15 | AF123: 2022-01-14 | AG123: 305 | AH123: 1 | AI123: 30 | AO123: X | AR123: 0.9533333333
A124: CPS-111-2021 | B124: 2021 | C124: FDLS-CD-080-2021* | D124: https://community.secop.gov.co/Public/Tendering/OpportunityDetail/Index?noticeUID=CO1.NTC.1840702&isFromPublicArea=True&isModal=False | E124: Contratos de prestación de servicios profesionales y de apoyo a la gestión | F124: Contratación directa | G124: Prestación de servicios profesionales y de apoyo a la gestión, o para la ejecución de trabajos artísticos que sólo puedan encomendarse a determinadas personas naturales; | H124: PRESTAR LOS SERVICIOS COMO OPERARIOS DE LA MAQUINARIA PESADA DE PROPIEDAD O TENENCIA DEL FONDO DE DESARROLLO LOCAL DE SUMAPAZ | I124: Inversión | J124: Un Nuevo Contrato Social y Ambiental para la Bogotá del Siglo XXI | K124: 57 | L124: =IF(ISERROR(VLOOKUP(K124,Proposito_programa!$C$2:$E$59,2,FALSE))," ",VLOOKUP(K124,Proposito_programa!$C$2:$E$59,2,FALSE)) -> Gestión pública local | M124: =IF(ISERROR(VLOOKUP(K124,Proposito_programa!$C$2:$E$59,3,FALSE))," ",VLOOKUP(K124,Proposito_programa!$C$2:$E$59,3,FALSE)) -> Propósito 5: Construir Bogotá - Región con gobierno abierto, transparente y ciudadanía consciente | N124: 1696 | P124: 1023017436 | Q124: LEONEL JESID MARTINEZ MARTINEZ | R124: HECTOR ERNESTO GARCÍA GARIBELLO | S124: PABLO YESID RIOS HILARION | T124: Persona Natural | X124: 22950000 | AB124: 22950000 | AC124: 21250000 | AD124: 2021-03-12 | AE124: 2021-03-15 | AF124: 2021-12-20 | AG124: 274 | AP124: X | AR124: 0.9259259259
A125: CPS-112-2021 | B125: 2021 | C125: FDLS-CD-080-2021* | D125: https://community.secop.gov.co/Public/Tendering/OpportunityDetail/Index?noticeUID=CO1.NTC.1840702&isFromPublicArea=True&isModal=False | E125: Contratos de prestación de servicios profesionales y de apoyo a la gestión | F125: Contratación directa | G125: Prestación de servicios profesionales y de apoyo a la gestión, o para la ejecución de trabajos artísticos que sólo puedan encomendarse a determinadas personas naturales; | H125: PRESTAR LOS SERVICIOS COMO OPERARIOS DE LA MAQUINARIA PESADA DE PROPIEDAD O TENENCIA DEL FONDO DE DESARROLLO LOCAL DE SUMAPAZ | I125: Inversión | J125: Un Nuevo Contrato Social y Ambiental para la Bogotá del Siglo XXI | K125: 57 | L125: =IF(ISERROR(VLOOKUP(K125,Proposito_programa!$C$2:$E$59,2,FALSE))," ",VLOOKUP(K125,Proposito_programa!$C$2:$E$59,2,FALSE)) -> Gestión pública local | M125: =IF(ISERROR(VLOOKUP(K125,Proposito_programa!$C$2:$E$59,3,FALSE))," ",VLOOKUP(K125,Proposito_programa!$C$2:$E$59,3,FALSE)) -> Propósito 5: Construir Bogotá - Región con gobierno abierto, transparente y ciudadanía consciente | N125: 1696 | P125: 1023025796 | Q125: PABLO YESID RIOS HILARION | R125: JOSE JAVIER PORRAS | S125: PEDRO ALFONSO CASTRO MORALES | T125: Persona Natural | X125: 22950000 | Z125: 1 | AA125: 2550000 | AB125: 25500000 | AC125: 24310000 | AD125: 2021-03-12 | AE125: 2021-03-15 | AF125: 2022-01-14 | AG125: 305 | AH125: 1 | AI125: 30 | AO125: X | AR125: 0.9533333333
A126: CPS-113-2021 | B126: 2021 | C126: FDLS-CD-095-2021 | D126: https://community.secop.gov.co/Public/Tendering/OpportunityDetail/Index?noticeUID=CO1.NTC.1841521&isFromPublicArea=True&isModal=False | E126: Contratos de prestación de servicios profesionales y de apoyo a la gestión | F126: Contratación directa | G126: Prestación de servicios profesionales y de apoyo a la gestión, o para la ejecución de trabajos artísticos que sólo puedan encomendarse a determinadas personas naturales; | H126: PRESTAR LOS SERVICIOS PARA DESARROLLAR ACTIVIDADES LOGÍSTICAS Y OPERATIVAS, EN LOS BIENES Y/O PREDIOS EN DONDE FUNCIONA LA ALCALDÍA LOCAL DE SUMAPAZ | I126: Inversión | J126: Un Nuevo Contrato Social y Ambiental para la Bogotá del Siglo XXI | K126: 57 | L126: =IF(ISERROR(VLOOKUP(K126,Proposito_programa!$C$2:$E$59,2,FALSE))," ",VLOOKUP(K126,Proposito_programa!$C$2:$E$59,2,FALSE)) -> Gestión pública local | M126: =IF(ISERROR(VLOOKUP(K126,Proposito_programa!$C$2:$E$59,3,FALSE))," ",VLOOKUP(K126,Proposito_programa!$C$2:$E$59,3,FALSE)) -> Propósito 5: Construir Bogotá - Región con gobierno abierto, transparente y ciudadanía consciente | N126: 1696 | P126: 80559448 | Q126: PEDRO ALFONSO CASTRO MORALES | R126: LEONEL JESID MARTINEZ MARTINEZ | S126: SANTIAGO HINCAPIE GARCIA | T126: Persona Natural | X126: 23400000 | Z126: 1 | AA126: 2600000 | AB126: 26000000 | AC126: 25046666 | AD126: 2021-03-12 | AE126: 2021-03-12 | AF126: 2022-01-11 | AG126: 274 | AH126: 1 | AI126: 30 | AO126: X | AR126: 0.9633333077
A127: CPS-114-2021 | B127: 2021 | C127: FDLS-CD-096-2021 | D127: https://community.secop.gov.co/Public/Tendering/OpportunityDetail/Index?noticeUID=CO1.NTC.1849195&isFromPublicArea=True&isModal=False | E127: Contratos de prestación de servicios profesionales y de apoyo a la gestión | F127: Contratación directa | G127: Prestación de servicios profesionales y de apoyo a la gestión, o para la ejecución de trabajos artísticos que sólo puedan encomendarse a determinadas personas naturales; | H127: PRESTAR LOS SERVICIOS PROFESIONALES PARA APOYAR LA FORMULACIÓN, EJECUCIÓN, SEGUIMIENTO Y MEJORA CONTINUA DE LAS HERRAMIENTAS QUE CONFORMAN LA GESTIÓN AMBIENTAL INSTITUCIONAL DE LA ALCALDÍA LOCAL | I127: Inversión | J127: Un Nuevo Contrato Social y Ambiental para la Bogotá del Siglo XXI | K127: 28 | L127: =IF(ISERROR(VLOOKUP(K127,Proposito_programa!$C$2:$E$59,2,FALSE))," ",VLOOKUP(K127,Proposito_programa!$C$2:$E$59,2,FALSE)) -> Bogotá protectora de sus recursos naturales | M127: =IF(ISERROR(VLOOKUP(K127,Proposito_programa!$C$2:$E$59,3,FALSE))," ",VLOOKUP(K127,Proposito_programa!$C$2:$E$59,3,FALSE)) -> Propósito 2 : Cambiar Nuestros Hábitos de Vida para Reverdecer a Bogotá y Adaptarnos y Mitigar la Crisis Climática | N127: 1648 | P127: 1077034483 | Q127: SANTIAGO HINCAPIE GARCIA | R127: PABLO YESID RIOS HILARION | S127: MIGUEL ANTONIO CHAVARRO TORRES | T127: Persona Natural | X127: 43650000 | AB127: 43650000 | AC127: 41031000 | AD127: 2021-03-16 | AE127: 2021-03-19 | AF127: 2022-01-18 | AG127: 305 | AO127: X | AR127: 0.94
A128: CPS-115-2021 | B128: 2021 | C128: FDLS-CD-097-2021 | D128: https://community.secop.gov.co/Public/Tendering/OpportunityDetail/Index?noticeUID=CO1.NTC.1846655&isFromPublicArea=True&isModal=False | E128: Contratos de prestación de servicios profesionales y de apoyo a la gestión | F128: Contratación directa | G128: Prestación de servicios profesionales y de apoyo a la gestión, o para la ejecución de trabajos artísticos que sólo puedan encomendarse a determinadas personas naturales; | H128: PRESTAR LOS SERVICIOS COMO AUXILIAR ADMINISTRATIVO PARA EL ÁREA DE GESTIÓN DE DESARROLLO LOCAL, EN LOS TEMAS DE INFRAESTRUCTURA, DE LA ALCALDÍA LOCAL DE SUMAPAZ | I128: Inversión | J128: Un Nuevo Contrato Social y Ambiental para la Bogotá del Siglo XXI | K128: 57 | L128: =IF(ISERROR(VLOOKUP(K128,Proposito_programa!$C$2:$E$59,2,FALSE))," ",VLOOKUP(K128,Proposito_programa!$C$2:$E$59,2,FALSE)) -> Gestión pública local | M128: =IF(ISERROR(VLOOKUP(K128,Proposito_programa!$C$2:$E$59,3,FALSE))," ",VLOOKUP(K128,Proposito_programa!$C$2:$E$59,3,FALSE)) -> Propósito 5: Construir Bogotá - Región con gobierno abierto, transparente y ciudadanía consciente | N128: 1696 | P128: 1023020151 | Q128: MIGUEL ANTONIO CHAVARRO TORRES | R128: PEDRO ALFONSO CASTRO MORALES | S128: FABIO MORENO TORRES | T128: Persona Natural | X128: 18000000 | AB128: 18000000 | AC128: 15240000 | AD128: 2021-03-15 | AE128: 2021-03-17 | AF128: 2022-01-16 | AG128: 305 | AO128: X | AR128: 0.8466666667
A129: CPS-116-2021 | B129: 2021 | C129: FDLS-CD-100-2021 | D129: https://community.secop.gov.co/Public/Tendering/OpportunityDetail/Index?noticeUID=CO1.NTC.1850930&isFromPublicArea=True&isModal=False | E129: Contratos de prestación de servicios profesionales y de apoyo a la gestión | F129: Contratación directa | G129: Prestación de servicios profesionales y de apoyo a la gestión, o para la ejecución de trabajos artísticos que sólo puedan encomendarse a determinadas personas naturales; | H129: PRESTAR LOS SERVICIOS COMO OPERARIOS DE LA MAQUINARIA PESADA DE PROPIEDAD O TENENCIA DEL FONDO DE DESARROLLO LOCAL DE SUMAPAZ | I129: Inversión | J129: Un Nuevo Contrato Social y Ambiental para la Bogotá del Siglo XXI | K129: 57 | L129: =IF(ISERROR(VLOOKUP(K129,Proposito_programa!$C$2:$E$59,2,FALSE))," ",VLOOKUP(K129,Proposito_programa!$C$2:$E$59,2,FALSE)) -> Gestión pública local | M129: =IF(ISERROR(VLOOKUP(K129,Proposito_programa!$C$2:$E$59,3,FALSE))," ",VLOOKUP(K129,Proposito_programa!$C$2:$E$59,3,FALSE)) -> Propósito 5: Construir Bogotá - Región con gobierno abierto, transparente y ciudadanía consciente | N129: 1696 | P129: 79887251 | Q129: FABIO MORENO TORRES | R129: SANTIAGO HINCAPIE GARCIA | S129: RUPERTO VILLALBA ROMAN | T129: Persona Natural | X129: 22950000 | Z129: 1 | AA129: 2550000 | AB129: 25500000 | AC129: 24055000 | AD129: 2021-03-16 | AE129: 2021-03-18 | AF129: 2022-01-17 | AG129: 307 | AH129: 1 | AI129: 30 | AO129: X | AR129: 0.9433333333
A130: CPS-117-2021 | B130: 2021 | C130: FDLS-CD-100-2021 | D130: https://community.secop.gov.co/Public/Tendering/OpportunityDetail/Index?noticeUID=CO1.NTC.1850930&isFromPublicArea=True&isModal=False | E130: Contratos de prestación de servicios profesionales y de apoyo a la gestión | F130: Contratación directa | G130: Prestación de servicios profesionales y de apoyo a la gestión, o para la ejecución de trabajos artísticos que sólo puedan encomendarse a determinadas personas naturales; | H130: PRESTAR LOS SERVICIOS COMO OPERARIOS DE LA MAQUINARIA PESADA DE PROPIEDAD O TENENCIA DEL FONDO DE DESARROLLO LOCAL DE SUMAPAZ | I130: Inversión | J130: Un Nuevo Contrato Social y Ambiental para la Bogotá del Siglo XXI | K130: 57 | L130: =IF(ISERROR(VLOOKUP(K130,Proposito_programa!$C$2:$E$59,2,FALSE))," ",VLOOKUP(K130,Proposito_programa!$C$2:$E$59,2,FALSE)) -> Gestión pública local | M130: =IF(ISERROR(VLOOKUP(K130,Proposito_programa!$C$2:$E$59,3,FALSE))," ",VLOOKUP(K130,Proposito_programa!$C$2:$E$59,3,FALSE)) -> Propósito 5: Construir Bogotá - Región con gobierno abierto, transparente y ciudadanía consciente | N130: 1696 | P130: 174188 | Q130: RUPERTO VILLALBA ROMAN | R130: MIGUEL ANTONIO CHAVARRO TORRES | S130: JENNY MARCELA PACHECO DUARTE | T130: Persona Natural | X130: 22950000 | Z130: 1 | AA130: 2550000 | AB130: 25500000 | AC130: 21505000 | AD130: 2021-03-16 | AE130: 2021-03-18 | AF130: 2022-01-17 | AG130: 307 | AH130: 1 | AI130: 30 | AO130: X | AR130: 0.8433333333
A131: CPS-118-2021 | B131: 2021 | C131: FDLS-CD-101-2021 | D131: https://community.secop.gov.co/Public/Tendering/OpportunityDetail/Index?noticeUID=CO1.NTC.1851229&isFromPublicArea=True&isModal=False | E131: Contratos de prestación de servicios profesionales y de apoyo a la gestión | F131: Contratación directa | G131: Prestación de servicios profesionales y de apoyo a la gestión, o para la ejecución de trabajos artísticos que sólo puedan encomendarse a determinadas personas naturales; | H131: PRESTAR LOS SERVICIOS DE APOYO A LA GESTIÓN DOCUMENTAL DE LA ALCALDÍA LOCAL EN LA IMPLEMENTACIÓN DE LOS PROCESOS DE CLASIFICACIÓN, ORDENACIÓN, SELECCIÓN NATURAL, FOLIACIÓN, IDENTIFICACIÓN, LEVANTAMIENTO DE INVENTARIOS, ALMACENAMIENTO Y APLICACIÓN DE PROTOCOLOS DE ELIMINACIÓN Y TRANSFERENCIAS DOCUMENTALES | I131: Inversión | J131: Un Nuevo Contrato Social y Ambiental para la Bogotá del Siglo XXI | K131: 57 | L131: =IF(ISERROR(VLOOKUP(K131,Proposito_programa!$C$2:$E$59,2,FALSE))," ",VLOOKUP(K131,Proposito_programa!$C$2:$E$59,2,FALSE)) -> Gestión pública local | M131: =IF(ISERROR(VLOOKUP(K131,Proposito_programa!$C$2:$E$59,3,FALSE))," ",VLOOKUP(K131,Proposito_programa!$C$2:$E$59,3,FALSE)) -> Propósito 5: Construir Bogotá - Región con gobierno abierto, transparente y ciudadanía consciente | N131: 1696 | P131: 1023906225 | Q131: JENNY MARCELA PACHECO DUARTE | R131: S&S SUMINISTROS EMPRESARIALES S.A.S | S131: DIANA MERALDA OVIEDO RODRÍGUEZ | T131: Persona Natural | X131: 23400000 | AB131: 23400000 | AC131: 21840000 | AD131: 2021-03-16 | AE131: 2021-03-19 | AF131: 2021-12-18 | AG131: 274 | AP131: X | AR131: 0.9333333333
A132: CPS-119-2021 | B132: 2021 | C132: FDLS-CD-101-2021 | D132: https://community.secop.gov.co/Public/Tendering/OpportunityDetail/Index?noticeUID=CO1.NTC.1851229&isFromPublicArea=True&isModal=False | E132: Contratos de prestación de servicios profesionales y de apoyo a la gestión | F132: Contratación directa | G132: Prestación de servicios profesionales y de apoyo a la gestión, o para la ejecución de trabajos artísticos que sólo puedan encomendarse a determinadas personas naturales; | H132: PRESTAR LOS SERVICIOS DE APOYO A LA GESTIÓN DOCUMENTAL DE LA ALCALDÍA LOCAL EN LA IMPLEMENTACIÓN DE LOS PROCESOS DE CLASIFICACIÓN, ORDENACIÓN, SELECCIÓN NATURAL, FOLIACIÓN, IDENTIFICACIÓN, LEVANTAMIENTO DE INVENTARIOS, ALMACENAMIENTO Y APLICACIÓN DE PROTOCOLOS DE ELIMINACIÓN Y TRANSFERENCIAS DOCUMENTALES | I132: Inversión | J132: Un Nuevo Contrato Social y Ambiental para la Bogotá del Siglo XXI | K132: 57 | L132: =IF(ISERROR(VLOOKUP(K132,Proposito_programa!$C$2:$E$59,2,FALSE))," ",VLOOKUP(K132,Proposito_programa!$C$2:$E$59,2,FALSE)) -> Gestión pública local | M132: =IF(ISERROR(VLOOKUP(K132,Proposito_programa!$C$2:$E$59,3,FALSE))," ",VLOOKUP(K132,Proposito_programa!$C$2:$E$59,3,FALSE)) -> Propósito 5: Construir Bogotá - Región con gobierno abierto, transparente y ciudadanía consciente | N132: 1696 | P132: 1073606208 | Q132: DIANA MERALDA OVIEDO RODRIGUEZ | R132: CORPORACIÓN COLECTIVO DIGERATI | S132: IVAN DARIO CHINGATE MICAN | T132: Persona Natural | X132: 23400000 | Z132: 1 | AA132: 1300000 | AB132: 24700000 | AC132: 21840000 | AD132: 2021-03-16 | AE132: 2021-03-19 | AF132: 2022-01-02 | AG132: 289 | AH132: 1 | AI132: 15 | AO132: X | AR132: 0.8842105263
A133: CPS-120-2021 | B133: 2021 | C133: FDLS-CD-102-2021 | D133: https://community.secop.gov.co/Public/Tendering/OpportunityDetail/Index?noticeUID=CO1.NTC.1854891&isFromPublicArea=True&isModal=False | E133: Contratos de prestación de servicios profesionales y de apoyo a la gestión | F133: Contratación directa | G133: Prestación de servicios profesionales y de apoyo a la gestión, o para la ejecución de trabajos artísticos que sólo puedan encomendarse a determinadas personas naturales; | H133: PRESTAR LOS SERVICIOS DE APOYO EN LAS LABORES DE OFICIOS VARIOS Y NOTIFICACIÓN PARA LA CUENCA DEL RIO BLANCO, DE LA ALCALDÍA LOCAL DE SUMAPAZ | I133: Inversión | J133: Un Nuevo Contrato Social y Ambiental para la Bogotá del Siglo XXI | K133: 57 | L133: =IF(ISERROR(VLOOKUP(K133,Proposito_programa!$C$2:$E$59,2,FALSE))," ",VLOOKUP(K133,Proposito_programa!$C$2:$E$59,2,FALSE)) -> Gestión pública local | M133: =IF(ISERROR(VLOOKUP(K133,Proposito_programa!$C$2:$E$59,3,FALSE))," ",VLOOKUP(K133,Proposito_programa!$C$2:$E$59,3,FALSE)) -> Propósito 5: Construir Bogotá - Región con gobierno abierto, transparente y ciudadanía consciente | N133: 1696 | P133: 1033767652 | Q133: IVAN DARIO CHINGATE MICAN | R133: FABIO MORENO TORRES | S133: NILSON LOPEZ RAMIREZ | T133: Persona Natural | X133: 18630000 | AB133: 18630000 | AC133: 6486000 | AD133: 2021-03-18 | AE133: 2021-03-24 | AF133: 2021-12-23 | AG133: 274 | AP133: X | AR133: 0.3481481481
A134: CPS-121-2021 | B134: 2021 | C134: FDLS-CD-103-2021 | D134: https://community.secop.gov.co/Public/Tendering/OpportunityDetail/Index?noticeUID=CO1.NTC.1850859&isFromPublicArea=True&isModal=False | E134: Contratos de prestación de servicios profesionales y de apoyo a la gestión | F134: Contratación directa | G134: Prestación de servicios profesionales y de apoyo a la gestión, o para la ejecución de trabajos artísticos que sólo puedan encomendarse a determinadas personas naturales; | H134: PRESTAR LOS SERVICIOS COMO CONDUCTOR DE VEHÍCULOS PESADOS DE PROPIEDAD O TENENCIA DEL FONDO DE DESARROLLO LOCAL DE SUMAPAZ | I134: Inversión | J134: Un Nuevo Contrato Social y Ambiental para la Bogotá del Siglo XXI | K134: 57 | L134: =IF(ISERROR(VLOOKUP(K134,Proposito_programa!$C$2:$E$59,2,FALSE))," ",VLOOKUP(K134,Proposito_programa!$C$2:$E$59,2,FALSE)) -> Gestión pública local | M134: =IF(ISERROR(VLOOKUP(K134,Proposito_programa!$C$2:$E$59,3,FALSE))," ",VLOOKUP(K134,Proposito_programa!$C$2:$E$59,3,FALSE)) -> Propósito 5: Construir Bogotá - Región con gobierno abierto, transparente y ciudadanía consciente | N134: 1696 | P134: 80452901 | Q134: NILSON LOPEZ RAMIREZ | R134: RUPERTO VILLALBA ROMAN | S134: JHON WILSON PINTO | T134: Persona Natural | X134: 25500000 | AB134: 25500000 | AC134: 24055000 | AD134: 2021-03-17 | AE134: 2021-03-23 | AF134: 2022-01-22 | AG134: 305 | AO134: X | AR134: 0.9433333333
A135: CPS-122-2021 | B135: 2021 | C135: FDLS-CD-104-2021 | D135: https://community.secop.gov.co/Public/Tendering/OpportunityDetail/Index?noticeUID=CO1.NTC.1853488&isFromPublicArea=True&isModal=False | E135: Contratos de prestación de servicios profesionales y de apoyo a la gestión | F135: Contratación directa | G135: Prestación de servicios profesionales y de apoyo a la gestión, o para la ejecución de trabajos artísticos que sólo puedan encomendarse a determinadas personas naturales; | H135: PRESTAR LOS SERVICIOS COMO CONDUCTOR DE VEHÍCULOS LIVIANOS DE PROPIEDAD O TENENCIA DEL FONDO DE DESARROLLO LOCAL DE SUMAPAZ | I135: Inversión | J135: Un Nuevo Contrato Social y Ambiental para la Bogotá del Siglo XXI | K135: 57 | L135: =IF(ISERROR(VLOOKUP(K135,Proposito_programa!$C$2:$E$59,2,FALSE))," ",VLOOKUP(K135,Proposito_programa!$C$2:$E$59,2,FALSE)) -> Gestión pública local | M135: =IF(ISERROR(VLOOKUP(K135,Proposito_programa!$C$2:$E$59,3,FALSE))," ",VLOOKUP(K135,Proposito_programa!$C$2:$E$59,3,FALSE)) -> Propósito 5: Construir Bogotá - Región con gobierno abierto, transparente y ciudadanía consciente | N135: 1696 | P135: 80804748 | Q135: JHON WILSON PINTO | R135: JENNY MARCELA PACHECO DUARTE | S135: PARMENIO POVEDA SALAZAR | T135: Persona Natural | X135: 25500000 | AB135: 25500000 | AC135: 15980000 | AD135: 2021-03-17 | AE135: 2021-03-23 | AF135: 2021-10-01 | AG135: 192 | AP135: X | AR135: 0.6266666667
A136: CAR-123-2021 | B136: 2021 | C136: FDLS-CD-105-2021 | D136: https://community.secop.gov.co/Public/Tendering/OpportunityDetail/Index?noticeUID=CO1.NTC.1852347&isFromPublicArea=True&isModal=False | E136: Arrendamiento de bienes inmuebles | F136: Contratación directa | G136: El arrendamiento o adquisición de inmuebles | H136: ADQUIRIR A TÍTULO DE ARRENDAMIENTO UNA (1) VIVIENDA PARA EL FUNCIONAMIENTO DEL PUESTO DE CONTROL Y DESINFECCIÓN EN LA LOCALIDAD DE SUMAPAZ” | I136: Funcionamiento | J136: Un Nuevo Contrato Social y Ambiental para la Bogotá del Siglo XXI | K136: No aplica | L136: =IF(ISERROR(VLOOKUP(K136,Proposito_programa!$C$2:$E$59,2,FALSE))," ",VLOOKUP(K136,Proposito_programa!$C$2:$E$59,2,FALSE)) ->  | M136: =IF(ISERROR(VLOOKUP(K136,Proposito_programa!$C$2:$E$59,3,FALSE))," ",VLOOKUP(K136,Proposito_programa!$C$2:$E$59,3,FALSE)) ->  | P136: 80419747 | Q136: DAVID ANTONIO RAFIC ALJURE SFEIR | R136: DIANA MERALDA OVIEDO RODRÍGUEZ | S136: BRAYAN ANDRES ROMERO ROMERO | T136: Persona Natural | X136: 3570000 | AB136: 3570000 | AC136: 17043000 | AD136: 2021-03-17 | AE136: 2021-03-19 | AF136: 2022-03-18 | AG136: 364 | AO136: X | AR136: 4.77394958
A137: CPS-124-2021 | B137: 2021 | C137: FDLS-CD-106-2021 | D137: https://community.secop.gov.co/Public/Tendering/OpportunityDetail/Index?noticeUID=CO1.NTC.1852424&isFromPublicArea=True&isModal=False | E137: Contratos de prestación de servicios profesionales y de apoyo a la gestión | F137: Contratación directa | G137: Prestación de servicios profesionales y de apoyo a la gestión, o para la ejecución de trabajos artísticos que sólo puedan encomendarse a determinadas personas naturales; | H137: PRESTAR LOS SERVICIOS DE APOYO COMO AUXILIAR ADMINISTRATIVO EN LAS LABORES DE OFICIOS VARIOS Y NOTIFICACIÓN PARA LA CUENCA DEL SUMAPAZ, DE LA ALCALDÍA LOCAL DE SUMAPAZ | I137: Inversión | J137: Un Nuevo Contrato Social y Ambiental para la Bogotá del Siglo XXI | K137: 57 | L137: =IF(ISERROR(VLOOKUP(K137,Proposito_programa!$C$2:$E$59,2,FALSE))," ",VLOOKUP(K137,Proposito_programa!$C$2:$E$59,2,FALSE)) -> Gestión pública local | M137: =IF(ISERROR(VLOOKUP(K137,Proposito_programa!$C$2:$E$59,3,FALSE))," ",VLOOKUP(K137,Proposito_programa!$C$2:$E$59,3,FALSE)) -> Propósito 5: Construir Bogotá - Región con gobierno abierto, transparente y ciudadanía consciente | N137: 1696 | P137: 19230696 | Q137: PARMENIO POVEDA SALAZAR | R137: IVAN DARIO CHINGATE MICAN | S137: BRAND SEBASTIAN MORENO GARCIA | T137: Persona Natural | X137: 18630000 | AB137: 18630000 | AC137: 21493333 | AD137: 2021-04-23 | AE137: 2021-04-27 | AF137: 2022-01-26 | AG137: =AF137-AE137 -> 274 | AO137: X | AR137: 1.15369474
A138: CPS-125-2021 | B138: 2021 | C138: FDLS-CD-107-2021 | D138: https://community.secop.gov.co/Public/Tendering/OpportunityDetail/Index?noticeUID=CO1.NTC.1857327&isFromPublicArea=True&isModal=False | E138: Contratos de prestación de servicios profesionales y de apoyo a la gestión | F138: Contratación directa | G138: Prestación de servicios profesionales y de apoyo a la gestión, o para la ejecución de trabajos artísticos que sólo puedan encomendarse a determinadas personas naturales; | H138: PRESTAR LOS SERVICIOS DE APOYO A LA GESTIÓN DOCUMENTAL DE LA ALCALDÍA LOCAL EN LA IMPLEMENTACIÓN DE LOS PROCESOS DE CLASIFICACIÓN, ORDENACIÓN, SELECCIÓN NATURAL, FOLIACIÓN, IDENTIFICACIÓN, LEVANTAMIENTO DE INVENTARIOS, ALMACENAMIENTO Y APLICACIÓN DE PROTOCOLOS DE ELIMINACIÓN Y TRANSFERENCIAS DOCUMENTALES | I138: Inversión | J138: Un Nuevo Contrato Social y Ambiental para la Bogotá del Siglo XXI | K138: 57 | L138: =IF(ISERROR(VLOOKUP(K138,Proposito_programa!$C$2:$E$59,2,FALSE))," ",VLOOKUP(K138,Proposito_programa!$C$2:$E$59,2,FALSE)) -> Gestión pública local | M138: =IF(ISERROR(VLOOKUP(K138,Proposito_programa!$C$2:$E$59,3,FALSE))," ",VLOOKUP(K138,Proposito_programa!$C$2:$E$59,3,FALSE)) -> Propósito 5: Construir Bogotá - Región con gobierno abierto, transparente y ciudadanía consciente | N138: 1696 | P138: 1007395591 | Q138: BRAYAN ANDRES ROMERO ROMERO | R138: NILSON LOPEZ RAMIREZ | S138: CAMILO ANDRES SUSA CIFUENTES | T138: Persona Natural | X138: 23400000 | AB138: =+X138+Y138+AA138 -> 23400000 | AC138: 41031000 | AD138: 2021-03-19 | AE138: 2021-03-23 | AF138: 2021-12-22 | AG138: 274 | AP138: X | AR138: 1.753461538
A139: CPS-126-2021 | B139: 2021 | C139: FDLS-CD-108-2021 | D139: https://community.secop.gov.co/Public/Tendering/OpportunityDetail/Index?noticeUID=CO1.NTC.1855172&isFromPublicArea=True&isModal=False | E139: Contratos de prestación de servicios profesionales y de apoyo a la gestión | F139: Contratación directa | G139: Prestación de servicios profesionales y de apoyo a la gestión, o para la ejecución de trabajos artísticos que sólo puedan encomendarse a determinadas personas naturales; | H139: PRESTAR LOS SERVICIOS PROFESIONALES DE APOYO AL ÁREA DE GESTIÓN DE DESARROLLO LOCAL DE LA ALCALDÍA LOCAL DE SUMAPAZ, EN TEMAS RELACIONADOS CON EL EMPLEO LOCAL Y CORAZÓN PRODUCTIVO | I139: Inversión | J139: Un Nuevo Contrato Social y Ambiental para la Bogotá del Siglo XXI | K139: 1 | L139: =IF(ISERROR(VLOOKUP(K139,Proposito_programa!$C$2:$E$59,2,FALSE))," ",VLOOKUP(K139,Proposito_programa!$C$2:$E$59,2,FALSE)) -> Subsidios y transferencias para la equidad | M139: =IF(ISERROR(VLOOKUP(K139,Proposito_programa!$C$2:$E$59,3,FALSE))," ",VLOOKUP(K139,Proposito_programa!$C$2:$E$59,3,FALSE)) -> Propósito 1: Hacer un nuevo contrato social para incrementar la inclusión social, productiva y política | N139: 1583 | P139: 1016101268 | Q139: BRAND SEBASTIAN MORENO GARCIA | R139: JHON WILSON PINTO | S139: MARIA PAULA CONTRERAS MORALES | T139: Persona Natural | X139: 39285000 | Z139: 1 | AA139: 2182500 | AB139: 41467500 | AC139: 23375000 | AD139: 2021-03-18 | AE139: 2021-03-19 | AF139: 2021-01-02 | AG139: 289 | AH139: 1 | AI139: 15 | AO139: X | AR139: 0.5636944595
A140: CPS-127-2021 | B140: 2021 | C140: FDLS-CD-109-2021 | D140: https://community.secop.gov.co/Public/Tendering/OpportunityDetail/Index?noticeUID=CO1.NTC.1859436&isFromPublicArea=True&isModal=False | E140: Contratos de prestación de servicios profesionales y de apoyo a la gestión | F140: Contratación directa | G140: Prestación de servicios profesionales y de apoyo a la gestión, o para la ejecución de trabajos artísticos que sólo puedan encomendarse a determinadas personas naturales; | H140: PRESTAR LOS SERVICIOS COMO CONDUCTOR DE VEHÍCULOS PESADOS DE PROPIEDAD O TENENCIA DEL FONDO DE DESARROLLO LOCAL DE SUMAPAZ | I140: Inversión | J140: Un Nuevo Contrato Social y Ambiental para la Bogotá del Siglo XXI | K140: 57 | L140: =IF(ISERROR(VLOOKUP(K140,Proposito_programa!$C$2:$E$59,2,FALSE))," ",VLOOKUP(K140,Proposito_programa!$C$2:$E$59,2,FALSE)) -> Gestión pública local | M140: =IF(ISERROR(VLOOKUP(K140,Proposito_programa!$C$2:$E$59,3,FALSE))," ",VLOOKUP(K140,Proposito_programa!$C$2:$E$59,3,FALSE)) -> Propósito 5: Construir Bogotá - Región con gobierno abierto, transparente y ciudadanía consciente | N140: 1696 | P140: 1069230738 | Q140: CAMILO ANDRES SUSA CIFUENTES | R140: DAVID ANTONIO RAFIC ALJURE SFEIR | S140: EDGAR ENRIQUE RAMÍREZ | T140: Persona Natural | X140: 25500000 | AB140: 25500000 | AC140: 21233333 | AD140: 2021-03-19 | AE140: 2021-03-26 | AF140: 2022-01-25 | AG140: 305 | AO140: X | AR140: 0.8326797255
A141: CPS-128-2021 | B141: 2021 | C141: FDLS-CD-110-2021 | D141: https://community.secop.gov.co/Public/Tendering/OpportunityDetail/Index?noticeUID=CO1.NTC.1867210&isFromPublicArea=True&isModal=False | E141: Contratos de prestación de servicios profesionales y de apoyo a la gestión | F141: Contratación directa | G141: Prestación de servicios profesionales y de apoyo a la gestión, o para la ejecución de trabajos artísticos que sólo puedan encomendarse a determinadas personas naturales; | H141: PRESTAR LOS SERVICIOS DE APOYO A LA GESTIÓN DOCUMENTAL DE LA ALCALDÍA LOCAL EN LA IMPLEMENTACIÓN DE LOS PROCESOS DE CLASIFICACIÓN, ORDENACIÓN, SELECCIÓN NATURAL, FOLIACIÓN, IDENTIFICACIÓN, LEVANTAMIENTO DE INVENTARIOS, ALMACENAMIENTO Y APLICACIÓN DE PROTOCOLOS DE ELIMINACIÓN Y TRANSFERENCIAS DOCUMENTALES | I141: Inversión | J141: Un Nuevo Contrato Social y Ambiental para la Bogotá del Siglo XXI | K141: 57 | L141: =IF(ISERROR(VLOOKUP(K141,Proposito_programa!$C$2:$E$59,2,FALSE))," ",VLOOKUP(K141,Proposito_programa!$C$2:$E$59,2,FALSE)) -> Gestión pública local | M141: =IF(ISERROR(VLOOKUP(K141,Proposito_programa!$C$2:$E$59,3,FALSE))," ",VLOOKUP(K141,Proposito_programa!$C$2:$E$59,3,FALSE)) -> Propósito 5: Construir Bogotá - Región con gobierno abierto, transparente y ciudadanía consciente | N141: 1696 | P141: 1030671895 | Q141: MARIA PAULA CONTRERAS MORALES | R141: PARMENIO POVEDA SALAZAR | S141: DANNA MARCELA FORERO RODRIGUEZ | T141: Persona Natural | X141: 23400000 | AB141: 23400000 | AC141: 23375000 | AD141: 2021-03-24 | AE141: 2021-03-26 | AF141: 2021-12-25 | AG141: 274 | AP141: X | AR141: 0.9989316239
A142: CPS-129-2021 | B142: 2021 | C142: FDLS-CD-080-2021* | D142: https://community.secop.gov.co/Public/Tendering/OpportunityDetail/Index?noticeUID=CO1.NTC.1840702&isFromPublicArea=True&isModal=False | E142: Contratos de prestación de servicios profesionales y de apoyo a la gestión | F142: Contratación directa | G142: Prestación de servicios profesionales y de apoyo a la gestión, o para la ejecución de trabajos artísticos que sólo puedan encomendarse a determinadas personas naturales; | H142: PRESTAR LOS SERVICIOS COMO OPERARIOS DE LA MAQUINARIA PESADA DE PROPIEDAD O TENENCIA DEL FONDO DE DESARROLLO LOCAL DE SUMAPAZ | I142: Inversión | J142: Un Nuevo Contrato Social y Ambiental para la Bogotá del Siglo XXI | K142: 57 | L142: =IF(ISERROR(VLOOKUP(K142,Proposito_programa!$C$2:$E$59,2,FALSE))," ",VLOOKUP(K142,Proposito_programa!$C$2:$E$59,2,FALSE)) -> Gestión pública local | M142: =IF(ISERROR(VLOOKUP(K142,Proposito_programa!$C$2:$E$59,3,FALSE))," ",VLOOKUP(K142,Proposito_programa!$C$2:$E$59,3,FALSE)) -> Propósito 5: Construir Bogotá - Región con gobierno abierto, transparente y ciudadanía consciente | N142: 1696 | P142: 80380149 | Q142: EDGAR ENRIQUE RAMIREZ | R142: BRAYAN ANDRES ROMERO ROMERO | S142: LUIS EDUARDO VILLEGAS GIL | T142: Persona Natural | X142: 22950000 | Z142: 1 | AA142: 2550000 | AB142: 25500000 | AC142: 23400000 | AD142: 2021-03-25 | AE142: 2021-03-26 | AF142: 2022-01-25 | AG142: 305 | AH142: 1 | AI142: 30 | AO142: X | AR142: 0.9176470588
A143: CPS-130-2021 | B143: 2021 | C143: FDLS-CD-112-2021 | D143: https://community.secop.gov.co/Public/Tendering/OpportunityDetail/Index?noticeUID=CO1.NTC.1876563&isFromPublicArea=True&isModal=False | E143: Contratos de prestación de servicios profesionales y de apoyo a la gestión | F143: Contratación directa | G143: Prestación de servicios profesionales y de apoyo a la gestión, o para la ejecución de trabajos artísticos que sólo puedan encomendarse a determinadas personas naturales; | H143: PRESTAR LOS SERVICIOS COMO AUXILIAR ADMINISTRATIVO PARA LA GESTIÓN AMBIENTAL DEL ÁREA DE GESTIÓN DE DESARROLLO LOCAL DE LA ALCALDÍA LOCAL DE SUMAPAZ | I143: Inversión | J143: Un Nuevo Contrato Social y Ambiental para la Bogotá del Siglo XXI | K143: 23 | L143: =IF(ISERROR(VLOOKUP(K143,Proposito_programa!$C$2:$E$59,2,FALSE))," ",VLOOKUP(K143,Proposito_programa!$C$2:$E$59,2,FALSE)) -> Bogotá rural | M143: =IF(ISERROR(VLOOKUP(K143,Proposito_programa!$C$2:$E$59,3,FALSE))," ",VLOOKUP(K143,Proposito_programa!$C$2:$E$59,3,FALSE)) -> Propósito 1: Hacer un nuevo contrato social para incrementar la inclusión social, productiva y política | N143: 1634 | P143: 1136888698 | Q143: DANNA MARCELA FORERO RODRIGUEZ | R143: BRAND SEBASTIAN MORENO GARCIA | S143: CORPORACIÓN COLECTIVO DIGERATI | T143: Persona Natural | X143: 26000000 | AB143: =+X143+Y143+AA143 -> 26000000 | AC143: 51490000 | AD143: 2021-03-26 | AE143: 2021-03-31 | AF143: 2022-01-30 | AG143: 305 | AO143: X | AR143: 1.980384615
A144: CPS-131-2021 | B144: 2021 | C144: FDLS-MC-092-2021 | D144: https://community.secop.gov.co/Public/Tendering/OpportunityDetail/Index?noticeUID=CO1.NTC.1838187&isFromPublicArea=True&isModal=False | E144: Contratos de prestación de servicios | F144: Contratación mínima cuantia | G144: No aplica | H144: PRESTAR EL SERVICIO DE MONITOREO VEHICULAR INTEGRAL POR GPS SATELITAL PARA LA MAQUINARIA DE PROPIEDAD O TENENCIA DEL FONDO DE DESARROLLO LOCAL DE SUMAPAZ | I144: Inversión | J144: Un Nuevo Contrato Social y Ambiental para la Bogotá del Siglo XXI | K144: 49 | L144: =IF(ISERROR(VLOOKUP(K144,Proposito_programa!$C$2:$E$59,2,FALSE))," ",VLOOKUP(K144,Proposito_programa!$C$2:$E$59,2,FALSE)) -> Movilidad segura, sostenible y accesible | M144: =IF(ISERROR(VLOOKUP(K144,Proposito_programa!$C$2:$E$59,3,FALSE))," ",VLOOKUP(K144,Proposito_programa!$C$2:$E$59,3,FALSE)) -> Propósito 4: Hacer de Bogotá Región un modelo de movilidad multimodal, incluyente y sostenible | N144: 1688 | O144: 2 | P144: 900465924 | Q144: VISATEL DE COLOMBIA SAS | R144: CAMILO ANDRES SUSA CIFUENTES | S144: LAURA XIMENA RUBIANO CARRILLO | T144: Persona Jurídica | X144: 15708000 | AB144: 15708000 | AC144: 18789900 | AD144: 2021-03-05 | AE144: 2021-04-06 | AF144: 2022-01-20 | AG144: 289 | AH144: 2 | AI144: 45 | AO144: X | AR144: =IF(ISERROR(AC144/AB144),"-",(AC144/AB144)) -> 1.196199389
A145: CPS-132-2021 | B145: 2021 | C145: FDLS-CD-113-2021 | D145: https://community.secop.gov.co/Public/Tendering/OpportunityDetail/Index?noticeUID=CO1.NTC.1875553&isFromPublicArea=True&isModal=False | E145: Contratos de prestación de servicios profesionales y de apoyo a la gestión | F145: Contratación directa | G145: Prestación de servicios profesionales y de apoyo a la gestión, o para la ejecución de trabajos artísticos que sólo puedan encomendarse a determinadas personas naturales; | H145: PRESTAR LOS SERVICIOS PROFESIONALES JURÍDICOS PARA APOYAR LOS ASUNTOS PRECONTRACTUALES, CONTRACTUALES Y POSTCONTRACTUALES DEL ÁREA DE GESTIÓN DE DESARROLLO LOCAL DE LA ALCALDÍA LOCAL DE SUMAPAZ | I145: Inversión | J145: Un Nuevo Contrato Social y Ambiental para la Bogotá del Siglo XXI | K145: 57 | L145: =IF(ISERROR(VLOOKUP(K145,Proposito_programa!$C$2:$E$59,2,FALSE))," ",VLOOKUP(K145,Proposito_programa!$C$2:$E$59,2,FALSE)) -> Gestión pública local | M145: =IF(ISERROR(VLOOKUP(K145,Proposito_programa!$C$2:$E$59,3,FALSE))," ",VLOOKUP(K145,Proposito_programa!$C$2:$E$59,3,FALSE)) -> Propósito 5: Construir Bogotá - Región con gobierno abierto, transparente y ciudadanía consciente | N145: 1696 | P145: 9695442 | Q145: LUIS EDUARDO VILLEGAS GIL | R145: MARIA PAULA CONTRERAS MORALES | S145: JHONATAN ALVAREZ MORA | T145: Persona Natural | X145: 57000000 | AB145: 57000000 | AC145: 19856667 | AD145: 2021-03-26 | AE145: 2021-03-30 | AF145: 2022-01-29 | AG145: 305 | AO145: X | AR145: 0.3483625789
A146: CPS-133-2021 | B146: 2021 | C146: FDLS-MC-098-2021 | D146: https://community.secop.gov.co/Public/Tendering/OpportunityDetail/Index?noticeUID=CO1.NTC.1842704&isFromPublicArea=True&isModal=False | E146: Suministro | F146: Contratación mínima cuantia | G146: No aplica | H146: PRESTAR EL SERVICIO DE AVITUALLAMIENTO (ALIMENTACIÓN) PARA LA REALIZACIÓN DE EVENTOS Y/O ACTIVIDADES DE GESTIÓN, PROMOCIÓN Y PARTICIPACIÓN | I146: Funcionamiento | J146: Un Nuevo Contrato Social y Ambiental para la Bogotá del Siglo XXI | K146: No aplica | L146: =IF(ISERROR(VLOOKUP(K146,Proposito_programa!$C$2:$E$59,2,FALSE))," ",VLOOKUP(K146,Proposito_programa!$C$2:$E$59,2,FALSE)) ->  | M146: =IF(ISERROR(VLOOKUP(K146,Proposito_programa!$C$2:$E$59,3,FALSE))," ",VLOOKUP(K146,Proposito_programa!$C$2:$E$59,3,FALSE)) ->  | O146: 3 | P146: 900585357 | Q146: S&S SUMINISTROS EMPRESARIALES SAS | R146: EDGAR ENRIQUE RAMÍREZ | S146: GIOVANNI BATTISTA MAINERO MARMOLEJO | T146: Persona Jurídica | X146: 18500000 | Z146: 1 | AA146: 9000000 | AB146: 27500000 | AC146: 20106666 | AD146: 2021-03-29 | AE146: 2021-04-12 | AF146: 2022-02-11 | AG146: 305 | AO146: X | AR146: 0.7311514909
A147: CPS-134-2021 | B147: 2021 | C147: FDLS-MC-099-2021 | D147: https://community.secop.gov.co/Public/Tendering/OpportunityDetail/Index?noticeUID=CO1.NTC.1854147&isFromPublicArea=True&isModal=False | E147: Contratos de prestación de servicios | F147: Contratación mínima cuantia | G147: No aplica | H147: PRESTAR LOS SERVICIOS LOGÍSTICOS PARA LA REALIZACIÓN DE LA AUDIENCIA PÚBLICA DE RENDICIÓN DE CUENTAS DE LA VIGENCIA 2020 PARA LA LOCALIDAD DE SUMAPAZ | I147: Inversión | J147: Un Nuevo Contrato Social y Ambiental para la Bogotá del Siglo XXI | K147: 57 | L147: =IF(ISERROR(VLOOKUP(K147,Proposito_programa!$C$2:$E$59,2,FALSE))," ",VLOOKUP(K147,Proposito_programa!$C$2:$E$59,2,FALSE)) -> Gestión pública local | M147: =IF(ISERROR(VLOOKUP(K147,Proposito_programa!$C$2:$E$59,3,FALSE))," ",VLOOKUP(K147,Proposito_programa!$C$2:$E$59,3,FALSE)) -> Propósito 5: Construir Bogotá - Región con gobierno abierto, transparente y ciudadanía consciente | N147: 1696 | O147: 8 | P147: 900360948 | Q147: CORPORACION COLECTIVO DIGERATI | R147: SEGURIDAD LAS AMÉRICAS LTDA SEGURIAMÉRICAS LTDA | S147: JANEIRY ROMERO HERNANDEZ | T147: Persona Jurídica | X147: 19825720 | Z147: 1 | AA147: 4365000 | AB147: 24190720 | AC147: 33174000 | AD147: 2021-03-30 | AE147: 2021-04-05 | AF147: 2021-05-04 | AG147: 29 | AP147: X | AR147: 1.37135232
A148: CPS-135-2021 | B148: 2021 | C148: FDLS-CD-114-2021 | D148: https://community.secop.gov.co/Public/Tendering/OpportunityDetail/Index?noticeUID=CO1.NTC.1896796&isFromPublicArea=True&isModal=False | E148: Contratos de prestación de servicios profesionales y de apoyo a la gestión | F148: Contratación directa | G148: Prestación de servicios profesionales y de apoyo a la gestión, o para la ejecución de trabajos artísticos que sólo puedan encomendarse a determinadas personas naturales; | H148: PRESTAR LOS SERVICIOS COMO AUXILIAR ADMINISTRATIVO PARA LA CORREGIDURÍA DE NAZARETH | I148: Inversión | J148: Un Nuevo Contrato Social y Ambiental para la Bogotá del Siglo XXI | K148: 57 | L148: =IF(ISERROR(VLOOKUP(K148,Proposito_programa!$C$2:$E$59,2,FALSE))," ",VLOOKUP(K148,Proposito_programa!$C$2:$E$59,2,FALSE)) -> Gestión pública local | M148: =IF(ISERROR(VLOOKUP(K148,Proposito_programa!$C$2:$E$59,3,FALSE))," ",VLOOKUP(K148,Proposito_programa!$C$2:$E$59,3,FALSE)) -> Propósito 5: Construir Bogotá - Región con gobierno abierto, transparente y ciudadanía consciente | N148: 1696 | P148: 1000691517 | Q148: LAURA XIMENA RUBIANO CARRILLO | R148: DANNA MARCELA FORERO RODRIGUEZ | S148: LUIS ANGEL ARROYAVE VILARO | T148: Persona Natural | X148: 23000000 | AB148: 23000000 | AC148: 37248000 | AD148: 2021-04-07 | AE148: 2021-04-12 | AF148: 2022-02-11 | AG148: 305 | AO148: X | AR148: 1.619478261
A149: CPS-136-2021 | B149: 2021 | C149: FDLS-CD-115-2021 | D149: https://community.secop.gov.co/Public/Tendering/OpportunityDetail/Index?noticeUID=CO1.NTC.1897343&isFromPublicArea=True&isModal=False | E149: Contratos de prestación de servicios profesionales y de apoyo a la gestión | F149: Contratación directa | G149: Prestación de servicios profesionales y de apoyo a la gestión, o para la ejecución de trabajos artísticos que sólo puedan encomendarse a determinadas personas naturales; | H149: PRESTAR SUS SERVICIOS COMO AUXILIAR ADMINISTRATIVO PARA EL ÁREA DE GESTIÓN DEL DESARROLLO LOCAL, DE LA ALCALDÍA LOCAL DE SUMAPAZ | I149: Inversión | J149: Un Nuevo Contrato Social y Ambiental para la Bogotá del Siglo XXI | K149: 57 | L149: =IF(ISERROR(VLOOKUP(K149,Proposito_programa!$C$2:$E$59,2,FALSE))," ",VLOOKUP(K149,Proposito_programa!$C$2:$E$59,2,FALSE)) -> Gestión pública local | M149: =IF(ISERROR(VLOOKUP(K149,Proposito_programa!$C$2:$E$59,3,FALSE))," ",VLOOKUP(K149,Proposito_programa!$C$2:$E$59,3,FALSE)) -> Propósito 5: Construir Bogotá - Región con gobierno abierto, transparente y ciudadanía consciente | N149: 1696 | P149: 80897743 | Q149: JHONATAN ALVAREZ MORA | R149: LUIS EDUARDO VILLEGAS GIL | S149: LUIS HERNANDO BEJARANO | T149: Persona Natural | X149: 26000000 | AB149: 26000000 | AC149: 35833333 | AD149: 2021-04-07 | AE149: 2021-04-09 | AF149: 2022-02-08 | AG149: 305 | AO149: X | AR149: 1.378205115
A150: CPS-137-2021 | B150: 2021 | C150: FDLS-CD-116-2021 | D150: https://community.secop.gov.co/Public/Tendering/OpportunityDetail/Index?noticeUID=CO1.NTC.1905978&isFromPublicArea=True&isModal=False | E150: Contratos de prestación de servicios profesionales y de apoyo a la gestión | F150: Contratación directa | G150: Prestación de servicios profesionales y de apoyo a la gestión, o para la ejecución de trabajos artísticos que sólo puedan encomendarse a determinadas personas naturales; | H150: PRESTAR LOS SERVICIOS PROFESIONALES AL ÁREA DE GESTIÓN DE DESARROLLO LOCAL PARA APOYAR LA PLANEACIÓN, EJECUCIÓN Y SEGUIMIENTO A LOS PROYECTOS DE INVERSIÓN QUE LE SEAN DESIGNADOS | I150: Inversión | J150: Un Nuevo Contrato Social y Ambiental para la Bogotá del Siglo XXI | K150: 49 | L150: =IF(ISERROR(VLOOKUP(K150,Proposito_programa!$C$2:$E$59,2,FALSE))," ",VLOOKUP(K150,Proposito_programa!$C$2:$E$59,2,FALSE)) -> Movilidad segura, sostenible y accesible | M150: =IF(ISERROR(VLOOKUP(K150,Proposito_programa!$C$2:$E$59,3,FALSE))," ",VLOOKUP(K150,Proposito_programa!$C$2:$E$59,3,FALSE)) -> Propósito 4: Hacer de Bogotá Región un modelo de movilidad multimodal, incluyente y sostenible | N150: 1688 | P150: 1047406951 | Q150: GIOVANNI BATTISTA MAINERO MARMOLEJO | R150: LAURA XIMENA RUBIANO CARRILLO | S150: JOSE REINERO GALEANO LEMUS | T150: Persona Natural | X150: 34920000 | AB150: 34920000 | AC150: 50866666 | AD150: 2021-04-12 | AE150: 2021-04-13 | AF150: 2021-12-31 | AG150: 262 | AO150: X | AR150: 1.456662829
A151: CPS-138-2021 | B151: 2021 | C151: FDLS-CD-117-2021 | D151: https://community.secop.gov.co/Public/Tendering/OpportunityDetail/Index?noticeUID=CO1.NTC.1911958&isFromPublicArea=True&isModal=False | E151: Contratos de prestación de servicios profesionales y de apoyo a la gestión | F151: Contratación directa | G151: Prestación de servicios profesionales y de apoyo a la gestión, o para la ejecución de trabajos artísticos que sólo puedan encomendarse a determinadas personas naturales; | H151: PRESTAR LOS SERVICIOS PROFESIONALES COMO ABOGADO, PARA EL TRAMITE DE LOS ASUNTOS JURIDICOS Y LEGALES, QUE REQUIERAN LOS PROCESOS MISIONALES Y ADMINISTRATIVOS QUE SE ADELANTAN EN LA ALCALDÍA LOCAL DE SUMAPAZ | I151: Inversión | J151: Un Nuevo Contrato Social y Ambiental para la Bogotá del Siglo XXI | K151: 57 | L151: =IF(ISERROR(VLOOKUP(K151,Proposito_programa!$C$2:$E$59,2,FALSE))," ",VLOOKUP(K151,Proposito_programa!$C$2:$E$59,2,FALSE)) -> Gestión pública local | M151: =IF(ISERROR(VLOOKUP(K151,Proposito_programa!$C$2:$E$59,3,FALSE))," ",VLOOKUP(K151,Proposito_programa!$C$2:$E$59,3,FALSE)) -> Propósito 5: Construir Bogotá - Región con gobierno abierto, transparente y ciudadanía consciente | N151: 1696 | P151: 1012413960 | Q151: JANEIRY ROMERO HERNANDEZ | R151: JHONATAN ALVAREZ MORA | S151: NICOLAS ALBERTO CABRERA PUENTE | T151: Persona Natural | X151: 34920000 | Z151: 1 | AA151: 4365000 | AB151: 39285000 | AC151: 48506666 | AD151: 2021-04-14 | AE151: 2021-04-15 | AF151: 2022-01-14 | AG151: 274 | AH151: 1 | AI151: 30 | AO151: X | AR151: 1.234737584
A152: CPS-139-2021 | B152: 2021 | C152: FDRS-CD-118-2021 | D152: https://community.secop.gov.co/Public/Tendering/OpportunityDetail/Index?noticeUID=CO1.NTC.1933623&isFromPublicArea=True&isModal=False | E152: Contratos de prestación de servicios profesionales y de apoyo a la gestión | F152: Contratación directa | G152: Prestación de servicios profesionales y de apoyo a la gestión, o para la ejecución de trabajos artísticos que sólo puedan encomendarse a determinadas personas naturales; | H152: PRESTAR SUS SERVICIOS PROFESIONALES PARA APOYAR AL EQUIPO DE PRENSA Y COMUNICACIONES DE LA ALCALDÍA LOCAL EN LA CREACIÓN, REALIZACIÓN, PRODUCCIÓN Y EDICIÓN DE VIDEOS, ASÍ́COMO EL REGISTRO, EDICIÓN Y LA PRESENTACIÓN DE FOTOGRAFÍAS DE LOS ACONTECIMIENTOS, HECHOS Y EVENTOS EXTERNOS E INTERNOS DE LA ALCALDÍA LOCAL, PARA SER UTILIZADOS COMO INSUMOS DE COMUNICACIÓN EN LOS MEDIOS, ESPECIALMENTE ESCRITOS, DIGITALES Y AUDIOVISUALES | I152: Inversión | J152: Un Nuevo Contrato Social y Ambiental para la Bogotá del Siglo XXI | K152: 57 | L152: =IF(ISERROR(VLOOKUP(K152,Proposito_programa!$C$2:$E$59,2,FALSE))," ",VLOOKUP(K152,Proposito_programa!$C$2:$E$59,2,FALSE)) -> Gestión pública local | M152: =IF(ISERROR(VLOOKUP(K152,Proposito_programa!$C$2:$E$59,3,FALSE))," ",VLOOKUP(K152,Proposito_programa!$C$2:$E$59,3,FALSE)) -> Propósito 5: Construir Bogotá - Región con gobierno abierto, transparente y ciudadanía consciente | N152: 1696 | P152: 81715533 | Q152: LUIS ANGEL ARROYAVE VILARO | R152: GIOVANNI BATTISTA MAINERO MARMOLEJO | S152: EDWIN RUIZ VÁSQUEZ | T152: Persona Natural | X152: 40000000 | Z152: 1 | AA152: 2500000 | AB152: 42500000 | AC152: 44000000 | AD152: 2021-04-23 | AE152: 2021-04-26 | AF152: 2022-01-09 | AG152: 258 | AH152: 1 | AI152: 15 | AO152: X | AR152: 1.035294118
A153: CPS-140-2021 | B153: 2021 | C153: FDRS-119-2021 | D153: https://community.secop.gov.co/Public/Tendering/OpportunityDetail/Index?noticeUID=CO1.NTC.1931423&isFromPublicArea=True&isModal=False | E153: Contratos de prestación de servicios profesionales y de apoyo a la gestión | F153: Contratación directa | G153: Prestación de servicios profesionales y de apoyo a la gestión, o para la ejecución de trabajos artísticos que sólo puedan encomendarse a determinadas personas naturales; | H153: PRESTAR LOS SERVICIOS PROFESIONALES ESPECIALIZADOS PARA ATENDER EL PROCESO DE ATENCIÓN DE VÍCTIMAS, LEGALIZACIÓN DE PREDIOS, JUSTICIA REITERATIVA, ENTRE OTROS, PARA LA ALCALDÍA LOCAL DE SUMAPAZ | I153: Inversión | J153: Un Nuevo Contrato Social y Ambiental para la Bogotá del Siglo XXI | K153: 57 | L153: =IF(ISERROR(VLOOKUP(K153,Proposito_programa!$C$2:$E$59,2,FALSE))," ",VLOOKUP(K153,Proposito_programa!$C$2:$E$59,2,FALSE)) -> Gestión pública local | M153: =IF(ISERROR(VLOOKUP(K153,Proposito_programa!$C$2:$E$59,3,FALSE))," ",VLOOKUP(K153,Proposito_programa!$C$2:$E$59,3,FALSE)) -> Propósito 5: Construir Bogotá - Región con gobierno abierto, transparente y ciudadanía consciente | N153: 1696 | P153: 3249841 | Q153: LUIS HERNANDO BEJARANO | R153: JANEIRY ROMERO HERNANDEZ | S153: NINI JOHANA GUTIERREZ TORRES | T153: Persona Natural | X153: 56000000 | AB153: 56000000 | AC153: 20366666 | AD153: 2021-04-23 | AE153: 2021-04-23 | AF153: 2021-12-22 | AG153: 243 | AP153: X | AR153: 0.3636904643
A154: CPS-141-2021 | B154: 2021 | C154: FDLS-MC-111-2021 | D154: https://community.secop.gov.co/Public/Tendering/OpportunityDetail/Index?noticeUID=CO1.NTC.1917898&isFromPublicArea=True&isModal=False | E154: Contratos de prestación de servicios | F154: Contratación mínima cuantia | G154: No aplica | H154: CONTRATAR LA PRESTACION DE SERVICIOS DE VIGILANCIA Y SEGURIDAD PRIVADA CON ARMAS, PARA LAS SEDES DE LA ALCALDIA LOCAL DE SUMAPAZ | I154: Funcionamiento | J154: Un Nuevo Contrato Social y Ambiental para la Bogotá del Siglo XXI | K154: No aplica | L154: =IF(ISERROR(VLOOKUP(K154,Proposito_programa!$C$2:$E$59,2,FALSE))," ",VLOOKUP(K154,Proposito_programa!$C$2:$E$59,2,FALSE)) ->  | M154: =IF(ISERROR(VLOOKUP(K154,Proposito_programa!$C$2:$E$59,3,FALSE))," ",VLOOKUP(K154,Proposito_programa!$C$2:$E$59,3,FALSE)) ->  | O154: 1 | P154: 860518862 | Q154: SEGURIDAD LAS AMERICAS LTDA SEGURIAMERICAS LTDA | R154: LUIS ANGEL ARROYAVE VILARO | S154: PAULA NATALIA FARFAN PAEZ | T154: Persona Jurídica | X154: 24792421 | Z154: 1 | AA154: 12396210 | AB154: 37188631 | AC154: 44650000 | AD154: 2021-04-23 | AE154: 2021-04-23 | AF154: 2021-06-18 | AG154: 36 | AH154: 1 | AI154: 18 | AP154: X | AR154: 1.200635753
A155: CPS-142-2021 | B155: 2021 | C155: FDRS-CD-120-2021 | D155: https://community.secop.gov.co/Public/Tendering/OpportunityDetail/Index?noticeUID=CO1.NTC.1937587&isFromPublicArea=True&isModal=False | E155: Contratos de prestación de servicios profesionales y de apoyo a la gestión | F155: Contratación directa | G155: Prestación de servicios profesionales y de apoyo a la gestión, o para la ejecución de trabajos artísticos que sólo puedan encomendarse a determinadas personas naturales; | H155: PRESTAR LOS SERVICIOS PROFESIONALES PARA APOYAR LA PLANEACIÓN, EJECUCIÓN Y SEGUIMIENTO DE LOS PROYECTOS DE INVERSIÓN RELACIONADOS CON LA PLANEACIÓN PARTICIPATIVA RURAL Y DEL DESARROLLO CON ENFOQUE TERRITORIAL, DEL FONDO DE DESARROLLO LOCAL DE SUMAPAZ | I155: Inversión | J155: Un Nuevo Contrato Social y Ambiental para la Bogotá del Siglo XXI | K155: 39 | L155: =IF(ISERROR(VLOOKUP(K155,Proposito_programa!$C$2:$E$59,2,FALSE))," ",VLOOKUP(K155,Proposito_programa!$C$2:$E$59,2,FALSE)) -> Bogotá territorio de paz y atención integral a las víctimas del conflicto armado | M155: =IF(ISERROR(VLOOKUP(K155,Proposito_programa!$C$2:$E$59,3,FALSE))," ",VLOOKUP(K155,Proposito_programa!$C$2:$E$59,3,FALSE)) -> Propósito 3: Inspirar confianza y legitimidad para vivir sin miedo y ser epicentro de cultura ciudadana, paz y reconciliación | N155: 1672 | P155: 80727859 | Q155: JOSE REINERO GALEANO LEMUS | R155: LUIS HERNANDO BEJARANO | S155: ELIANA KATHERINE JIMENEZ RODRÍGUEZ | T155: Persona Natural | X155: 54400000 | AB155: 54400000 | AC155: 23571733 | AD155: 2021-04-26 | AE155: 2021-04-27 | AF155: 2021-12-26 | AG155: 243 | AP155: X | AR155: 0.4333039154
A156: CPS-143-2021 | B156: 2021 | C156: FDRS-CD-121-2021 | D156: https://community.secop.gov.co/Public/Tendering/OpportunityDetail/Index?noticeUID=CO1.NTC.1941063&isFromPublicArea=True&isModal=False | E156: Contratos de prestación de servicios profesionales y de apoyo a la gestión | F156: Contratación directa | G156: Prestación de servicios profesionales y de apoyo a la gestión, o para la ejecución de trabajos artísticos que sólo puedan encomendarse a determinadas personas naturales; | H156: PRESTAR SUS SERVICIOS PROFESIONALES AL ÁREA GESTIÓN DE DESARROLLO LOCAL, EN LOS TEMAS RELACIONADOS CON LA GESTIÓN CULTURAL DE LA LOCALIDAD DE SUMAPAZ | I156: Inversión | J156: Un Nuevo Contrato Social y Ambiental para la Bogotá del Siglo XXI | K156: 21 | L156: =IF(ISERROR(VLOOKUP(K156,Proposito_programa!$C$2:$E$59,2,FALSE))," ",VLOOKUP(K156,Proposito_programa!$C$2:$E$59,2,FALSE)) -> Creación y vida cotidiana: Apropiación ciudadana del arte, la cultura y el patrimonio, para la democracia cultural | M156: =IF(ISERROR(VLOOKUP(K156,Proposito_programa!$C$2:$E$59,3,FALSE))," ",VLOOKUP(K156,Proposito_programa!$C$2:$E$59,3,FALSE)) -> Propósito 1: Hacer un nuevo contrato social para incrementar la inclusión social, productiva y política | N156: 1633 | P156: 79957036 | Q156: NICOLAS ALBERTO CABRERA PUENTE | R156: JOSE REINERO GALEANO LEMUS | S156: MARIA DEL PILAR CONTRERAS MARTÍNEZ | T156: Persona Natural | X156: 44000000 | AB156: 44000000 | AC156: 16120000 | AD156: 2021-04-27 | AE156: 2021-04-29 | AF156: 2021-12-28 | AG156: 243 | AP156: X | AR156: 0.3663636364
A157: CPS-144-2021 | B157: 2021 | C157: FDRS-CD-123-2021 | D157: https://community.secop.gov.co/Public/Tendering/OpportunityDetail/Index?noticeUID=CO1.NTC.1957373&isFromPublicArea=True&isModal=False | E157: Contratos de prestación de servicios profesionales y de apoyo a la gestión | F157: Contratación directa | G157: Prestación de servicios profesionales y de apoyo a la gestión, o para la ejecución de trabajos artísticos que sólo puedan encomendarse a determinadas personas naturales; | H157: PRESTAR SUS SERVICIOS DE APOYO ADMINISTRATIVO AL PARQUE AUTOMOTOR DE PROPIEDAD DEL FONDO DE DESARROLLO LOCAL DE SUMAPAZ | I157: Inversión | J157: Un Nuevo Contrato Social y Ambiental para la Bogotá del Siglo XXI | K157: 57 | L157: =IF(ISERROR(VLOOKUP(K157,Proposito_programa!$C$2:$E$59,2,FALSE))," ",VLOOKUP(K157,Proposito_programa!$C$2:$E$59,2,FALSE)) -> Gestión pública local | M157: =IF(ISERROR(VLOOKUP(K157,Proposito_programa!$C$2:$E$59,3,FALSE))," ",VLOOKUP(K157,Proposito_programa!$C$2:$E$59,3,FALSE)) -> Propósito 5: Construir Bogotá - Región con gobierno abierto, transparente y ciudadanía consciente | N157: 1696 | P157: 1019019834 | Q157: EDWIN RUIZ VASQUEZ | R157: NICOLAS ALBERTO CABRERA PUENTE | S157: LUIS YOBANY ROBLES RUBIANO | T157: Persona Natural | X157: 20800000 | AB157: 20800000 | AC157: 15333333 | AD157: 2021-05-05 | AE157: 2021-05-06 | AF157: 2022-01-05 | AG157: 244 | AO157: X | AR157: 0.7371794712
A158: CPS-145-2021 | B158: 2021 | C158: FDRS-CD.-124-2021 | D158: https://community.secop.gov.co/Public/Tendering/OpportunityDetail/Index?noticeUID=CO1.NTC.1957863&isFromPublicArea=True&isModal=False | E158: Contratos de prestación de servicios profesionales y de apoyo a la gestión | F158: Contratación directa | G158: Prestación de servicios profesionales y de apoyo a la gestión, o para la ejecución de trabajos artísticos que sólo puedan encomendarse a determinadas personas naturales; | H158: PRESTAR LOS SERVICIOS PROFESIONALES PARA APOYAR JURÍDICAMENTE LAS RESPUESTAS A LAS SOLICITUDES RADICADAS POR LOS ENTES DE CONTROL, CONCEJO DE BOGOTÁ Y TEMAS RELACIONADOS CON PLANES DE MEJORAMIENTO DE LA ALCALDÍA LOCAL DE SUMAPAZ | I158: Inversión | J158: Un Nuevo Contrato Social y Ambiental para la Bogotá del Siglo XXI | K158: 57 | L158: =IF(ISERROR(VLOOKUP(K158,Proposito_programa!$C$2:$E$59,2,FALSE))," ",VLOOKUP(K158,Proposito_programa!$C$2:$E$59,2,FALSE)) -> Gestión pública local | M158: =IF(ISERROR(VLOOKUP(K158,Proposito_programa!$C$2:$E$59,3,FALSE))," ",VLOOKUP(K158,Proposito_programa!$C$2:$E$59,3,FALSE)) -> Propósito 5: Construir Bogotá - Región con gobierno abierto, transparente y ciudadanía consciente | N158: 1696 | P158: 52516975 | Q158: NINI JOHANA GUTIERREZ TORRES | R158: ASEGURADORA SOLIDARIA DE COLOMBIA ENTIDAD COOPERATIVA | S158: DUVAN HERNAN HERNANDEZ TORRES | T158: Persona Natural | X158: 45600000 | AB158: 45600000 | AC158: 38033333 | AD158: 2021-05-05 | AE158: 2021-05-06 | AF158: 2022-01-05 | AG158: 244 | AO158: X | AR158: 0.8340643202
A159: CPS-146-2021 | B159: 2021 | C159: FDRS-CD-126-2021 | D159: https://community.secop.gov.co/Public/Tendering/OpportunityDetail/Index?noticeUID=CO1.NTC.1967524&isFromPublicArea=True&isModal=False | E159: Contratos de prestación de servicios profesionales y de apoyo a la gestión | F159: Contratación directa | G159: Prestación de servicios profesionales y de apoyo a la gestión, o para la ejecución de trabajos artísticos que sólo puedan encomendarse a determinadas personas naturales; | H159: PRESTAR SUS SERVICIOS COMO TÉCNICO DE APOYO ADMINISTRATIVO AL ÁREA DE GESTIÓN DEL DESARROLLO LOCAL EN LA ALCALDÍA LOCAL DE SUMAPAZ | I159: Inversión | J159: Un Nuevo Contrato Social y Ambiental para la Bogotá del Siglo XXI | K159: 57 | L159: =IF(ISERROR(VLOOKUP(K159,Proposito_programa!$C$2:$E$59,2,FALSE))," ",VLOOKUP(K159,Proposito_programa!$C$2:$E$59,2,FALSE)) -> Gestión pública local | M159: =IF(ISERROR(VLOOKUP(K159,Proposito_programa!$C$2:$E$59,3,FALSE))," ",VLOOKUP(K159,Proposito_programa!$C$2:$E$59,3,FALSE)) -> Propósito 5: Construir Bogotá - Región con gobierno abierto, transparente y ciudadanía consciente | N159: 1696 | P159: 1020839818 | Q159: PAULA NATALIA FARFAN PAEZ | R159: EDWIN RUIZ VÁSQUEZ | S159: CRISTIAN ANDRES TORRES MALAMBO | T159: Persona Natural | X159: 24704000 | AB159: 24704000 | AC159: 30555000 | AD159: 2021-05-11 | AE159: 2021-05-12 | AF159: 2022-01-11 | AG159: 244 | AO159: X | AR159: 1.236844236
A160: CPS-147-2021 | B160: 2021 | C160: FDRS-CD-127-2021 | D160: https://community.secop.gov.co/Public/Tendering/OpportunityDetail/Index?noticeUID=CO1.NTC.1992430&isFromPublicArea=True&isModal=False | E160: Contratos de prestación de servicios profesionales y de apoyo a la gestión | F160: Contratación directa | G160: Prestación de servicios profesionales y de apoyo a la gestión, o para la ejecución de trabajos artísticos que sólo puedan encomendarse a determinadas personas naturales; | H160: PRESTAR LOS SERVICIOS COMO AUXILIAR ADMINISTRATIVO EN LA GESTIÓN DE INFRAESTRUCTURA EN LA ALCALDÍA LOCAL DE SUMAPAZ | I160: Inversión | J160: Un Nuevo Contrato Social y Ambiental para la Bogotá del Siglo XXI | K160: 19 | L160: =IF(ISERROR(VLOOKUP(K160,Proposito_programa!$C$2:$E$59,2,FALSE))," ",VLOOKUP(K160,Proposito_programa!$C$2:$E$59,2,FALSE)) -> Vivienda y entornos dignos en el territorio urbano y rural | M160: =IF(ISERROR(VLOOKUP(K160,Proposito_programa!$C$2:$E$59,3,FALSE))," ",VLOOKUP(K160,Proposito_programa!$C$2:$E$59,3,FALSE)) -> Propósito 1: Hacer un nuevo contrato social para incrementar la inclusión social, productiva y política | N160: 1589 | P160: 53095155 | Q160: ELIANA KATHERINE JIMENEZ RODRIGUEZ | R160: NINI JOHANA GUTIERREZ TORRES | S160: JENNY CAROLINA GIRÓN CUERVO | T160: Persona Natural | X160: 18200000 | AB160: 18200000 | AC160: 28518000 | AD160: 2021-05-24 | AE160: 2021-05-25 | AF160: 2021-12-24 | AG160: 213 | AP160: X | AR160: 1.566923077
A161: CPS-148-2021 | B161: 2021 | C161: FDRS-CD-128-2021 | D161: https://community.secop.gov.co/Public/Tendering/OpportunityDetail/Index?noticeUID=CO1.NTC.1997323&isFromPublicArea=True&isModal=False | E161: Contratos de prestación de servicios profesionales y de apoyo a la gestión | F161: Contratación directa | G161: Prestación de servicios profesionales y de apoyo a la gestión, o para la ejecución de trabajos artísticos que sólo puedan encomendarse a determinadas personas naturales; | H161: PRESTAR LOS SERVICIOS COMO AYUDANTES DE MAQUINARIA PESADA DE PROPIEDAD O TENENCIA DEL FONDO DE DESARROLLO LOCAL DE SUMAPAZ | I161: Inversión | J161: Un Nuevo Contrato Social y Ambiental para la Bogotá del Siglo XXI | K161: 57 | L161: =IF(ISERROR(VLOOKUP(K161,Proposito_programa!$C$2:$E$59,2,FALSE))," ",VLOOKUP(K161,Proposito_programa!$C$2:$E$59,2,FALSE)) -> Gestión pública local | M161: =IF(ISERROR(VLOOKUP(K161,Proposito_programa!$C$2:$E$59,3,FALSE))," ",VLOOKUP(K161,Proposito_programa!$C$2:$E$59,3,FALSE)) -> Propósito 5: Construir Bogotá - Región con gobierno abierto, transparente y ciudadanía consciente | N161: 1696 | P161: 1023006848 | Q161: MARIA DEL PILAR CONTRERAS MARTÍNEZ | R161: SEGURIDAD LAS AMÉRICAS LTDA SEGURIAMERICAS LTDA | S161: HECTOR ORLANDO PENAGOS PABÓN | T161: Persona Natural | X161: 20000000 | AB161: 20000000 | AC161: 45283333 | AD161: 2021-05-26 | AE161: 2021-05-27 | AF161: 2022-01-26 | AG161: 244 | AO161: X | AR161: 2.26416665
A162: CPS-149-2021 | B162: 2021 | C162: FDRS-CD-129-2021 | D162: https://community.secop.gov.co/Public/Tendering/OpportunityDetail/Index?noticeUID=CO1.NTC.1996821&isFromPublicArea=True&isModal=False | E162: Contratos de prestación de servicios profesionales y de apoyo a la gestión | F162: Contratación directa | G162: Prestación de servicios profesionales y de apoyo a la gestión, o para la ejecución de trabajos artísticos que sólo puedan encomendarse a determinadas personas naturales; | H162: PRESTAR LOS SERVICIOS PROFESIONALES ESPECIALIZADOS PARA APOYAR LA IMPLEMENTACIÓN Y GESTIÓN DE ESTRATEGIAS DE FORTALECIMIENTO DE LOS SISTEMAS LOCALES DE JUSTICIA ESTABLECIDAS EN EL PROYECTO 1683 | I162: Inversión | J162: Un Nuevo Contrato Social y Ambiental para la Bogotá del Siglo XXI | K162: 48 | L162: =IF(ISERROR(VLOOKUP(K162,Proposito_programa!$C$2:$E$59,2,FALSE))," ",VLOOKUP(K162,Proposito_programa!$C$2:$E$59,2,FALSE)) -> Plataforma institucional para la seguridad y justicia | M162: =IF(ISERROR(VLOOKUP(K162,Proposito_programa!$C$2:$E$59,3,FALSE))," ",VLOOKUP(K162,Proposito_programa!$C$2:$E$59,3,FALSE)) -> Propósito 3: Inspirar confianza y legitimidad para vivir sin miedo y ser epicentro de cultura ciudadana, paz y reconciliación | N162: 1683 | P162: 79428028 | Q162: LUIS YOBANY ROBLES RUBIANO | R162: PAULA NATALIA FARFAN PAEZ | S162: ANDREI ESTEBAN VARGAS BENITEZ | T162: Persona Natural | X162: 56000000 | AB162: 56000000 | AC162: 17250000 | AD162: 2021-05-26 | AE162: 2021-05-27 | AF162: 2021-11-10 | AG162: 167 | AP162: X | AR162: 0.3080357143
A163: CSE-150-2021 | B163: 2021 | C163: FRDS-SAMC-122-2021 | D163: https://community.secop.gov.co/Public/Tendering/OpportunityDetail/Index?noticeUID=CO1.NTC.1939044&isFromPublicArea=True&isModal=False | E163: Seguros | F163: Selección abreviada | G163: Selección abreviada por menor cuantía | H163: CONTRATAR LOS SEGUROS QUE AMPAREN LOS INTERESES PATRIMONIALES ACTUALES Y FUTUROS, ASÍ COMO LOS BIENES DE PROPIEDAD DE LA ALCALDIA LOCAL DE SUMAPAZ, QUE ESTÉN BAJO SU RESPONSABILIDAD Y CUSTODIA Y AQUELLOS QUE SEAN ADQUIRIDOS PARA DESARROLLAR LAS FUNCIONES INHERENTES A SU ACTIVIDAD, ASI COMO CUALQUIER OTRA PÓLIZA DE SEGUROS QUE REQUIERA LA ENTIDAD EN EL DESARROLLO DE SU ACTIVIDAD | I163: Funcionamiento | J163: Un Nuevo Contrato Social y Ambiental para la Bogotá del Siglo XXI | K163: No aplica | L163: =IF(ISERROR(VLOOKUP(K163,Proposito_programa!$C$2:$E$59,2,FALSE))," ",VLOOKUP(K163,Proposito_programa!$C$2:$E$59,2,FALSE)) ->  | M163: =IF(ISERROR(VLOOKUP(K163,Proposito_programa!$C$2:$E$59,3,FALSE))," ",VLOOKUP(K163,Proposito_programa!$C$2:$E$59,3,FALSE)) ->  | O163: 1 | P163: 860524654 | Q163: ASEGURADORA SOLIDARIA DE COLOMBIA ENTIDAD COOPERATIVA | R163: ELIANA KATHERINE JIMENEZ RODRÍGUEZ | S163: EMPRESA DE TELECOMUNICACIONES DE BOGOTÁ SA ESP | T163: Persona Jurídica | X163: 251998595 | Z163: 1 | AA163: 973890 | AB163: 252972485 | AC163: 16293333 | AD163: 2021-05-24 | AE163: 2021-05-24 | AF163: 2022-05-23 | AG163: 364 | AO163: X | AR163: 0.06440753033
A164: CAR-151-2021 | B164: 2021 | C164: FDRS-CD-132-2021 | D164: https://community.secop.gov.co/Public/Tendering/OpportunityDetail/Index?noticeUID=CO1.NTC.1997555&isFromPublicArea=True&isModal=False | E164: Arrendamiento de bienes inmuebles | F164: Contratación directa | G164: El arrendamiento o adquisición de inmuebles | H164: ADQUIRIR A TÍTULO DE ARRENDAMIENTO UNA (1) BODEGA PARA EL FUNCIONAMIENTO DEL PUESTO DE DESINFECCIÓN EN LA LOCALIDAD DE SUMAPAZ | I164: Funcionamiento | J164: Un Nuevo Contrato Social y Ambiental para la Bogotá del Siglo XXI | K164: No aplica | L164: =IF(ISERROR(VLOOKUP(K164,Proposito_programa!$C$2:$E$59,2,FALSE))," ",VLOOKUP(K164,Proposito_programa!$C$2:$E$59,2,FALSE)) ->  | M164: =IF(ISERROR(VLOOKUP(K164,Proposito_programa!$C$2:$E$59,3,FALSE))," ",VLOOKUP(K164,Proposito_programa!$C$2:$E$59,3,FALSE)) ->  | P164: 79640478 | Q164: OSCAR PEÑALOZA CASTELLANOS | R164: MARIA DEL PILAR CONTRERAS MARTÍNEZ | S164: MARIO ANDRES MUÑOZ ONOFRE | T164: Persona Natural | X164: 3570000 | AB164: 3570000 | AC164: 120333877 | AD164: 2021-05-26 | AE164: 2021-05-28 | AF164: 2021-08-27 | AG164: 91 | AP164: X | AR164: 33.70696835
A165: CPS-152-2021 | B165: 2021 | C165: FDRS-CD-133-2021 | D165: https://community.secop.gov.co/Public/Tendering/OpportunityDetail/Index?noticeUID=CO1.NTC.2011407&isFromPublicArea=True&isModal=False | E165: Contratos de prestación de servicios profesionales y de apoyo a la gestión | F165: Contratación directa | G165: Prestación de servicios profesionales y de apoyo a la gestión, o para la ejecución de trabajos artísticos que sólo puedan encomendarse a determinadas personas naturales; | H165: PRESTAR LOS SERVICIOS PROFESIONALES PARA APOYAR LA IMPLEMENTACIÓN Y GESTIÓN DE ESTRATEGIAS DE FORTALECIMIENTO DE LOS SISTEMAS LOCALES DE JUSTICIA ESTABLECIDAS EN EL PROYECTO 1683 | I165: Inversión | J165: Un Nuevo Contrato Social y Ambiental para la Bogotá del Siglo XXI | K165: 48 | L165: =IF(ISERROR(VLOOKUP(K165,Proposito_programa!$C$2:$E$59,2,FALSE))," ",VLOOKUP(K165,Proposito_programa!$C$2:$E$59,2,FALSE)) -> Plataforma institucional para la seguridad y justicia | M165: =IF(ISERROR(VLOOKUP(K165,Proposito_programa!$C$2:$E$59,3,FALSE))," ",VLOOKUP(K165,Proposito_programa!$C$2:$E$59,3,FALSE)) -> Propósito 3: Inspirar confianza y legitimidad para vivir sin miedo y ser epicentro de cultura ciudadana, paz y reconciliación | N165: 1683 | P165: 1024555613 | Q165: DUVAN HERNAN HERNANDEZ TORRES | R165: LUIS YOBANY ROBLES RUBIANO | S165: LILIANA MARCELA MEDINA CHAVARRO | T165: Persona Natural | X165: 30555000 | AB165: 30555000 | AC165: 16640000 | AD165: 2021-06-01 | AE165: 2021-06-02 | AF165: 2022-01-01 | AG165: 213 | AO165: X | AR165: 0.5445917198
A166: CPS-153-2021 | B166: 2021 | C166: FDRS-CD-134-2021 | D166: https://community.secop.gov.co/Public/Tendering/OpportunityDetail/Index?noticeUID=CO1.NTC.2028979&isFromPublicArea=True&isModal=False | E166: Contratos de prestación de servicios profesionales y de apoyo a la gestión | F166: Contratación directa | G166: Prestación de servicios profesionales y de apoyo a la gestión, o para la ejecución de trabajos artísticos que sólo puedan encomendarse a determinadas personas naturales; | H166: EL CONTRATO QUE SE PRETENDE CELEBRAR TENDRÁ POR OBJETO PRESTAR LOS SERVICIOS PROFESIONALES DE APOYO AL ÁREA DE GESTIÓN DE DESARROLLO LOCAL DE LA ALCALDÍA LOCAL DE SUMAPAZ, EN TEMAS RELACIONADOS CON EL EMPLEO LOCAL Y CORAZÓN PRODUCTIVO | I166: Inversión | J166: Un Nuevo Contrato Social y Ambiental para la Bogotá del Siglo XXI | K166: 1 | L166: =IF(ISERROR(VLOOKUP(K166,Proposito_programa!$C$2:$E$59,2,FALSE))," ",VLOOKUP(K166,Proposito_programa!$C$2:$E$59,2,FALSE)) -> Subsidios y transferencias para la equidad | M166: =IF(ISERROR(VLOOKUP(K166,Proposito_programa!$C$2:$E$59,3,FALSE))," ",VLOOKUP(K166,Proposito_programa!$C$2:$E$59,3,FALSE)) -> Propósito 1: Hacer un nuevo contrato social para incrementar la inclusión social, productiva y política | N166: 1583 | P166: 1013642097 | Q166: CRISTIAN ANDRES TORRES MALAMBO | R166: COMPAÑÍA DE DISTRIBUCIÓN FERRETERA S.A.S. | S166: LAURA JULIANA CUERVO MORALES | T166: Persona Natural | X166: 30555000 | AB166: 30555000 | AC166: 21660000 | AD166: 2021-06-11 | AE166: 2021-06-15 | AF166: 2022-01-14 | AG166: 213 | AO166: X | AR166: 0.7088856161
A167: CPS-154-2021 | B167: 2021 | C167: FDRS-CD-135-2021 | D167: https://community.secop.gov.co/Public/Tendering/OpportunityDetail/Index?noticeUID=CO1.NTC.2012254&isFromPublicArea=True&isModal=False | E167: Contratos de prestación de servicios profesionales y de apoyo a la gestión | F167: Contratación directa | G167: Prestación de servicios profesionales y de apoyo a la gestión, o para la ejecución de trabajos artísticos que sólo puedan encomendarse a determinadas personas naturales; | H167: PRESTAR LOS SERVICIOS PROFESIONALES PARA APOYAR LOS ASUNTOS JURÍDICOS EN LA GESTIÓN CONTRACTUAL Y POSTCONTRACTUALES DEL FONDO DE DESARROLLO LOCAL DE SUMAPAZ | I167: Inversión | J167: Un Nuevo Contrato Social y Ambiental para la Bogotá del Siglo XXI | K167: 57 | L167: =IF(ISERROR(VLOOKUP(K167,Proposito_programa!$C$2:$E$59,2,FALSE))," ",VLOOKUP(K167,Proposito_programa!$C$2:$E$59,2,FALSE)) -> Gestión pública local | M167: =IF(ISERROR(VLOOKUP(K167,Proposito_programa!$C$2:$E$59,3,FALSE))," ",VLOOKUP(K167,Proposito_programa!$C$2:$E$59,3,FALSE)) -> Propósito 5: Construir Bogotá - Región con gobierno abierto, transparente y ciudadanía consciente | N167: 1696 | P167: 52900762 | Q167: JENNY CAROLINA GIRON CUERVO | R167: GRUPO EMPRESARIAL MADEX SAS | S167: COMPAÑÍA DE DISTRIBUCIÓN FERRETERA S.A.S. | T167: Persona Natural | X167: 45500000 | AB167: 45500000 | AC167: 26216667 | AD167: 2021-06-02 | AE167: 2021-06-02 | AF167: 2022-01-01 | AG167: 213 | AO167: X | AR167: 0.5761904835
A168: CPS-155-2021 | B168: 2021 | C168: FDRS-CD-136-2021 | D168: https://community.secop.gov.co/Public/Tendering/OpportunityDetail/Index?noticeUID=CO1.NTC.2012363&isFromPublicArea=True&isModal=False | E168: Contratos de prestación de servicios profesionales y de apoyo a la gestión | F168: Contratación directa | G168: Prestación de servicios profesionales y de apoyo a la gestión, o para la ejecución de trabajos artísticos que sólo puedan encomendarse a determinadas personas naturales; | H168: PRESTAR LOS SERVICIOS COMO AYUDANTES DE MAQUINARIA PESADA DE PROPIEDAD O TENENCIA DEL FONDO DE DESARROLLO LOCAL DE SUMAPAZ | I168: Inversión | J168: Un Nuevo Contrato Social y Ambiental para la Bogotá del Siglo XXI | K168: 57 | L168: =IF(ISERROR(VLOOKUP(K168,Proposito_programa!$C$2:$E$59,2,FALSE))," ",VLOOKUP(K168,Proposito_programa!$C$2:$E$59,2,FALSE)) -> Gestión pública local | M168: =IF(ISERROR(VLOOKUP(K168,Proposito_programa!$C$2:$E$59,3,FALSE))," ",VLOOKUP(K168,Proposito_programa!$C$2:$E$59,3,FALSE)) -> Propósito 5: Construir Bogotá - Región con gobierno abierto, transparente y ciudadanía consciente | N168: 1696 | P168: 1024559011 | Q168: HECTOR ORLANDO PENAGOS PABON | R168: REDCOMPUTO LIMITADA | S168: GRUPO EMPRESARIAL MADEX SAS | T168: Persona Natural | X168: 20000000 | AB168: 20000000 | AC168: 0 | AD168: 2021-06-02 | AE168: 2021-06-04 | AF168: 2022-02-03 | AG168: 244 | AO168: X | AR168: 0
A169: CPS-156-2021 | B169: 2021 | C169: FDRS-CD-138-2021 | D169: https://community.secop.gov.co/Public/Tendering/OpportunityDetail/Index?noticeUID=CO1.NTC.2042508&isFromPublicArea=True&isModal=False | E169: Contratos de prestación de servicios profesionales y de apoyo a la gestión | F169: Contratación directa | G169: Prestación de servicios profesionales y de apoyo a la gestión, o para la ejecución de trabajos artísticos que sólo puedan encomendarse a determinadas personas naturales; | H169: PRESTAR LOS SERVICIOS DE APOYO ADMINISTRATIVO EN LOS PROCESOS QUE SE ADELANTAN EN EL ALMACÉN DE LA ALCALDÍA LOCAL DE SUMAPAZ | I169: Inversión | J169: Un Nuevo Contrato Social y Ambiental para la Bogotá del Siglo XXI | K169: 57 | L169: =IF(ISERROR(VLOOKUP(K169,Proposito_programa!$C$2:$E$59,2,FALSE))," ",VLOOKUP(K169,Proposito_programa!$C$2:$E$59,2,FALSE)) -> Gestión pública local | M169: =IF(ISERROR(VLOOKUP(K169,Proposito_programa!$C$2:$E$59,3,FALSE))," ",VLOOKUP(K169,Proposito_programa!$C$2:$E$59,3,FALSE)) -> Propósito 5: Construir Bogotá - Región con gobierno abierto, transparente y ciudadanía consciente | N169: 1696 | P169: 1030591646 | Q169: ANDREI ESTEBAN VARGAS BENITEZ | R169: COMPAÑÍA DE DISTRIBUCIÓN FERRETERA S.A.S. | S169: REDCOMPUTO LIMITADA | T169: Persona Natural | X169: 18200000 | AB169: 18200000 | AC169: 0 | AD169: 2021-06-21 | AE169: 2021-06-23 | AF169: 2022-01-22 | AG169: 213 | AO169: X | AR169: 0
A170: CIA-157-2021 | B170: 2021 | C170: FDRS-CD-137-2021 | D170: https://community.secop.gov.co/Public/Tendering/OpportunityDetail/Index?noticeUID=CO1.NTC.2028938&isFromPublicArea=True&isModal=False | E170: Contratos de prestación de servicios | F170: Contratación directa | G170: Contratos interadministrativos | H170: DESARROLLAR UN PROCESO DE INTERVENCIÓN QUE GARANTICE EL DERECHO A LAS COMUNICACIONES, MEDIANTE LA OPERACIÓN, ADMINISTRACIÓN Y MANTENIMIENTO DE LOS CINCO (5) CENTROS DE CONECTIVIDAD CAMPESINA EXISTENTE | I170: Inversión | J170: Un Nuevo Contrato Social y Ambiental para la Bogotá del Siglo XXI | K170: 54 | L170: =IF(ISERROR(VLOOKUP(K170,Proposito_programa!$C$2:$E$59,2,FALSE))," ",VLOOKUP(K170,Proposito_programa!$C$2:$E$59,2,FALSE)) -> Transformación digital y gestión de TIC para un territorio inteligente | M170: =IF(ISERROR(VLOOKUP(K170,Proposito_programa!$C$2:$E$59,3,FALSE))," ",VLOOKUP(K170,Proposito_programa!$C$2:$E$59,3,FALSE)) -> Propósito 5: Construir Bogotá - Región con gobierno abierto, transparente y ciudadanía consciente | N170: 1692 | P170: 899999115 | Q170: EMPRESA DE TELECOMUNICACIONES DE BOGOTA SA ESP | R170: COMPAÑÍA DE DISTRIBUCIÓN FERRETERA S.A.S. | S170: SECRETARIA DE EDUCACIÓN DEL DISTRITO | T170: Persona Jurídica | X170: 123264241 | AB170: 123264241 | AC170: 0 | AD170: 2021-06-11 | AE170: 2021-06-17 | AF170: 2021-08-16 | AG170: 60 | AP170: X | AR170: 0
A171: CPS-158-2021 | B171: 2021 | C171: FDRS-CD-140-2021 | D171: https://community.secop.gov.co/Public/Tendering/OpportunityDetail/Index?noticeUID=CO1.NTC.2047302&isFromPublicArea=True&isModal=False | E171: Contratos de prestación de servicios profesionales y de apoyo a la gestión | F171: Contratación directa | G171: Prestación de servicios profesionales y de apoyo a la gestión, o para la ejecución de trabajos artísticos que sólo puedan encomendarse a determinadas personas naturales; | H171: PRESTAR LOS SERVICIOS DE APOYO ADMINISTRATIVO AL ÁREA GESTIÓN DE DESARROLLO LOCAL, EN LA GESTIÓN CULTURAL DE LA LOCALIDAD DE SUMAPAZ | I171: Inversión | J171: Un Nuevo Contrato Social y Ambiental para la Bogotá del Siglo XXI | K171: 21 | L171: =IF(ISERROR(VLOOKUP(K171,Proposito_programa!$C$2:$E$59,2,FALSE))," ",VLOOKUP(K171,Proposito_programa!$C$2:$E$59,2,FALSE)) -> Creación y vida cotidiana: Apropiación ciudadana del arte, la cultura y el patrimonio, para la democracia cultural | M171: =IF(ISERROR(VLOOKUP(K171,Proposito_programa!$C$2:$E$59,3,FALSE))," ",VLOOKUP(K171,Proposito_programa!$C$2:$E$59,3,FALSE)) -> Propósito 1: Hacer un nuevo contrato social para incrementar la inclusión social, productiva y política | N171: 1633 | P171: 79984076 | Q171: MARIO ANDRES MUÑOZ ONOFRE | R171: HYUNDAUTOS SAS | S171: CINDY GERALDINE GARCIA MORENO | T171: Persona Natural | X171: 23400000 | AB171: 23400000 | AC171: 2894552000 | AD171: 2021-06-22 | AE171: 2021-06-23 | AF171: 2021-12-22 | AG171: 182 | AP171: X | AR171: 123.6988034
A172: CPS-159-2021 | B172: 2021 | C172: FDRS-SAMC-125-2021 | D172: https://community.secop.gov.co/Public/Tendering/OpportunityDetail/Index?noticeUID=CO1.NTC.2026594&isFromPublicArea=True&isModal=False | E172: Contratos de prestación de servicios | F172: Selección abreviada | G172: Selección abreviada por menor cuantía | H172: CONTRATAR LA PRESTACIÓN DE SERVICIOS DE VIGILANCIA Y SEGURIDAD PRIVADA CON ARMAS, PARA LAS SEDES DE LA ALCALDIA LOCAL DE SUMAPAZ | I172: Funcionamiento | J172: Un Nuevo Contrato Social y Ambiental para la Bogotá del Siglo XXI | K172: No aplica | L172: =IF(ISERROR(VLOOKUP(K172,Proposito_programa!$C$2:$E$59,2,FALSE))," ",VLOOKUP(K172,Proposito_programa!$C$2:$E$59,2,FALSE)) ->  | M172: =IF(ISERROR(VLOOKUP(K172,Proposito_programa!$C$2:$E$59,3,FALSE))," ",VLOOKUP(K172,Proposito_programa!$C$2:$E$59,3,FALSE)) ->  | O172: 5 | P172: 860518862 | Q172: SEGURIDAD LAS AMERICAS LTDA SEGURIAMERICAS LTDA | R172: OSCAR PEÑALOZA CASTELLANOS | S172: COMPAÑÍA DE DISTRIBUCIÓN FERRETERA S.A.S. | T172: Persona Jurídica | X172: 227273288 | AB172: 227273288 | AC172: 11093333 | AD172: 2021-06-21 | AE172: 2021-06-22 | AF172: 2022-02-21 | AG172: 244 | AO172: X | AR172: 0.04881054477
A173: CPS-160-2021 | B173: 2021 | C173: FDRS-MC-139-2021 | D173: https://community.secop.gov.co/Public/Tendering/OpportunityDetail/Index?noticeUID=CO1.NTC.2037307&isFromPublicArea=True&isModal=False | E173: Contratos de prestación de servicios | F173: Contratación mínima cuantia | G173: No aplica | H173: CONTRATAR LA PÓLIZA DE VIDA GRUPO DE LOS EDILES Y EDILESAS DE LA ALCALDIA LOCAL DE SUMAPAZ | I173: Funcionamiento | J173: Un Nuevo Contrato Social y Ambiental para la Bogotá del Siglo XXI | K173: No aplica | L173: =IF(ISERROR(VLOOKUP(K173,Proposito_programa!$C$2:$E$59,2,FALSE))," ",VLOOKUP(K173,Proposito_programa!$C$2:$E$59,2,FALSE)) ->  | M173: =IF(ISERROR(VLOOKUP(K173,Proposito_programa!$C$2:$E$59,3,FALSE))," ",VLOOKUP(K173,Proposito_programa!$C$2:$E$59,3,FALSE)) ->  | O173: 2 | P173: 860037013 | Q173: COMPAÑIA MUNDIAL DE SEGUROS S A | R173: DUVAN HERNAN HERNANDEZ TORRES | S173: COMPAÑÍA DE DISTRIBUCIÓN FERRETERA S.A.S. | T173: Persona Jurídica | X173: 5107027 | AB173: 5107027 | AC173: 12584772 | AD173: 2021-06-29 | AE173: 2021-06-29 | AF173: 2022-05-21 | AG173: 326 | AO173: X | AR173: 2.464207062
A174: CPS-161-2021 | B174: 2021 | C174: FDRS-CD-142-2021 | D174: https://community.secop.gov.co/Public/Tendering/OpportunityDetail/Index?noticeUID=CO1.NTC.2071061&isFromPublicArea=True&isModal=False | E174: Contratos de prestación de servicios profesionales y de apoyo a la gestión | F174: Contratación directa | G174: Prestación de servicios profesionales y de apoyo a la gestión, o para la ejecución de trabajos artísticos que sólo puedan encomendarse a determinadas personas naturales; | H174: PRESTAR LOS SERVICIOS PROFESIONALES PARA APOYAR LA PLANEACIÓN, SEGUIMIENTO, EJECUCIÓN Y CONTROL DEL PROYECTO DE INVERSIÓN “ACUEDUCTOS VEREDALES Y SANEAMIENTO BÁSICO” EN LA LOCALIDAD DE SUMAPAZ | I174: Inversión | J174: Un Nuevo Contrato Social y Ambiental para la Bogotá del Siglo XXI | K174: 37 | L174: =IF(ISERROR(VLOOKUP(K174,Proposito_programa!$C$2:$E$59,2,FALSE))," ",VLOOKUP(K174,Proposito_programa!$C$2:$E$59,2,FALSE)) -> Provisión y mejoramiento de servicios públicos | M174: =IF(ISERROR(VLOOKUP(K174,Proposito_programa!$C$2:$E$59,3,FALSE))," ",VLOOKUP(K174,Proposito_programa!$C$2:$E$59,3,FALSE)) -> Propósito 2 : Cambiar Nuestros Hábitos de Vida para Reverdecer a Bogotá y Adaptarnos y Mitigar la Crisis Climática | N174: 1668 | P174: 1024479198 | Q174: LILIANA MARCELA MEDINA CHAVARRO | R174: CRISTIAN ANDRES TORRES MALAMBO | S174: HYUNDAUTOS SAS | T174: Persona Natural | X174: 39900000 | AB174: 39900000 | AC174: 1221390669 | AD174: 2021-07-02 | AE174: 2021-07-07 | AF174: 2022-03-08 | AG174: 244 | AO174: X | AR174: 30.61129496
A175: CPS-162-2021 | B175: 2021 | C175: FDRS-CD-143-2021 | D175: https://community.secop.gov.co/Public/Tendering/OpportunityDetail/Index?noticeUID=CO1.NTC.2077283&isFromPublicArea=True&isModal=False | E175: Contratos de prestación de servicios profesionales y de apoyo a la gestión | F175: Contratación directa | G175: Prestación de servicios profesionales y de apoyo a la gestión, o para la ejecución de trabajos artísticos que sólo puedan encomendarse a determinadas personas naturales; | H175: PRESTAR LOS SERVICIOS PROFESIONALES PARA APOYAR LA EJECUCIÓN DE LA META BENEFICIAR 150 PERSONAS A TRAVÉS DE ESTRATEGIAS PARA EL FORTALECIMIENTO DE LOS MECANISMOS DE JUSTICIA COMUNITARIA. 1683 DE LA ALCALDÍA LOCAL DE SUMAPAZ | I175: Inversión | J175: Un Nuevo Contrato Social y Ambiental para la Bogotá del Siglo XXI | K175: 48 | L175: =IF(ISERROR(VLOOKUP(K175,Proposito_programa!$C$2:$E$59,2,FALSE))," ",VLOOKUP(K175,Proposito_programa!$C$2:$E$59,2,FALSE)) -> Plataforma institucional para la seguridad y justicia | M175: =IF(ISERROR(VLOOKUP(K175,Proposito_programa!$C$2:$E$59,3,FALSE))," ",VLOOKUP(K175,Proposito_programa!$C$2:$E$59,3,FALSE)) -> Propósito 3: Inspirar confianza y legitimidad para vivir sin miedo y ser epicentro de cultura ciudadana, paz y reconciliación | N175: 1683 | P175: 1032379433 | Q175: LAURA JULIANA CUERVO MORALES | R175: JENNY CAROLINA GIRÓN CUERVO | S175: VERONICA LUCIA CASTRO CHIGUAZUQUE | T175: Persona Natural | X175: 33000000 | AB175: 33000000 | AC175: 247362924 | AD175: 2021-07-06 | AE175: 2021-07-08 | AF175: 2022-01-07 | AG175: 183 | AO175: X | AR175: 7.495846182
A176: CSU-163-2021 | B176: 2021 | C176: FDRS-SASI-130-2021 | D176: https://community.secop.gov.co/Public/Tendering/OpportunityDetail/Index?noticeUID=CO1.NTC.2025735&isFromPublicArea=True&isModal=False | E176: Suministro | F176: Selección abreviada | G176: Selección abreviada por menor cuantía | H176: CONTRATAR EL SUMINISTRO DE MATERIALES, INSUMOS, INSTRUMENTOS, ELEMENTOS, EQUIPOS Y HERRAMIENTAS PARA EL DESARROLLO DE LOS PROYECTOS DE INVERSIÓN E INICIATIVAS LOCALES DEL FONDO DE DESARROLLO RURAL DE SUMAPAZ | I176: Inversión | J176: Un Nuevo Contrato Social y Ambiental para la Bogotá del Siglo XXI | K176: 14 | L176: =IF(ISERROR(VLOOKUP(K176,Proposito_programa!$C$2:$E$59,2,FALSE))," ",VLOOKUP(K176,Proposito_programa!$C$2:$E$59,2,FALSE)) -> Formación integral: más y mejor tiempo en los colegios | M176: =IF(ISERROR(VLOOKUP(K176,Proposito_programa!$C$2:$E$59,3,FALSE))," ",VLOOKUP(K176,Proposito_programa!$C$2:$E$59,3,FALSE)) -> Propósito 1: Hacer un nuevo contrato social para incrementar la inclusión social, productiva y política | N176: 1586 | O176: 14 | P176: 900063026 | Q176: COMPAÑIA DE DISTRIBUCION FERRETERA SAS | R176: HECTOR ORLANDO PENAGOS PABÓN | S176: JUAN SEBASTIAN MONTAÑEZ ROMERO | T176: Persona Jurídica | X176: 102712400 | AB176: 102712400 | AC176: 22916666 | AD176: 2021-07-13 | AE176: 2021-07-23 | AF176: 2022-04-22 | AG176: 273 | AO176: X | AR176: 0.2231148917
A177: CSU-164-2021 | B177: 2021 | C177: FDRS-SASI-130-2021 | D177: https://community.secop.gov.co/Public/Tendering/OpportunityDetail/Index?noticeUID=CO1.NTC.2025735&isFromPublicArea=True&isModal=False | E177: Suministro | F177: Selección abreviada | G177: Selección abreviada por menor cuantía | H177: CONTRATAR EL SUMINISTRO DE MATERIALES, INSUMOS, INSTRUMENTOS, ELEMENTOS, EQUIPOS Y HERRAMIENTAS PARA EL DESARROLLO DE LOS PROYECTOS DE INVERSIÓN E INICIATIVAS LOCALES DEL FONDO DE DESARROLLO RURAL DE SUMAPAZ | I177: Inversión | J177: Un Nuevo Contrato Social y Ambiental para la Bogotá del Siglo XXI | K177: 12 | L177: =IF(ISERROR(VLOOKUP(K177,Proposito_programa!$C$2:$E$59,2,FALSE))," ",VLOOKUP(K177,Proposito_programa!$C$2:$E$59,2,FALSE)) -> Educación inicial: Bases sólidas para la vida. | M177: =IF(ISERROR(VLOOKUP(K177,Proposito_programa!$C$2:$E$59,3,FALSE))," ",VLOOKUP(K177,Proposito_programa!$C$2:$E$59,3,FALSE)) -> Propósito 1: Hacer un nuevo contrato social para incrementar la inclusión social, productiva y política | N177: 1585 | O177: 14 | P177: 900552715 | Q177: GRUPO EMPRESARIAL MADEX SAS | R177: EMPRESA DE TELECOMUNICACIONES DE BOGOTÁ SA ESP | S177: GERALDINE YURANI RUBIANO RUBIANO | T177: Persona Jurídica | X177: 50000000 | AB177: 50000000 | AC177: 9533333 | AD177: 2021-07-13 | AE177: 2021-08-04 | AF177: 2022-02-03 | AG177: 213 | AO177: X | AR177: 0.19066666
A178: CSU-164-2021 | B178: 2021 | C178: FDRS-SASI-130-2021 | D178: https://community.secop.gov.co/Public/Tendering/OpportunityDetail/Index?noticeUID=CO1.NTC.2025735&isFromPublicArea=True&isModal=False | E178: Suministro | F178: Selección abreviada | G178: Selección abreviada por menor cuantía | H178: CONTRATAR EL SUMINISTRO DE MATERIALES, INSUMOS, INSTRUMENTOS, ELEMENTOS, EQUIPOS Y HERRAMIENTAS PARA EL DESARROLLO DE LOS PROYECTOS DE INVERSIÓN E INICIATIVAS LOCALES DEL FONDO DE DESARROLLO RURAL DE SUMAPAZ | I178: Inversión | J178: Un Nuevo Contrato Social y Ambiental para la Bogotá del Siglo XXI | K178: 14 | L178: =IF(ISERROR(VLOOKUP(K178,Proposito_programa!$C$2:$E$59,2,FALSE))," ",VLOOKUP(K178,Proposito_programa!$C$2:$E$59,2,FALSE)) -> Formación integral: más y mejor tiempo en los colegios | M178: =IF(ISERROR(VLOOKUP(K178,Proposito_programa!$C$2:$E$59,3,FALSE))," ",VLOOKUP(K178,Proposito_programa!$C$2:$E$59,3,FALSE)) -> Propósito 1: Hacer un nuevo contrato social para incrementar la inclusión social, productiva y política | N178: 1586 | O178: 14 | P178: 900552715 | Q178: GRUPO EMPRESARIAL MADEX SAS | R178: ANDREI ESTEBAN VARGAS BENITEZ | S178: GERALDINE YURANI RUBIANO RUBIANO | T178: Persona Jurídica | X178: 152712577 | AB178: 152712577 | AC178: 19110000 | AD178: 2021-07-13 | AE178: 2021-08-04 | AF178: 2022-02-03 | AG178: 213 | AO178: X | AR178: 0.1251370409
A179: CSU-164-2021 | B179: 2021 | C179: FDRS-SASI-130-2021 | D179: https://community.secop.gov.co/Public/Tendering/OpportunityDetail/Index?noticeUID=CO1.NTC.2025735&isFromPublicArea=True&isModal=False | E179: Suministro | F179: Selección abreviada | G179: Selección abreviada por menor cuantía | H179: CONTRATAR EL SUMINISTRO DE MATERIALES, INSUMOS, INSTRUMENTOS, ELEMENTOS, EQUIPOS Y HERRAMIENTAS PARA EL DESARROLLO DE LOS PROYECTOS DE INVERSIÓN E INICIATIVAS LOCALES DEL FONDO DE DESARROLLO RURAL DE SUMAPAZ | I179: Inversión | J179: Un Nuevo Contrato Social y Ambiental para la Bogotá del Siglo XXI | K179: 20 | L179: =IF(ISERROR(VLOOKUP(K179,Proposito_programa!$C$2:$E$59,2,FALSE))," ",VLOOKUP(K179,Proposito_programa!$C$2:$E$59,2,FALSE)) -> Bogotá, referente en cultura, deporte, recreación y actividad física, con parques para el desarrollo y la salud | M179: =IF(ISERROR(VLOOKUP(K179,Proposito_programa!$C$2:$E$59,3,FALSE))," ",VLOOKUP(K179,Proposito_programa!$C$2:$E$59,3,FALSE)) -> Propósito 1: Hacer un nuevo contrato social para incrementar la inclusión social, productiva y política | N179: 1590 | O179: 14 | P179: 900552715 | Q179: GRUPO EMPRESARIAL MADEX SAS | R179: ANDREI ESTEBAN VARGAS BENITEZ | S179: GERALDINE YURANI RUBIANO RUBIANO | T179: Persona Jurídica | X179: 380812000 | AB179: 380812000 | AD179: 2021-07-13 | AE179: 2021-08-04 | AF179: 2022-02-03 | AG179: 213 | AO179: X | AR179: 0
A180: CSU-164-2021 | B180: 2021 | C180: FDRS-SASI-130-2021 | D180: https://community.secop.gov.co/Public/Tendering/OpportunityDetail/Index?noticeUID=CO1.NTC.2025735&isFromPublicArea=True&isModal=False | E180: Suministro | F180: Selección abreviada | G180: Selección abreviada por menor cuantía | H180: CONTRATAR EL SUMINISTRO DE MATERIALES, INSUMOS, INSTRUMENTOS, ELEMENTOS, EQUIPOS Y HERRAMIENTAS PARA EL DESARROLLO DE LOS PROYECTOS DE INVERSIÓN E INICIATIVAS LOCALES DEL FONDO DE DESARROLLO RURAL DE SUMAPAZ | I180: Inversión | J180: Un Nuevo Contrato Social y Ambiental para la Bogotá del Siglo XXI | K180: 21 | L180: =IF(ISERROR(VLOOKUP(K180,Proposito_programa!$C$2:$E$59,2,FALSE))," ",VLOOKUP(K180,Proposito_programa!$C$2:$E$59,2,FALSE)) -> Creación y vida cotidiana: Apropiación ciudadana del arte, la cultura y el patrimonio, para la democracia cultural | M180: =IF(ISERROR(VLOOKUP(K180,Proposito_programa!$C$2:$E$59,3,FALSE))," ",VLOOKUP(K180,Proposito_programa!$C$2:$E$59,3,FALSE)) -> Propósito 1: Hacer un nuevo contrato social para incrementar la inclusión social, productiva y política | N180: 1633 | O180: 14 | P180: 900552715 | Q180: GRUPO EMPRESARIAL MADEX SAS | R180: ANDREI ESTEBAN VARGAS BENITEZ | S180: GERALDINE YURANI RUBIANO RUBIANO | T180: Persona Jurídica | X180: 24000000 | AB180: 24000000 | AD180: 2021-07-13 | AE180: 2021-08-04 | AF180: 2022-02-03 | AG180: 213 | AO180: X | AR180: 0
A181: CSU-164-2021 | B181: 2021 | C181: FDRS-SASI-130-2021 | D181: https://community.secop.gov.co/Public/Tendering/OpportunityDetail/Index?noticeUID=CO1.NTC.2025735&isFromPublicArea=True&isModal=False | E181: Suministro | F181: Selección abreviada | G181: Selección abreviada por menor cuantía | H181: CONTRATAR EL SUMINISTRO DE MATERIALES, INSUMOS, INSTRUMENTOS, ELEMENTOS, EQUIPOS Y HERRAMIENTAS PARA EL DESARROLLO DE LOS PROYECTOS DE INVERSIÓN E INICIATIVAS LOCALES DEL FONDO DE DESARROLLO RURAL DE SUMAPAZ | I181: Inversión | J181: Un Nuevo Contrato Social y Ambiental para la Bogotá del Siglo XXI | K181: 55 | L181: =IF(ISERROR(VLOOKUP(K181,Proposito_programa!$C$2:$E$59,2,FALSE))," ",VLOOKUP(K181,Proposito_programa!$C$2:$E$59,2,FALSE)) -> Fortalecimiento de cultura ciudadana y su institucionalidad | M181: =IF(ISERROR(VLOOKUP(K181,Proposito_programa!$C$2:$E$59,3,FALSE))," ",VLOOKUP(K181,Proposito_programa!$C$2:$E$59,3,FALSE)) -> Propósito 5: Construir Bogotá - Región con gobierno abierto, transparente y ciudadanía consciente | N181: 1691 | O181: 14 | P181: 900552715 | Q181: GRUPO EMPRESARIAL MADEX SAS | R181: ANDREI ESTEBAN VARGAS BENITEZ | S181: GERALDINE YURANI RUBIANO RUBIANO | T181: Persona Jurídica | X181: 51468000 | AB181: 51468000 | AD181: 2021-07-13 | AE181: 2021-08-04 | AF181: 2022-02-03 | AG181: 213 | AO181: X | AR181: 0
A182: CSU-165-2021 | B182: 2021 | C182: FDRS-SASI-130-2021 | D182: https://community.secop.gov.co/Public/Tendering/OpportunityDetail/Index?noticeUID=CO1.NTC.2025735&isFromPublicArea=True&isModal=False | E182: Suministro | F182: Selección abreviada | G182: Selección abreviada por menor cuantía | H182: CONTRATAR EL SUMINISTRO DE MATERIALES, INSUMOS, INSTRUMENTOS, ELEMENTOS, EQUIPOS Y HERRAMIENTAS PARA EL DESARROLLO DE LOS PROYECTOS DE INVERSIÓN E INICIATIVAS LOCALES DEL FONDO DE DESARROLLO RURAL DE SUMAPAZ | I182: Inversión | J182: Un Nuevo Contrato Social y Ambiental para la Bogotá del Siglo XXI | K182: 12 | L182: =IF(ISERROR(VLOOKUP(K182,Proposito_programa!$C$2:$E$59,2,FALSE))," ",VLOOKUP(K182,Proposito_programa!$C$2:$E$59,2,FALSE)) -> Educación inicial: Bases sólidas para la vida. | M182: =IF(ISERROR(VLOOKUP(K182,Proposito_programa!$C$2:$E$59,3,FALSE))," ",VLOOKUP(K182,Proposito_programa!$C$2:$E$59,3,FALSE)) -> Propósito 1: Hacer un nuevo contrato social para incrementar la inclusión social, productiva y política | N182: 1585 | O182: 14 | P182: 830016004 | Q182: REDCOMPUTO LIMITADA | R182: ANDREI ESTEBAN VARGAS BENITEZ | S182: CLARA LEONOR CABRERA | T182: Persona Jurídica | X182: 62411000 | AB182: 62411000 | AD182: 2021-07-13 | AE182: 2021-07-23 | AF182: 2022-04-22 | AG182: 273 | AO182: X | AR182: 0
A183: CSU-165-2021 | B183: 2021 | C183: FDRS-SASI-130-2021 | D183: https://community.secop.gov.co/Public/Tendering/OpportunityDetail/Index?noticeUID=CO1.NTC.2025735&isFromPublicArea=True&isModal=False | E183: Suministro | F183: Selección abreviada | G183: Selección abreviada por menor cuantía | H183: CONTRATAR EL SUMINISTRO DE MATERIALES, INSUMOS, INSTRUMENTOS, ELEMENTOS, EQUIPOS Y HERRAMIENTAS PARA EL DESARROLLO DE LOS PROYECTOS DE INVERSIÓN E INICIATIVAS LOCALES DEL FONDO DE DESARROLLO RURAL DE SUMAPAZ | I183: Inversión | J183: Un Nuevo Contrato Social y Ambiental para la Bogotá del Siglo XXI | K183: 14 | L183: =IF(ISERROR(VLOOKUP(K183,Proposito_programa!$C$2:$E$59,2,FALSE))," ",VLOOKUP(K183,Proposito_programa!$C$2:$E$59,2,FALSE)) -> Formación integral: más y mejor tiempo en los colegios | M183: =IF(ISERROR(VLOOKUP(K183,Proposito_programa!$C$2:$E$59,3,FALSE))," ",VLOOKUP(K183,Proposito_programa!$C$2:$E$59,3,FALSE)) -> Propósito 1: Hacer un nuevo contrato social para incrementar la inclusión social, productiva y política | N183: 1586 | O183: 14 | P183: 830016004 | Q183: REDCOMPUTO LIMITADA | R183: COMPAÑÍA MUNDIAL DE SEGUROS S A | S183: CLARA LEONOR CABRERA | T183: Persona Jurídica | X183: 151912577 | AB183: 151912577 | AC183: 20370000 | AD183: 2021-07-13 | AE183: 2021-07-23 | AF183: 2022-04-22 | AG183: 273 | AO183: X | AR183: 0.1340902801
A184: CSU-165-2021 | B184: 2021 | C184: FDRS-SASI-130-2021 | D184: https://community.secop.gov.co/Public/Tendering/OpportunityDetail/Index?noticeUID=CO1.NTC.2025735&isFromPublicArea=True&isModal=False | E184: Suministro | F184: Selección abreviada | G184: Selección abreviada por menor cuantía | H184: CONTRATAR EL SUMINISTRO DE MATERIALES, INSUMOS, INSTRUMENTOS, ELEMENTOS, EQUIPOS Y HERRAMIENTAS PARA EL DESARROLLO DE LOS PROYECTOS DE INVERSIÓN E INICIATIVAS LOCALES DEL FONDO DE DESARROLLO RURAL DE SUMAPAZ | I184: Inversión | J184: Un Nuevo Contrato Social y Ambiental para la Bogotá del Siglo XXI | K184: 21 | L184: =IF(ISERROR(VLOOKUP(K184,Proposito_programa!$C$2:$E$59,2,FALSE))," ",VLOOKUP(K184,Proposito_programa!$C$2:$E$59,2,FALSE)) -> Creación y vida cotidiana: Apropiación ciudadana del arte, la cultura y el patrimonio, para la democracia cultural | M184: =IF(ISERROR(VLOOKUP(K184,Proposito_programa!$C$2:$E$59,3,FALSE))," ",VLOOKUP(K184,Proposito_programa!$C$2:$E$59,3,FALSE)) -> Propósito 1: Hacer un nuevo contrato social para incrementar la inclusión social, productiva y política | N184: 1633 | O184: 14 | P184: 830016004 | Q184: REDCOMPUTO LIMITADA | R184: COMPAÑÍA MUNDIAL DE SEGUROS S A | S184: CLARA LEONOR CABRERA | T184: Persona Jurídica | X184: 73936000 | AB184: 73936000 | AC184: 20370000 | AD184: 2021-07-13 | AE184: 2021-07-23 | AF184: 2022-04-22 | AG184: 273 | AO184: X | AR184: 0.2755085479
A185: CSU-165-2021 | B185: 2021 | C185: FDRS-SASI-130-2021 | D185: https://community.secop.gov.co/Public/Tendering/OpportunityDetail/Index?noticeUID=CO1.NTC.2025735&isFromPublicArea=True&isModal=False | E185: Suministro | F185: Selección abreviada | G185: Selección abreviada por menor cuantía | H185: CONTRATAR EL SUMINISTRO DE MATERIALES, INSUMOS, INSTRUMENTOS, ELEMENTOS, EQUIPOS Y HERRAMIENTAS PARA EL DESARROLLO DE LOS PROYECTOS DE INVERSIÓN E INICIATIVAS LOCALES DEL FONDO DE DESARROLLO RURAL DE SUMAPAZ | I185: Inversión | J185: Un Nuevo Contrato Social y Ambiental para la Bogotá del Siglo XXI | K185: 23 | L185: =IF(ISERROR(VLOOKUP(K185,Proposito_programa!$C$2:$E$59,2,FALSE))," ",VLOOKUP(K185,Proposito_programa!$C$2:$E$59,2,FALSE)) -> Bogotá rural | M185: =IF(ISERROR(VLOOKUP(K185,Proposito_programa!$C$2:$E$59,3,FALSE))," ",VLOOKUP(K185,Proposito_programa!$C$2:$E$59,3,FALSE)) -> Propósito 1: Hacer un nuevo contrato social para incrementar la inclusión social, productiva y política | N185: 1634 | O185: 14 | P185: 830016004 | Q185: REDCOMPUTO LIMITADA | R185: COMPAÑÍA MUNDIAL DE SEGUROS S A | S185: CLARA LEONOR CABRERA | T185: Persona Jurídica | X185: 16000000 | AB185: 16000000 | AC185: 20370000 | AD185: 2021-07-13 | AE185: 2021-07-23 | AF185: 2022-04-22 | AG185: 273 | AO185: X | AR185: 1.273125
A186: CSU-165-2021 | B186: 2021 | C186: FDRS-SASI-130-2021 | D186: https://community.secop.gov.co/Public/Tendering/OpportunityDetail/Index?noticeUID=CO1.NTC.2025735&isFromPublicArea=True&isModal=False | E186: Suministro | F186: Selección abreviada | G186: Selección abreviada por menor cuantía | H186: CONTRATAR EL SUMINISTRO DE MATERIALES, INSUMOS, INSTRUMENTOS, ELEMENTOS, EQUIPOS Y HERRAMIENTAS PARA EL DESARROLLO DE LOS PROYECTOS DE INVERSIÓN E INICIATIVAS LOCALES DEL FONDO DE DESARROLLO RURAL DE SUMAPAZ | I186: Inversión | J186: Un Nuevo Contrato Social y Ambiental para la Bogotá del Siglo XXI | K186: 55 | L186: =IF(ISERROR(VLOOKUP(K186,Proposito_programa!$C$2:$E$59,2,FALSE))," ",VLOOKUP(K186,Proposito_programa!$C$2:$E$59,2,FALSE)) -> Fortalecimiento de cultura ciudadana y su institucionalidad | M186: =IF(ISERROR(VLOOKUP(K186,Proposito_programa!$C$2:$E$59,3,FALSE))," ",VLOOKUP(K186,Proposito_programa!$C$2:$E$59,3,FALSE)) -> Propósito 5: Construir Bogotá - Región con gobierno abierto, transparente y ciudadanía consciente | N186: 1691 | O186: 14 | P186: 830016004 | Q186: REDCOMPUTO LIMITADA | R186: COMPAÑÍA MUNDIAL DE SEGUROS S A | S186: CLARA LEONOR CABRERA | T186: Persona Jurídica | X186: 198800000 | AB186: 198800000 | AC186: 20370000 | AD186: 2021-07-13 | AE186: 2021-07-23 | AF186: 2022-04-22 | AG186: 273 | AO186: X | AR186: 0.1024647887
A187: CIA-166-2021 | B187: 2021 | C187: FDRS-CD-144-2021 | D187: https://www.contratos.gov.co/consultas/detalleProceso.do?numConstancia=21-22-27410&g-recaptcha-response=03AGdBq26SqJTDb8ZqhwPC7t0MjNliPkLoUJah-v_2pC2lSaDBrQv2ol7jtR8STqC1mgVacwZ9CMsCwF0HzOwQcSA8gws4vOjQIBVwV_LctIO2ZJ8VN6PeO7uShwja1BOW_5xbQRLaom4ywEb9vgp3EhjEgvB1WjtE-6lRPSZm7Ld4gMSuIE_MJn0GH7O89Rawk4Eazzn2rQZBHK4hq8Dmu6hSavpwGVPAGmZt7U-nJF7DPwLkoS5bkm9x3XVgOTlkfdpNXHd865kRZWjU7SwOcqPSBUzgnc2H6UUR2Pay8NIMIsbIU5N9Z4YxhTiKfY84AqzDMw7-gLdUw0wcMSUFFrIsjTh8VYIWqnLvD7CwLEhWZv_SAjch5ER8f7P00_puXVNzYRimmGRPi_WGcTweZ8VvMkd_X3K7aiQEB-NRD9G-OK9UVvxn2EA1xspI8-fnZlww8u6entqN | E187: Contratos interadministrativos | F187: Contratación directa | G187: Contratos interadministrativos | H187: AUNAR ESFUERZOS TECNICOS, ADMINISTRATIVOS, JURIDICOS Y FINANCIEROS, ENTRE LA SECRETARIA DE EDUCACION EL DISTRITO Y LOS FONDOS DE DESARROLLO LOCAL QUE HACEN PARTE DEL DISTRITO CAPITAL, PARA LA IMPLEMENTACION DE UN NUEVO MODELO INCLUSIVO, EFICIENTE Y FLEXIBLE PARA EL ACCESO Y LA PERMANENCIA DE LAS Y LOS JOVENES EGRESADOS DE INSTITUCIONES DE EDUCACION MEDIA A PROGRAMAS DE EDUCACION SUPERIOR | I187: Inversión | J187: Un Nuevo Contrato Social y Ambiental para la Bogotá del Siglo XXI | K187: 18 | L187: =IF(ISERROR(VLOOKUP(K187,Proposito_programa!$C$2:$E$59,2,FALSE))," ",VLOOKUP(K187,Proposito_programa!$C$2:$E$59,2,FALSE)) -> Cierre de brechas para la inclusión productiva urbano rural | M187: =IF(ISERROR(VLOOKUP(K187,Proposito_programa!$C$2:$E$59,3,FALSE))," ",VLOOKUP(K187,Proposito_programa!$C$2:$E$59,3,FALSE)) -> Propósito 1: Hacer un nuevo contrato social para incrementar la inclusión social, productiva y política | N187: 1587 | P187: 899999061 | Q187: SECRETARIA DE EDUCACION DEL DSITRITO | R187: COMPAÑÍA MUNDIAL DE SEGUROS S A | S187: EMPRESA DE TELECOMUNICACIONES DE BOGOTÁ S.A ESP | T187: Persona Jurídica | X187: 2894552000 | AB187: 2894552000 | AC187: 20370000 | AD187: 2021-06-28 | AE187: 2021-06-28 | AF187: 2027-06-30 | AG187: 2193 | AO187: X | AR187: 0.007037358458
A188: CPS-167-2021 | B188: 2021 | C188: FDRS-CD-145-2021 | D188: https://community.secop.gov.co/Public/Tendering/OpportunityDetail/Index?noticeUID=CO1.NTC.2105892&isFromPublicArea=True&isModal=False | E188: Contratos de prestación de servicios profesionales y de apoyo a la gestión | F188: Contratación directa | G188: Prestación de servicios profesionales y de apoyo a la gestión, o para la ejecución de trabajos artísticos que sólo puedan encomendarse a determinadas personas naturales; | H188: PRESTAR LOS SERVICIOS COMO AUXILIAR ADMINISTRATIVO EN LA EJECUCIÓN DEL PROYECTO 1683 DE LA ALCALDÍA LOCAL DE SUMAPAZ | I188: Inversión | J188: Un Nuevo Contrato Social y Ambiental para la Bogotá del Siglo XXI | K188: 48 | L188: =IF(ISERROR(VLOOKUP(K188,Proposito_programa!$C$2:$E$59,2,FALSE))," ",VLOOKUP(K188,Proposito_programa!$C$2:$E$59,2,FALSE)) -> Plataforma institucional para la seguridad y justicia | M188: =IF(ISERROR(VLOOKUP(K188,Proposito_programa!$C$2:$E$59,3,FALSE))," ",VLOOKUP(K188,Proposito_programa!$C$2:$E$59,3,FALSE)) -> Propósito 3: Inspirar confianza y legitimidad para vivir sin miedo y ser epicentro de cultura ciudadana, paz y reconciliación | N188: 1683 | P188: 1072661424 | Q188: CINDY GERALDINE GARCIA MORENO | R188: MARIO ANDRES MUÑOZ ONOFRE | S188: JAVIER ENRIQUE BUITRAGO GOMEZ | T188: Persona Natural | X188: 15600000 | AB188: 15600000 | AC188: 240188537 | AD188: 2021-07-19 | AE188: 2021-07-23 | AF188: 2022-01-22 | AG188: 183 | AO188: X | AR188: 15.39670109
A189: CSU-168-2021 | B189: 2021 | C189: FDRS-SASI-130-2021 | D189: https://community.secop.gov.co/Public/Tendering/OpportunityDetail/Index?noticeUID=CO1.NTC.2025735&isFromPublicArea=True&isModal=False | E189: Suministro | F189: Selección abreviada | G189: Selección abreviada por menor cuantía | H189: CONTRATAR EL SUMINISTRO DE MATERIALES, INSUMOS, INSTRUMENTOS, ELEMENTOS, EQUIPOS Y HERRAMIENTAS PARA EL DESARROLLO DE LOS PROYECTOS DE INVERSIÓN E INICIATIVAS LOCALES DEL FONDO DE DESARROLLO RURAL DE SUMAPAZ | I189: Inversión | J189: Un Nuevo Contrato Social y Ambiental para la Bogotá del Siglo XXI | K189: 14 | L189: =IF(ISERROR(VLOOKUP(K189,Proposito_programa!$C$2:$E$59,2,FALSE))," ",VLOOKUP(K189,Proposito_programa!$C$2:$E$59,2,FALSE)) -> Formación integral: más y mejor tiempo en los colegios | M189: =IF(ISERROR(VLOOKUP(K189,Proposito_programa!$C$2:$E$59,3,FALSE))," ",VLOOKUP(K189,Proposito_programa!$C$2:$E$59,3,FALSE)) -> Propósito 1: Hacer un nuevo contrato social para incrementar la inclusión social, productiva y política | N189: 1586 | O189: 14 | P189: 900063026 | Q189: COMPAÑIA DE DISTRIBUCION FERRETERA SAS | R189: JAVIER ENRIQUE BUITRAGO GOMEZ | S189: NESTOR VILLALBA BAQUERO | T189: Persona Jurídica | X189: 260000000 | AB189: 260000000 | AC189: 0 | AD189: 2021-07-13 | AE189: 2021-08-24 | AF189: 2022-01-23 | AG189: 214 | AO189: X | AR189: 0
A190: CSU-168-2021 | B190: 2021 | C190: FDRS-SASI-130-2021 | D190: https://community.secop.gov.co/Public/Tendering/OpportunityDetail/Index?noticeUID=CO1.NTC.2025735&isFromPublicArea=True&isModal=False | E190: Suministro | F190: Selección abreviada | G190: Selección abreviada por menor cuantía | H190: CONTRATAR EL SUMINISTRO DE MATERIALES, INSUMOS, INSTRUMENTOS, ELEMENTOS, EQUIPOS Y HERRAMIENTAS PARA EL DESARROLLO DE LOS PROYECTOS DE INVERSIÓN E INICIATIVAS LOCALES DEL FONDO DE DESARROLLO RURAL DE SUMAPAZ | I190: Inversión | J190: Un Nuevo Contrato Social y Ambiental para la Bogotá del Siglo XXI | K190: 23 | L190: =IF(ISERROR(VLOOKUP(K190,Proposito_programa!$C$2:$E$59,2,FALSE))," ",VLOOKUP(K190,Proposito_programa!$C$2:$E$59,2,FALSE)) -> Bogotá rural | M190: =IF(ISERROR(VLOOKUP(K190,Proposito_programa!$C$2:$E$59,3,FALSE))," ",VLOOKUP(K190,Proposito_programa!$C$2:$E$59,3,FALSE)) -> Propósito 1: Hacer un nuevo contrato social para incrementar la inclusión social, productiva y política | N190: 1634 | O190: 14 | P190: 900063026 | Q190: COMPAÑIA DE DISTRIBUCION FERRETERA SAS | R190: LILIANA MARCELA MEDINA CHAVARRO | S190: NESTOR VILLALBA BAQUERO | T190: Persona Jurídica | X190: 60000000 | AB190: 60000000 | AC190: 11006666 | AD190: 2021-07-13 | AE190: 2021-08-24 | AF190: 2022-01-23 | AG190: 214 | AO190: X | AR190: 0.1834444333
A191: CSU-168-2021 | B191: 2021 | C191: FDRS-SASI-130-2021 | D191: https://community.secop.gov.co/Public/Tendering/OpportunityDetail/Index?noticeUID=CO1.NTC.2025735&isFromPublicArea=True&isModal=False | E191: Suministro | F191: Selección abreviada | G191: Selección abreviada por menor cuantía | H191: CONTRATAR EL SUMINISTRO DE MATERIALES, INSUMOS, INSTRUMENTOS, ELEMENTOS, EQUIPOS Y HERRAMIENTAS PARA EL DESARROLLO DE LOS PROYECTOS DE INVERSIÓN E INICIATIVAS LOCALES DEL FONDO DE DESARROLLO RURAL DE SUMAPAZ | I191: Inversión | J191: Un Nuevo Contrato Social y Ambiental para la Bogotá del Siglo XXI | K191: 28 | L191: =IF(ISERROR(VLOOKUP(K191,Proposito_programa!$C$2:$E$59,2,FALSE))," ",VLOOKUP(K191,Proposito_programa!$C$2:$E$59,2,FALSE)) -> Bogotá protectora de sus recursos naturales | M191: =IF(ISERROR(VLOOKUP(K191,Proposito_programa!$C$2:$E$59,3,FALSE))," ",VLOOKUP(K191,Proposito_programa!$C$2:$E$59,3,FALSE)) -> Propósito 2 : Cambiar Nuestros Hábitos de Vida para Reverdecer a Bogotá y Adaptarnos y Mitigar la Crisis Climática | N191: 1651 | O191: 14 | P191: 900063026 | Q191: COMPAÑIA DE DISTRIBUCION FERRETERA SAS | R191: LILIANA MARCELA MEDINA CHAVARRO | S191: NESTOR VILLALBA BAQUERO | T191: Persona Jurídica | X191: 343511869 | AB191: 343511869 | AC191: 11006666 | AD191: 2021-07-13 | AE191: 2021-08-24 | AF191: 2022-01-23 | AG191: 214 | AO191: X | AR191: 0.03204158864
A192: CSU-169-2021 | B192: 2021 | C192: FDRS-SASI-130-2021 | D192: https://community.secop.gov.co/Public/Tendering/OpportunityDetail/Index?noticeUID=CO1.NTC.2025735&isFromPublicArea=True&isModal=False | E192: Suministro | F192: Selección abreviada | G192: Selección abreviada por menor cuantía | H192: CONTRATAR EL SUMINISTRO DE MATERIALES, INSUMOS, INSTRUMENTOS, ELEMENTOS, EQUIPOS Y HERRAMIENTAS PARA EL DESARROLLO DE LOS PROYECTOS DE INVERSIÓN E INICIATIVAS LOCALES DEL FONDO DE DESARROLLO RURAL DE SUMAPAZ | I192: Inversión | J192: Un Nuevo Contrato Social y Ambiental para la Bogotá del Siglo XXI | K192: 12 | L192: =IF(ISERROR(VLOOKUP(K192,Proposito_programa!$C$2:$E$59,2,FALSE))," ",VLOOKUP(K192,Proposito_programa!$C$2:$E$59,2,FALSE)) -> Educación inicial: Bases sólidas para la vida. | M192: =IF(ISERROR(VLOOKUP(K192,Proposito_programa!$C$2:$E$59,3,FALSE))," ",VLOOKUP(K192,Proposito_programa!$C$2:$E$59,3,FALSE)) -> Propósito 1: Hacer un nuevo contrato social para incrementar la inclusión social, productiva y política | N192: 1585 | O192: 14 | P192: 900063026 | Q192: COMPAÑIA DE DISTRIBUCION FERRETERA SAS | R192: LILIANA MARCELA MEDINA CHAVARRO | S192: YURI ALEJANDRA MOLINA GARCIA | T192: Persona Jurídica | X192: 15000000 | AB192: 15000000 | AC192: 11006666 | AD192: 2021-07-13 | AE192: 2021-07-23 | AF192: 2022-04-22 | AG192: 273 | AO192: X | AR192: 0.7337777333
A193: CSU-169-2021 | B193: 2021 | C193: FDRS-SASI-130-2021 | D193: https://community.secop.gov.co/Public/Tendering/OpportunityDetail/Index?noticeUID=CO1.NTC.2025735&isFromPublicArea=True&isModal=False | E193: Suministro | F193: Selección abreviada | G193: Selección abreviada por menor cuantía | H193: CONTRATAR EL SUMINISTRO DE MATERIALES, INSUMOS, INSTRUMENTOS, ELEMENTOS, EQUIPOS Y HERRAMIENTAS PARA EL DESARROLLO DE LOS PROYECTOS DE INVERSIÓN E INICIATIVAS LOCALES DEL FONDO DE DESARROLLO RURAL DE SUMAPAZ | I193: Inversión | J193: Un Nuevo Contrato Social y Ambiental para la Bogotá del Siglo XXI | K193: 14 | L193: =IF(ISERROR(VLOOKUP(K193,Proposito_programa!$C$2:$E$59,2,FALSE))," ",VLOOKUP(K193,Proposito_programa!$C$2:$E$59,2,FALSE)) -> Formación integral: más y mejor tiempo en los colegios | M193: =IF(ISERROR(VLOOKUP(K193,Proposito_programa!$C$2:$E$59,3,FALSE))," ",VLOOKUP(K193,Proposito_programa!$C$2:$E$59,3,FALSE)) -> Propósito 1: Hacer un nuevo contrato social para incrementar la inclusión social, productiva y política | N193: 1586 | O193: 14 | P193: 900063026 | Q193: COMPAÑIA DE DISTRIBUCION FERRETERA SAS | R193: LAURA JULIANA CUERVO MORALES | S193: YURI ALEJANDRA MOLINA GARCIA | T193: Persona Jurídica | X193: 82712577 | AB193: 82712577 | AC193: 11006666 | AD193: 2021-07-13 | AE193: 2021-07-23 | AF193: 2022-04-22 | AG193: 273 | AO193: X | AR193: 0.1330712499
A194: CSU-169-2021 | B194: 2021 | C194: FDRS-SASI-130-2021 | D194: https://community.secop.gov.co/Public/Tendering/OpportunityDetail/Index?noticeUID=CO1.NTC.2025735&isFromPublicArea=True&isModal=False | E194: Suministro | F194: Selección abreviada | G194: Selección abreviada por menor cuantía | H194: CONTRATAR EL SUMINISTRO DE MATERIALES, INSUMOS, INSTRUMENTOS, ELEMENTOS, EQUIPOS Y HERRAMIENTAS PARA EL DESARROLLO DE LOS PROYECTOS DE INVERSIÓN E INICIATIVAS LOCALES DEL FONDO DE DESARROLLO RURAL DE SUMAPAZ | I194: Inversión | J194: Un Nuevo Contrato Social y Ambiental para la Bogotá del Siglo XXI | K194: 19 | L194: =IF(ISERROR(VLOOKUP(K194,Proposito_programa!$C$2:$E$59,2,FALSE))," ",VLOOKUP(K194,Proposito_programa!$C$2:$E$59,2,FALSE)) -> Vivienda y entornos dignos en el territorio urbano y rural | M194: =IF(ISERROR(VLOOKUP(K194,Proposito_programa!$C$2:$E$59,3,FALSE))," ",VLOOKUP(K194,Proposito_programa!$C$2:$E$59,3,FALSE)) -> Propósito 1: Hacer un nuevo contrato social para incrementar la inclusión social, productiva y política | N194: 1589 | O194: 14 | P194: 900063026 | Q194: COMPAÑIA DE DISTRIBUCION FERRETERA SAS | R194: LAURA JULIANA CUERVO MORALES | S194: YURI ALEJANDRA MOLINA GARCIA | T194: Persona Jurídica | X194: 797056000 | Z194: 1 | AA194: 376830000 | AB194: 1173886000 | AC194: 11006666 | AD194: 2021-07-13 | AE194: 2021-07-23 | AF194: 2022-04-22 | AG194: 273 | AO194: X | AR194: 0.009376264816
A195: CSU-169-2021 | B195: 2021 | C195: FDRS-SASI-130-2021 | D195: https://community.secop.gov.co/Public/Tendering/OpportunityDetail/Index?noticeUID=CO1.NTC.2025735&isFromPublicArea=True&isModal=False | E195: Suministro | F195: Selección abreviada | G195: Selección abreviada por menor cuantía | H195: CONTRATAR EL SUMINISTRO DE MATERIALES, INSUMOS, INSTRUMENTOS, ELEMENTOS, EQUIPOS Y HERRAMIENTAS PARA EL DESARROLLO DE LOS PROYECTOS DE INVERSIÓN E INICIATIVAS LOCALES DEL FONDO DE DESARROLLO RURAL DE SUMAPAZ | I195: Inversión | J195: Un Nuevo Contrato Social y Ambiental para la Bogotá del Siglo XXI | K195: 20 | L195: =IF(ISERROR(VLOOKUP(K195,Proposito_programa!$C$2:$E$59,2,FALSE))," ",VLOOKUP(K195,Proposito_programa!$C$2:$E$59,2,FALSE)) -> Bogotá, referente en cultura, deporte, recreación y actividad física, con parques para el desarrollo y la salud | M195: =IF(ISERROR(VLOOKUP(K195,Proposito_programa!$C$2:$E$59,3,FALSE))," ",VLOOKUP(K195,Proposito_programa!$C$2:$E$59,3,FALSE)) -> Propósito 1: Hacer un nuevo contrato social para incrementar la inclusión social, productiva y política | N195: 1590 | O195: 14 | P195: 900063026 | Q195: COMPAÑIA DE DISTRIBUCION FERRETERA SAS | R195: LAURA JULIANA CUERVO MORALES | S195: YURI ALEJANDRA MOLINA GARCIA | T195: Persona Jurídica | X195: 2400000 | AB195: 2400000 | AC195: 11006666 | AD195: 2021-07-13 | AE195: 2021-07-23 | AF195: 2022-04-22 | AG195: 273 | AO195: X | AR195: 4.586110833
A196: CSU-169-2021 | B196: 2021 | C196: FDRS-SASI-130-2021 | D196: https://community.secop.gov.co/Public/Tendering/OpportunityDetail/Index?noticeUID=CO1.NTC.2025735&isFromPublicArea=True&isModal=False | E196: Suministro | F196: Selección abreviada | G196: Selección abreviada por menor cuantía | H196: CONTRATAR EL SUMINISTRO DE MATERIALES, INSUMOS, INSTRUMENTOS, ELEMENTOS, EQUIPOS Y HERRAMIENTAS PARA EL DESARROLLO DE LOS PROYECTOS DE INVERSIÓN E INICIATIVAS LOCALES DEL FONDO DE DESARROLLO RURAL DE SUMAPAZ | I196: Inversión | J196: Un Nuevo Contrato Social y Ambiental para la Bogotá del Siglo XXI | K196: 21 | L196: =IF(ISERROR(VLOOKUP(K196,Proposito_programa!$C$2:$E$59,2,FALSE))," ",VLOOKUP(K196,Proposito_programa!$C$2:$E$59,2,FALSE)) -> Creación y vida cotidiana: Apropiación ciudadana del arte, la cultura y el patrimonio, para la democracia cultural | M196: =IF(ISERROR(VLOOKUP(K196,Proposito_programa!$C$2:$E$59,3,FALSE))," ",VLOOKUP(K196,Proposito_programa!$C$2:$E$59,3,FALSE)) -> Propósito 1: Hacer un nuevo contrato social para incrementar la inclusión social, productiva y política | N196: 1633 | O196: 14 | P196: 900063026 | Q196: COMPAÑIA DE DISTRIBUCION FERRETERA SAS | R196: LAURA JULIANA CUERVO MORALES | S196: YURI ALEJANDRA MOLINA GARCIA | T196: Persona Jurídica | X196: 42000000 | Z196: 1 | AA196: 20000000 | AB196: 62000000 | AC196: 11006666 | AD196: 2021-07-13 | AE196: 2021-07-23 | AF196: 2022-04-22 | AG196: 273 | AO196: X | AR196: 0.177526871
A197: CSU-169-2021 | B197: 2021 | C197: FDRS-SASI-130-2021 | D197: https://community.secop.gov.co/Public/Tendering/OpportunityDetail/Index?noticeUID=CO1.NTC.2025735&isFromPublicArea=True&isModal=False | E197: Suministro | F197: Selección abreviada | G197: Selección abreviada por menor cuantía | H197: CONTRATAR EL SUMINISTRO DE MATERIALES, INSUMOS, INSTRUMENTOS, ELEMENTOS, EQUIPOS Y HERRAMIENTAS PARA EL DESARROLLO DE LOS PROYECTOS DE INVERSIÓN E INICIATIVAS LOCALES DEL FONDO DE DESARROLLO RURAL DE SUMAPAZ | I197: Inversión | J197: Un Nuevo Contrato Social y Ambiental para la Bogotá del Siglo XXI | K197: 28 | L197: =IF(ISERROR(VLOOKUP(K197,Proposito_programa!$C$2:$E$59,2,FALSE))," ",VLOOKUP(K197,Proposito_programa!$C$2:$E$59,2,FALSE)) -> Bogotá protectora de sus recursos naturales | M197: =IF(ISERROR(VLOOKUP(K197,Proposito_programa!$C$2:$E$59,3,FALSE))," ",VLOOKUP(K197,Proposito_programa!$C$2:$E$59,3,FALSE)) -> Propósito 2 : Cambiar Nuestros Hábitos de Vida para Reverdecer a Bogotá y Adaptarnos y Mitigar la Crisis Climática | N197: 1648 | O197: 14 | P197: 900063026 | Q197: COMPAÑIA DE DISTRIBUCION FERRETERA SAS | R197: LAURA JULIANA CUERVO MORALES | S197: YURI ALEJANDRA MOLINA GARCIA | T197: Persona Jurídica | X197: 100000000 | Z197: 1 | AA197: 4366000 | AB197: 104366000 | AC197: 11006666 | AD197: 2021-07-13 | AE197: 2021-07-23 | AF197: 2022-04-22 | AG197: 273 | AO197: X | AR197: 0.1054621812
A198: CSU-169-2021 | B198: 2021 | C198: FDRS-SASI-130-2021 | D198: https://community.secop.gov.co/Public/Tendering/OpportunityDetail/Index?noticeUID=CO1.NTC.2025735&isFromPublicArea=True&isModal=False | E198: Suministro | F198: Selección abreviada | G198: Selección abreviada por menor cuantía | H198: CONTRATAR EL SUMINISTRO DE MATERIALES, INSUMOS, INSTRUMENTOS, ELEMENTOS, EQUIPOS Y HERRAMIENTAS PARA EL DESARROLLO DE LOS PROYECTOS DE INVERSIÓN E INICIATIVAS LOCALES DEL FONDO DE DESARROLLO RURAL DE SUMAPAZ | I198: Inversión | J198: Un Nuevo Contrato Social y Ambiental para la Bogotá del Siglo XXI | K198: 28 | L198: =IF(ISERROR(VLOOKUP(K198,Proposito_programa!$C$2:$E$59,2,FALSE))," ",VLOOKUP(K198,Proposito_programa!$C$2:$E$59,2,FALSE)) -> Bogotá protectora de sus recursos naturales | M198: =IF(ISERROR(VLOOKUP(K198,Proposito_programa!$C$2:$E$59,3,FALSE))," ",VLOOKUP(K198,Proposito_programa!$C$2:$E$59,3,FALSE)) -> Propósito 2 : Cambiar Nuestros Hábitos de Vida para Reverdecer a Bogotá y Adaptarnos y Mitigar la Crisis Climática | N198: 1651 | O198: 14 | P198: 900063026 | Q198: COMPAÑIA DE DISTRIBUCION FERRETERA SAS | R198: LAURA JULIANA CUERVO MORALES | S198: YURI ALEJANDRA MOLINA GARCIA | T198: Persona Jurídica | X198: 132000000 | Z198: 1 | AA198: 28593000 | AB198: 160593000 | AC198: 11006666 | AD198: 2021-07-13 | AE198: 2021-07-23 | AF198: 2022-04-22 | AG198: 273 | AO198: X | AR198: 0.06853764485
A199: CSU-169-2021 | B199: 2021 | C199: FDRS-SASI-130-2021 | D199: https://community.secop.gov.co/Public/Tendering/OpportunityDetail/Index?noticeUID=CO1.NTC.2025735&isFromPublicArea=True&isModal=False | E199: Suministro | F199: Selección abreviada | G199: Selección abreviada por menor cuantía | H199: CONTRATAR EL SUMINISTRO DE MATERIALES, INSUMOS, INSTRUMENTOS, ELEMENTOS, EQUIPOS Y HERRAMIENTAS PARA EL DESARROLLO DE LOS PROYECTOS DE INVERSIÓN E INICIATIVAS LOCALES DEL FONDO DE DESARROLLO RURAL DE SUMAPAZ | I199: Inversión | J199: Un Nuevo Contrato Social y Ambiental para la Bogotá del Siglo XXI | K199: 49 | L199: =IF(ISERROR(VLOOKUP(K199,Proposito_programa!$C$2:$E$59,2,FALSE))," ",VLOOKUP(K199,Proposito_programa!$C$2:$E$59,2,FALSE)) -> Movilidad segura, sostenible y accesible | M199: =IF(ISERROR(VLOOKUP(K199,Proposito_programa!$C$2:$E$59,3,FALSE))," ",VLOOKUP(K199,Proposito_programa!$C$2:$E$59,3,FALSE)) -> Propósito 4: Hacer de Bogotá Región un modelo de movilidad multimodal, incluyente y sostenible | N199: 1688 | O199: 14 | P199: 900063026 | Q199: COMPAÑIA DE DISTRIBUCION FERRETERA SAS | R199: LAURA JULIANA CUERVO MORALES | S199: YURI ALEJANDRA MOLINA GARCIA | T199: Persona Jurídica | X199: 753864000 | Z199: 1 | AA199: 376932000 | AB199: 1130796000 | AC199: 11006666 | AD199: 2021-07-13 | AE199: 2021-07-23 | AF199: 2022-04-22 | AG199: 273 | AO199: X | AR199: 0.009733555831
A200: CSU-169-2021 | B200: 2021 | C200: FDRS-SASI-130-2021 | D200: https://community.secop.gov.co/Public/Tendering/OpportunityDetail/Index?noticeUID=CO1.NTC.2025735&isFromPublicArea=True&isModal=False | E200: Suministro | F200: Selección abreviada | G200: Selección abreviada por menor cuantía | H200: CONTRATAR EL SUMINISTRO DE MATERIALES, INSUMOS, INSTRUMENTOS, ELEMENTOS, EQUIPOS Y HERRAMIENTAS PARA EL DESARROLLO DE LOS PROYECTOS DE INVERSIÓN E INICIATIVAS LOCALES DEL FONDO DE DESARROLLO RURAL DE SUMAPAZ | I200: Inversión | J200: Un Nuevo Contrato Social y Ambiental para la Bogotá del Siglo XXI | K200: 55 | L200: =IF(ISERROR(VLOOKUP(K200,Proposito_programa!$C$2:$E$59,2,FALSE))," ",VLOOKUP(K200,Proposito_programa!$C$2:$E$59,2,FALSE)) -> Fortalecimiento de cultura ciudadana y su institucionalidad | M200: =IF(ISERROR(VLOOKUP(K200,Proposito_programa!$C$2:$E$59,3,FALSE))," ",VLOOKUP(K200,Proposito_programa!$C$2:$E$59,3,FALSE)) -> Propósito 5: Construir Bogotá - Región con gobierno abierto, transparente y ciudadanía consciente | N200: 1691 | O200: 14 | P200: 900063026 | Q200: COMPAÑIA DE DISTRIBUCION FERRETERA SAS | R200: LAURA JULIANA CUERVO MORALES | S200: YURI ALEJANDRA MOLINA GARCIA | T200: Persona Jurídica | X200: 171297000 | Z200: 1 | AA200: 12900000 | AB200: 184197000 | AC200: 11006666 | AD200: 2021-07-13 | AE200: 2021-07-23 | AF200: 2022-04-22 | AG200: 273 | AO200: X | AR200: 0.05975486029
A201: CSU-169-2021 | B201: 2021 | C201: FDRS-SASI-130-2021 | D201: https://community.secop.gov.co/Public/Tendering/OpportunityDetail/Index?noticeUID=CO1.NTC.2025735&isFromPublicArea=True&isModal=False | E201: Suministro | F201: Selección abreviada | G201: Selección abreviada por menor cuantía | H201: CONTRATAR EL SUMINISTRO DE MATERIALES, INSUMOS, INSTRUMENTOS, ELEMENTOS, EQUIPOS Y HERRAMIENTAS PARA EL DESARROLLO DE LOS PROYECTOS DE INVERSIÓN E INICIATIVAS LOCALES DEL FONDO DE DESARROLLO RURAL DE SUMAPAZ | I201: Inversión | J201: Un Nuevo Contrato Social y Ambiental para la Bogotá del Siglo XXI | K201: 56 | L201: =IF(ISERROR(VLOOKUP(K201,Proposito_programa!$C$2:$E$59,2,FALSE))," ",VLOOKUP(K201,Proposito_programa!$C$2:$E$59,2,FALSE)) -> Gestión pública efectiva | M201: =IF(ISERROR(VLOOKUP(K201,Proposito_programa!$C$2:$E$59,3,FALSE))," ",VLOOKUP(K201,Proposito_programa!$C$2:$E$59,3,FALSE)) -> Propósito 5: Construir Bogotá - Región con gobierno abierto, transparente y ciudadanía consciente | N201: 1693 | O201: 14 | P201: 900063026 | Q201: COMPAÑIA DE DISTRIBUCION FERRETERA SAS | R201: LAURA JULIANA CUERVO MORALES | S201: YURI ALEJANDRA MOLINA GARCIA | T201: Persona Jurídica | X201: 393826000 | Z201: 1 | AA201: 344800000 | AB201: 738626000 | AC201: 11006666 | AD201: 2021-07-13 | AE201: 2021-07-23 | AF201: 2022-04-22 | AG201: 273 | AO201: X | AR201: 0.01490154151
A202: CPS-170-2021 | B202: 2021 | C202: FDRS-LP-131-2021 | D202: https://community.secop.gov.co/Public/Tendering/OpportunityDetail/Index?noticeUID=CO1.NTC.2030122&isFromPublicArea=True&isModal=False | E202: Contratos de prestación de servicios | F202: Licitación pública | G202: No aplica | H202: PRESTACIÓN DEL SERVICIO DE MANTENIMIENTO DE LA MAQUINARIA Y VEHICULOS PESADOS DE PROPIEDAD, GUARDA Y/O TENENCIA DEL FONDO DE DESARROLLO RURAL DE SUMAPAZ CON SUMINISTRO DE REPUESTOS, LLANTAS, INSUMOS, ACCESORIOS Y MANO DE OBRA | I202: Inversión | J202: Un Nuevo Contrato Social y Ambiental para la Bogotá del Siglo XXI | K202: 49 | L202: =IF(ISERROR(VLOOKUP(K202,Proposito_programa!$C$2:$E$59,2,FALSE))," ",VLOOKUP(K202,Proposito_programa!$C$2:$E$59,2,FALSE)) -> Movilidad segura, sostenible y accesible | M202: =IF(ISERROR(VLOOKUP(K202,Proposito_programa!$C$2:$E$59,3,FALSE))," ",VLOOKUP(K202,Proposito_programa!$C$2:$E$59,3,FALSE)) -> Propósito 4: Hacer de Bogotá Región un modelo de movilidad multimodal, incluyente y sostenible | N202: 1688 | O202: 10 | P202: 830070987 | Q202: HYUNDAUTOS SAS | R202: LAURA JULIANA CUERVO MORALES | S202: GLORIA YINET RIVEROS | T202: Persona Jurídica | X202: 481345792 | AB202: 481345792 | AC202: 11006666 | AD202: 2021-07-23 | AE202: 2021-08-11 | AF202: 2022-04-13 | AG202: 245 | AO202: X | AR202: 0.02286644276
... 304 more rows

Sheet 2. PAA
B3: PLAN ANUAL DE ADQUISIONES
B4: 2021
B6: Entidad | C6: FONDO DE DESARROLLO RURAL DE SUMAPAZ | E6: Sector | F6: ALCALDIA LOCAL
B7: Responsable diligenciamiento | C7: GERMAN HUMBERTO MEDELLIN MORA | E7: Número contacto y correo electrónico | F7: german.medellin@gobiernobogota.gov.co
B10: A continuación registre la información del Plan Anual de Adquisiciones vigencia 2021, diligencie el presupuesto total, el presupuesto programado y contratado del 1 de septiembre al 31 de diciembre de 2021, igualmente la fecha de la primera y ultima públicación del PAA en SECOP, y el número de modificaciones realizadas.
B12: Presupuesto Total PAA | C12: Presupuesto programado Septiembre 1 a 31 de diciembre de 2021 | D12: Presupuesto contratado Septiembre 1 a 31 de diciembre de 2021 | E12: Fecha Primera Publicación D/M/A | F12: Última fecha de modificación D/M/A | G12: Número modificaciones
B13: 40007976011 | C13: 10675343964 | D13: 9708599922 | E13: 2021-01-04 | F13: 2021-10-26 | G13: 23

Sheet 3. CONSOLIDADO
E2: GESTIÓN CONTRACTUAL
E3: Período de Evaluación: Septiembre 1 a 31 de diciembre de 2021
C5: La información consolidada que registra en esta hoja debe coincidir con la información que reporta en las hojas 1 "INFORMACION ACUMULADA" y 2 "INFORMACION II CUATRIMESTRE". En relación con las adiciones a contratos de años anteriores con cargo al periodo a reportar deben registrarse en filas independientes en los numerales 1 (información general, naturaleza jurídica) y 2 (modalidad). Ej. vigencia =2019; No. Contratos Adicionados:3; Número de adiciones: 4
C8: 1. Diligenciar en Información General el total de contratos que la entidad suscribió del 1 de septiembre al 31 de diciembre de 2021 y el valor total de ellos, igual el número de contratos que presentaron adiciones, el número de adiciones y el valor total de ellas. Respecto a la Naturaleza jurídica del contratista, diligenciar el número total de contratos suscritos y su valor por: personas naturales, jurídicas, consorcios y uniones temporales
C11: Entidad | D11: Vigencia | E11: Información General | J11: Naturaleza jurídica del contratista
E12: Contratos Suscritos | G12: Adiciones | J12: Contratos suscritos con personas naturales | L12: Contratos suscritos con personas jurídicas | N12: Contratos suscritos con uniones temporales | P12: Contratos suscritos con consorcios
E13: Número Contratos | F13: Valor Total | G13: Número Contratos Adicionados | H13: Número de Adiciones | I13: Valor Total | J13: Número Contratos y/o adiciones | K13: Valor Total | L13: Número Contratos y/o adiciones | M13: Valor Total | N13: Número Contratos y/o adiciones | O13: Valor Total | P13: Número Contratos y/o adiciones | Q13: Valor Total
C14: FONDO DE DESARROLLO RURAL DE SUMAPAZ | D14: 2020 | E14: 0 | F14: 0 | G14: 1 | H14: 1 | I14: 25000000 | J14: 0 | K14: 0 | L14: 2 | M14: 86993740 | N14: 0 | O14: 0 | P14: 1 | Q14: 67968981
C15: FONDO DE DESARROLLO RURAL DE SUMAPAZ | D15: 2021 | E15: 20 | F15: 6966527657 | G15: 74 | H15: 76 | I15: 2182292086 | J15: 15 | K15: 221975000 | L15: 14 | M15: 8522685489 | N15: 1 | O15: 274359473.3 | P15: 2 | Q15: 602269464
C18: 2. Registrar el número y valor total de los contratos y/o adiciones que se suscribieron del 1 de septiembre al 31 de diciembre de 2021 por cada modalidad. Igualmente en la tipología de contratos de prestación de servicios profesionales y de apoyo a la gestión.
C20: Entidad | D20: Vigencia | E20: Modalidad | S20: Contratos realizados mediante la tipología de contratos de prestación de servicios profesionales y de apoyo a la gestión
E21: Concurso de méritos | G21: Contratación directa | I21: Contratación mínima cuantia | K21: Selección abreviada | M21: Licitación pública | O21: Régimen privado | Q21: Régimen especial
E22: Número Contratos | F22: Valor Total | G22: Número Contratos | H22: Valor Total | I22: Número Contratos | J22: Valor Total | K22: Número Contratos | L22: Valor Total | M22: Número Contratos | N22: Valor Total | O22: Número Contratos | P22: Valor Total | Q22: Número Contratos | R22: Valor Total | S22: Número Contratos | T22: Valor Total
C23: FONDO DE DESARROLLO RURAL DE SUMAPAZ | D23: 2019
C24: =C14 -> FONDO DE DESARROLLO RURAL DE SUMAPAZ | D24: =D14 -> 2020 | K24: 1 | L24: 25000000
C25: =C15 -> FONDO DE DESARROLLO RURAL DE SUMAPAZ | D25: =D15 -> 2021 | G25: 15 | H25: 874198000 | K25: 4 | L25: 200473827 | M25: 1 | N25: 5891855830 | S25: 14 | T25: 209655000
C28: 3. Detalle cada uno de los procesos de selección adelantados en el cuatrimestre por la entidad de acuerdo a cada modalidad de selección (licitación pública, selección abreviada o concurso de méritos), y diligencie el número de proponentes que se presentaron en cada uno de ellos
C30: Entidad | D30: Proponentes (que se presentaron a los proceso de selección)
D31: Concurso de méritos | F31: Selección abreviada | H31: Licitación pública
D32: Número del proceso contractual en SECOP | E32: Número de proponentes | F32: Número del proceso contractual en SECOP | G32: Número de proponentes | H32: Número del proceso contractual en SECOP | I32: Número de proponentes
C33: FONDO DE DESARROLLO RURAL DE SUMAPAZ | D33: 0 | E33: 0 | F33: FDRS-SAMC-154-2021 | G33: 7 | H33: FDRS-LP-149-2021 | I33: 2

Sheet 4. INSTRUCTIVO
B2: INSTRUCTIVO FORMATO
B3: Recomendamos leer cuidadosamente y poner en práctica las instrucciones que se explican en este instructivo. De la calidad de la información que se registre, depende en gran medida la calidad del informe de rendición de cuentas de la Gestión Contractual que presenta el Alcalde Mayor, consolidado por la Veeduría Distrital. En este formato se deberán relacionar: Hoja 1. "INFORMACION ACUMULADA", diligenciar en esta hoja la totalidad de la información contractual desde el 1 de enero al 31 de diciembre de 2021. Hoja 2. “PLAN ANUAL DE ADQUISICIONES – PAA”, se pide información sobre el Plan Anual de Adquisiciones y sus modificaciones, por lo cual se deberá precisar el presupuesto total del plan; el programado del 1 de septiembre al 31 de diciembre de 2021; el efectivamente contratado en este período; la primera fecha de publicación del PAA; la última fecha de modificación y el número total de modificaciones realizadas durante este mismo período. Hoja 3. “CONSOLIDADO”, se pide totalizar la información reportada en la hoja 1, sólo respecto a los contratos y adiciones suscritas entre el 1 de septiembre y el 31 de diciembre de 2021, por lo cual debe coincidir. Es así que en el numeral 1, se debe diligenciar el total de contratos suscritos por la entidad entre el 1 de septiembre y el 31 de diciembre de 2021, periodo de evaluación y su valor; el número total de contratos adicionados, el número total de adiciones y su valor; el número total de contratos celebrados con personas naturales, jurídicas, uniones temporales y consorcios, y su valor; en el numeral 2, se debe registrar en el periodo mencionado, el número total de contratos celebrados según la modalidad de selección y el valor total por cada modalidad; igualmente, es necesario precisar que se deberán relacionar los contratos celebrados mediante la tipología de prestación de servicios profesionales y de apoyo a la gestión y el valor total de ellos. En el numeral 3, se deberá indicar en las modalidades de licitación pública, concurso de méritos y selección abreviada, el número de procesos de selección en los que se presentaron 1 o más proponentes. Hoja 4.“INSTRUCTIVO”, se dan las instrucciones para el diligenciamiento de la información, explicando paso a paso cada uno de los datos de la base y la manera de diligenciarla para efectos de que la información reportada sea veraz y no presente inconsistencias.
B4: La base en Excel a diligenciar NO debe modificarse, debe utilizar versión Excel 2010 o posteriores, la versión 2007 no habilita los macros. El formato está controlado y algunas celdas tienen opciones de selección y solo se debe escoger una de ellas. El nombre de las hojas no se debe modificar o renombrar debido a que tiene macros. No incluya columnas con otro tipo de información que la Veeduría Distrital no está solicitando o que cambie el formato de celda establecido. Debe diliigencar la totalidad de las celdas, no combinarlas, registrar la información contractual en filas independientes. Las celdas donde se requieren relacionar valores, deben diligenciarse sin puntos, tildes, comas, ni caracteres especiales.
B5: Para insertar una o varias filas, en el encabezado del formato, se encuentra un botón denominado "Insertar Filas" en el cual se debe hacer click y digite el número de filas a insertar. Si usted no sigue este procedimiento las filas que inserte no tomarán el formato de las filas anteriores. Se recomienda que antes de iniciar el registro de información inserte las filas que requiera, sin embargo, en cualquier momento que necesite puede hacer este paso
B6: Si requiere insertar una o varias filas realícelo después de la fila A14 para que tomen el formato de las filas anteriores.
B7: Si necesita pegar información debe hacerlo por secciones debido a que hay columnas formuladas que están protegidas que no permiten realizar esta opción. Utilice la opción de pegado especial valores para no borrar las listas desplegables ni los formatos de las columnas. Si al pegar quedan textos en rojo, verifique y ajuste la información, el dato que adiciono no se encuentra en la lista desplegable o no corresponde con el criterio definido en el columna.
B8: En primer lugar, diligencie toda la información correspondiente a los contratos suscritos con cargo la vigencia 2021.
B9: Una vez incluidos todos los contratos de la vigencia 2021, a continuación diligencie el formato completo con la información correspondiente a las adiciones efectuadas con cargo a la vigencia 2021 de contratos suscritos en vigencias anteriores. La información general del contrato como: modalidad de selección, tipología contractual, objeto, entre otros, debe corresponder a la información del contrato adicionado o modificado. Respecto al valor, sólo se diligencia el valor en la columna adición, es decir, la columna de valor inicial debe quedar en blanco. No olvide registrar el número de adiciones realizadas en la columna correspondiente.
B10: La información que se registre en esta base de datos debe coincidir con los reportes en BOGDATA y adicionalmente con SECOP. Es así que la sumatoria del valor final de los contratos y adiciones, por eje/pilar/propósito, programa y proyecto registrada por la Entidad, debe coincidir con la ejecución presupuestal de la entidad, reporte de BOGDATA con corte a 31 de diciembre de 2021, es decir, se debe verificar su coincidencia por rubro con el total del compromiso acumulado; igualmente respecto al valor acumulado de los giros.
B11: En caso de haber realizado apropiaciones presupuestales en la vigencia a través de resoluciones, caja menor, honorarios ediles, servicios públicos, debe relacionar dicha información en una sola fila al final de la base, indicando de que se trata la apropiación y número de proyecto si hay lugar a ello. En el tipo de contrato se registra con la opción "Otros gastos".
B13: ENCABEZADO DEL FORMATO
B14: 1 | C14: Entidad | D14: Indique el nombre completo de la Entidad.
B15: 2 | C15: Sector | D15: Seleccione el sector al cual pertenece la Entidad.
B16: 3 | C16: Presupuesto Disponible Inversión Directa | D16: Indique el valor total del presupuesto disponible de inversión directa, de acuerdo con el Informe de ejecución presupuestal de la entidad (BOGDATA), a 31 de diciembre de 2021.
B17: 4 | C17: Presupuesto Comprometido de Inversión Directa | D17: Escriba el valor total del presupuesto comprometido de inversión directa, de acuerdo con el Informe de ejecución presupuestal de la entidad (BOGDATA), a 31 de diciembre de 2021.
B18: 5 | C18: Presupuesto Disponible Funcionamiento | D18: Indique el valor total del presupuesto de funcionamiento disponible, de acuerdo con el con el Informe de ejecución presupuestal de la entidad (BOGDATA), a 31 de diciembre de 2021.
B19: 6 | C19: Presupuesto Comprometido funcionamiento | D19: Escriba el monto del presupuesto de funcionamiento, comprometido mediante contratos, de acuerdo con el Informe de ejecución presupuestal de la entidad (BOGDATA), a 31 de diciembre de 2021.
B20: 7 | C20: Presupuesto Disponible Operación | D20: Coloque el monto del presupuesto de operación disponible, de acuerdo con el Informe de ejecución presupuestal de la entidad (BOGDATA), a 31 de diciembre de 2021. Los gastos de operación corresponden solamente a aquellas entidades de régimen de contratación privado.
B21: 8 | C21: Presupuesto Comprometido operación mediante contratos | D21: Escriba el monto del presupuesto de operación comprometido mediante contratos a 31 de diciembre de 2021.
B22: 9 | C22: Nombre de quien diligencia el formato | D22: Indique el nombre completo, cargo, número de teléfono con extensión y correo electrónico del profesional que diligencia el formato y que posteriormente realizará los ajustes y aclaraciones a que haya lugar por solicitud de la Veeduría Distrital.
B24: 1- INFORMACIÓN GENERAL
B25: 1 | C25: Número de Contrato | D25: En estricto orden consecutivo registre el número del contrato, sin incluir los contratos que fueron anulados, ni comodatos.
D26: Una vez terminado el registro de los contratos celebrados con cargo a la vigencia 2021, en las siguientes filas registre la información correspondiente a las adiciones efectuadas con cargo a la vigencia 2021 de contratos suscritos en vigencias anteriores, especificando el año de suscripción en la columna dos.
B27: 2 | C27: Año | D27: Registre el año de celebración del contrato.
B28: 3 | C28: Número de proceso en el SECOP | D28: Relacione el número de proceso de selección con el cual se encuentra publicado el contrato en el SECOP, mas no el link o enlace. Ejemplo IDU-CMA-DTDP-240-2021
C29: Link proceso SECOP | D29: Registre el enlace del proceso en SECOP. Ejemplo https://community.secop.gov.co/Public/xxxxxx
B30: 4 | C30: Tipo de Contrato | D30: En esta columna seleccione de la lista, el tipo de contrato que corresponde al contrato suscrito. El formato no permite incluir tipo de contratos diferentes a los señaladas en la lista desplegable. Se debe escoger de las tipologías contractuales que se relacionan a continuación:
D31: Para las adiciones a contratos suscritos en la vigencia 2021 y adiciones a contratos sucritos de años anteriores se debe diligenciar la tipología del contrato adicionado o modificado
C32: Obra | D32: Son contratos de obra los que celebren las entidades estatales para la construcción, mantenimiento, instalación y, en general, para la realización de cualquier otro trabajo material sobre bienes inmuebles, cualquiera que sea la modalidad de ejecución y pago. Numeral 1 del artículo 32 de la Ley 80 de 1993
C33: Consultoría | D33: Aquellos que celebran las entidades estatales, referidos a los estudios necesarios para la ejecución de proyectos de inversión, de diagnósticos, prefactibilidad o factibilidad para programas o proyectos específicos, así como las asesorías técnicas de coordinación, control y supervisión. Numeral 2 del artículo 32 de la Ley 80 de 1993
C34: Interventoría | D34: Son también contratos de consultoría los que tienen por objeto la Interventoría, asesoría, gerencia de obras o de proyectos, dirección, programación y la ejecución de diseños, planos, anteproyectos y proyectos. Numeral 2 del artículo 32 de la Ley 80 de 1993
D35: El contrato de Interventoría tiene por objeto la supervisión, seguimiento y vigilancia a la ejecución material de un contrato principal
C36: Contrato de Prestación de servicios | D36: Son contratos de prestación de servicios los que celebren las entidades estatales para desarrollar actividades relacionadas con la administración o funcionamiento de la entidad. Numeral 3 del artículo 32 de la Ley 80 de 1993
C37: Contrato de Prestación de servicios profesionales y de apoyo a la gestión | D37: Corresponden a aquellos de naturaleza intelectual diferentes a los de consultoría que se derivan del cumplimiento de las funciones de la entidad estatal; así como los relacionados con actividades operativas, logísticas, o asistenciales. Art. 2.2.1.2.1.4.9. del Decreto 1082 de 2015
C38: Compraventa de bienes muebles | D38: Son aquellos contratos donde se transfiere el dominio de un bien mueble (aquellos susceptibles de ser trasladadas de un lugar a otro sin alterar ni su forma ni su esencia, tal es el caso del mobiliario y equipo de oficina, maquinaria, automóviles, etc.), cuya ejecución se agota de manera instantánea. Artículo 660, Código Civil
C39: Compraventa de bienes inmuebles | D39: Son aquellos contratos donde se transfiere el dominio de un bien inmueble (todos aquellos bienes considerados bienes raíces, por tener de común la circunstancia de estar íntimamente ligados al suelo, unidos de modo inseparable, física o jurídicamente, al terreno). Artículo 656, Código Civil
C40: Arrendamiento de bienes muebles | D40: Es un contrato que tiene por objeto, conceder el uso y goce de un bien mueble a cambio de un precio determinado. Artículo 1974, Código Civil
C41: Arrendamiento de bienes inmuebles | D41: Es un contrato que tiene por objeto, conceder el uso y goce de un bien inmueble a cambio de un precio determinado. Artículo 2.2.1.2.1.4.11 del Decreto 1082 de 2015
C42: Seguros | D42: El seguro es un contrato, en virtud del cual una persona jurídica llamada asegurador, asume, a cambio de una prima, un riesgo que le es trasladado por una persona natural o jurídica llamado tomador y en el cual éste tiene un interés asegurable, con el fin de indemnizarlo, en el evento de que ocurra la realización del riesgo amparado, de conformidad con el Título V, del Libro Cuarto del Código de Comercio
C43: Suministro | D43: El suministro es el contrato por el cual una parte se obliga, a cambio de una contraprestación, a cumplir en favor de otra, en forma independiente, prestaciones periódicas o continuadas de cosas o servicios. Artículo 968, Código de Comercio
C44: Empréstitos | D44: Son contratos de empréstito los que tienen por objeto proveer a la entidad estatal contratante de recursos en moneda nacional o extranjera con plazo para su pago. Artículo 7, Decreto 2681 de 1993
C45: Fiducia mercantil o encargo fiduciario | D45: Son contratos que tienen por objeto la administración o el manejo de los recursos vinculados a los contratos que tales entidades celebren. Numeral 5 del artículo 32 de la Ley 80 de 1993
C46: Concesión | D46: Este contrato tiene por objeto otorgar a una persona llamada concesionario la prestación, operación, explotación, organización o gestión, total o parcial, de un servicio público, o la construcción, explotación o conservación total o parcial, de una obra o bien destinados al servicio o uso público, así como todas aquellas actividades necesarias para la adecuada prestación o funcionamiento de la obra o servicio por cuenta y riesgo del concesionario, y bajo la vigilancia y control de la entidad concedente, a cambio de una remuneración que puede consistir en derechos, tarifas, tasas, valorización, o en la participación que se le otorgue en la explotación del bien, obra o servicio, o en una suma periódica, única o porcentual, y en general, en cualquier otra modalidad de contraprestación que las partes acuerden. Numeral 4 del artículo 32 de la Ley 80 de 1993
C47: Convenios de cooperación | D47: Son aquellos mediante los cuales se formaliza la asistencia, ayuda, auxilio, soporte o colaboración entre entidades de una misma nación, de distintos países o por parte de organizaciones internacionales de naturaleza pública o privada a favor de entidades públicas. Artículo 20 de la Ley 1150 de 2007
